{"text_format":"1","workbook":"xlsx","n_sheets":6,"sheets":["Main","Interior-Bleed","Interior-NoBleed","Cover-LTR","Cover-RTL","Lists"],"not_rendered":{"charts":0,"images":10,"macros":1,"external_links":0,"defined_names":82,"comments":0,"pivot_tables":0},"unopened":[],"bounds":{"document_bytes":16777216,"sheet_cells":100000,"rows_first":2000,"rows_last":500,"rows_between":2000,"halvings":0,"cell_chars":16384,"cell_head_chars":4096},"cells_cut":0,"cells_raw":0,"read":"whole","date_system":"1900"}

{"sheet":"Main","index":0,"n_rows":29,"n_cols":24,"rows_kept":29,"cut":false,"hidden":false,"merged":[[12,8,12,11],[15,8,15,11],[3,13,4,15]]}
[]
[null,null,null,null,null,null,null,null,null,null,null,null,null,null,null,null,"Encre et papier","Option de taille de coupe","Nombre de pages","Rainure centrale","Texte du fond perdu intérieur","Texte intérieur sans fond perdu"]
[null,null,null,null,null,null,null,null,null,null,null,null,null,null,null,null,{"$f":"InkPaperChoice","v":"Encre noire & papier blanc"},{"$f":"TrimSizeChoice","v":"12,7 x 20,32 cm (5\" x 8\")"},{"$f":"PageCountChoice","v":336},{"$f":"VLOOKUP(S3, LU_Margins[#All], 6, FALSE)&\" Rainure centrale\"","v":"15,875 mm (0,625\") Rainure centrale"},{"$f":"TrimSizeChoice&\" Taille de coupe du manuscrit avec fond perdu @ \"&PageCountChoice&\" Pages\"","v":"12,7 x 20,32 cm (5\" x 8\") Taille de coupe du manuscrit avec fond perdu @ 336 Pages"},{"$f":"TrimSizeChoice&\" Taille de coupe du manuscrit @ \"&PageCountChoice&\" Pages\"","v":"12,7 x 20,32 cm (5\" x 8\") Taille de coupe du manuscrit @ 336 Pages"},null,{"$f":"TrimSizeChoice&\" Taille de coupe @ \"&PageCountChoice&\" Pages\"","v":"12,7 x 20,32 cm (5\" x 8\") Taille de coupe @ 336 Pages"}]
[null,null,null,null,null,null,null,null,null,null,null,null,null,"Nombre maximum de pages selon les types d’encre et de \npapier et la taille de coupe"]
[null,null,null,null,null,null,null,null,null,null,null,null,null,null,null,null,"Taille de coupe du manuscrit (L)","Taille de coupe du manuscrit (H)","Taille de coupe du manuscrit (po)","Taille de coupe du manuscrit (cm)","Rainure centrale (po)","Rainure centrale (mm)","Marge extérieure (po)","Marge extérieure (cm)"]
[null,null,null,null,null,null,null,null,null,null,null,null,null,null,null,null,{"$f":"VLOOKUP(R3, LU_TrimSizes[], 9, FALSE)&\" Taille de coupe\"","v":"12,7 cm (5\") Taille de coupe"},{"$f":"VLOOKUP(R3, LU_TrimSizes[], 10, FALSE)&\" Taille de coupe\"","v":"20,32 cm (8\") Taille de coupe"},{"$f":"VLOOKUP(R3, LU_TrimSizes[], 4, FALSE)","v":"5\" x 8\""},{"$f":"VLOOKUP(R3, LU_TrimSizes[], 7, FALSE)","v":"(12.7 x 20.32 cm)"},{"$f":"VLOOKUP(S3, LU_Margins[#All], 4, FALSE)&\"\"\"\"","v":"0,375\""},{"$f":"VLOOKUP(S3, LU_Margins[#All], 5, FALSE)&\" mm\"","v":"15,875 mm"},0.25,{"$f":"W6*cm","v":0.63500000000000001}]
[null,null,null,null,null,null,null,null,null,null,null,null,null,null,null,null,null,null,null,null,{"$f":"VLOOKUP(S3, LU_Margins[#All], 4, FALSE)","v":0.375},{"$f":"GutterINmath*cm","v":0.95250000000000001}]
[null,null,null,null,null,null,null,null,null,null,null,null,null,null,null,null,"Taille de coupe du manuscrit + fond perdu (L)","Taille de coupe du manuscrit + fond perdu (H)","Taille de coupe du manuscrit + fond perdu (po)","Taille de coupe du manuscrit + fond perdu (cm)"]
[null,null,null,null,null,null,null,null,null,null,null,null,null,null,null,null,{"$f":"VLOOKUP(R3, LU_TrimSizes[], 13, FALSE)&\" Taille de coupe + fond perdu\"","v":"13,0175 cm (5,125\") Taille de coupe + fond perdu"},{"$f":"VLOOKUP($R$3, LU_TrimSizes[], 14, FALSE)&\" Taille de coupe + fond perdu\"","v":"20,955 cm (8,25\") Taille de coupe + fond perdu"},{"$f":"VLOOKUP($R$3, LU_TrimSizes[], 17, FALSE)","v":"5,125\" x 8,25\""},{"$f":"VLOOKUP($R$3, LU_TrimSizes[], 18, FALSE)","v":"13,0175 cm x 20,955 cm"},null,"Nbr de pages max."]
[null,null,null,null,null,null,null,null,null,null,null,null,null,null,null,null,null,null,null,null,null,{"$f":"INDEX(Rng_IndexPgMax, MATCH(TrimSizeChoice, List_TrimSize, 0), MATCH(InkPaperChoice, InkPaperMax, 0))","v":828}]
[null,null,null,null,null,null,null,null,null,null,null,null,null,null,null,null,"Manuscript Safe Zone (W)","Zone de sécurité du manuscrit (H)","Zone de sécurité du manuscrit (po)","Zone de sécurité du manuscrit (cm)"]
[null,null,null,null,null,null,null,null,null,null,null,null,null,null,null,null,{"$f":"VLOOKUP(TrimSizeChoice, LU_TrimSizes[], 21, FALSE)&\" Zone de sécurité\"","v":"11,1125 cm (4,375\") Zone de sécurité"},{"$f":"VLOOKUP(TrimSizeChoice, LU_TrimSizes[], 24, FALSE)&\" Zone de sécurité\"","v":"19,05 cm (7,5\") Zone de sécurité"},{"$f":"VLOOKUP(TrimSizeChoice, LU_TrimSizes[], 25, FALSE)","v":"4,375\" x 7,5\""},{"$f":"VLOOKUP(TrimSizeChoice, LU_TrimSizes[], 26, FALSE)","v":"11,1125 cm x 19,05 cm"}]
[null,null,null,null,null,null,null,null,"Encre noire & papier blanc"]
[null,null,null,null,null,null,null,null,null,null,null,null,null,null,null,null,"PPI (po)","PPI (mm)","PPI (cm)"]
[null,null,null,null,null,null,null,null,null,null,null,null,null,null,null,null,{"$f":"VLOOKUP(InkPaperChoice, LU_InkPaper[], 4, FALSE)","v":2.2520000000000001E-3},{"$f":"VLOOKUP(InkPaperChoice, LU_InkPaper[], 5, FALSE)","v":5.7200000000000001E-2},{"$f":"VLOOKUP(InkPaperChoice, LU_InkPaper[], 6, FALSE)","v":5.7200000000000003E-3}]
[null,null,null,null,null,null,null,null,"12,7 x 20,32 cm (5\" x 8\")"]
[null,null,null,null,null,null,null,null,null,null,null,null,null,null,null,null,"Largeur dos (po)","Largeur dos (mm)","Largeur dos (cm)","Taille de la largeur dos"]
[null,null,null,null,null,null,null,null,null,null,null,null,null,null,null,null,{"$f":"ROUND(PageCountChoice*PPI_In, 5)","v":0.75666999999999995},{"$f":"ROUND(PageCountChoice*PPI__mm, 5)","v":19.219200000000001},{"$f":"ROUND(PageCountChoice*PPI__cm, 5)","v":1.9219200000000001}]
[null,null,null,null,null,null,null,null,336,null,null,null,null,null,null,null,{"$f":"Q18&\"\"\"\"","v":"0,75667\""},{"$f":"R18&\" mm\"","v":"19,2192 mm"},{"$f":"S18&\" cm\"","v":"1,92192 cm"},{"$f":"SpineWidthMM&\" (\"&SpineWidthIn&\")\" &\" Largeur dos (po)\"","v":"19,2192 mm (0,75667\") Largeur dos (po)"}]
[]
[null,null,null,null,null,null,null,null,null,null,null,null,null,null,null,null,"Taille texte dos (po)","Taille texte dos (mm)","Taille du texte dos (cm)","Taille du texte dos"]
[null,null,null,null,null,null,null,null,null,null,null,null,null,null,null,null,{"$f":"ROUND(SpineWidthInMath-cMarginSLIn-cMarginSRIn, 5)","v":0.63166999999999995},{"$f":"ROUND(SpineWidthMMmath-cMarginSLmm-cMarginSRmm, 5)","v":16.0442},{"$f":"ROUND(SpineWidthCmMath-cMarginSLcm-cMarginSRcm, 5)","v":1.60442},{"$f":"R23&\" (\"&Q23&\")\"&\" Largeur de la taille du texte dos\"","v":"16,0442 mm (0,63167\") Largeur de la taille du texte dos"}]
[null,null,null,null,null,null,null,null,null,null,null,null,null,null,null,null,{"$f":"SpineTextInMath&\"\"\"\"","v":"0,63167\""},{"$f":"SpineTextMMmath&\" mm\"","v":"16,0442 mm"},{"$f":"SpineTextCMmath&\" cm\"","v":"1,60442 cm"}]
[]
[null,null,null,null,null,null,null,null,null,null,null,null,null,null,null,null,"Largeur de la couverture","Hauteur de la couverture","Taille de la couverture (po)","Taille de la couverture (cm)"]
[null,null,null,null,null,null,null,null,null,null,null,null,null,null,null,null,{"$f":"VLOOKUP(TrimSizeChoice, LU_TrimSizes[], 29, FALSE)&\" Largeur de la couverture\"","v":"27,95692 cm (11,00667 cm) Largeur de la couverture"},{"$f":"VLOOKUP(TrimSizeChoice, LU_TrimSizes[], 32, FALSE)&\" Hauteur de la couverture\"","v":"20,955 cm (8,25\") Hauteur de la couverture"},{"$f":"VLOOKUP(TrimSizeChoice, LU_TrimSizes[], 33, FALSE)","v":"11,00667\" x 8,25\""},{"$f":"VLOOKUP(TrimSizeChoice, LU_TrimSizes[], 34, FALSE)","v":"27,95692 cm x 20,955 cm"}]
[]
[null,null,null,null,null,null,null,null,null,null,null,null,null,null,null,null,"Zone de sécurité de la couverture (Largeur)","Zone de sécurité de la couverture (Hauteur)","Zone de sécurité de la couverture (po)","Zone de sécurité de la couverture (cm)"]
[null,null,null,null,null,null,null,null,null,null,null,null,null,null,null,null,{"$f":"VLOOKUP(TrimSizeChoice, LU_TrimSizes[], 37, FALSE)&\" Zone de sécurité\"","v":"26,68692 cm (10,50667\") Zone de sécurité"},{"$f":"VLOOKUP(TrimSizeChoice, LU_TrimSizes[], 38, FALSE)&\" Zone de sécurité\"","v":"19,685 cm (7,75\") Zone de sécurité"},{"$f":"VLOOKUP(TrimSizeChoice, LU_TrimSizes[], 41, FALSE)","v":"10,50667\" x 7,75\""},{"$f":"VLOOKUP(TrimSizeChoice, LU_TrimSizes[], 42, FALSE)","v":"26,68692 cm x 19,685 cm"}]

{"sheet":"Interior-Bleed","index":1,"n_rows":2,"n_cols":1,"rows_kept":2,"cut":false,"hidden":false,"merged":[[1,0,3,4]]}
[]
["Manuscrit avec fond perdu"]

{"sheet":"Interior-NoBleed","index":2,"n_rows":2,"n_cols":1,"rows_kept":2,"cut":false,"hidden":false,"merged":[[1,0,3,4]]}
[]
["Manuscrit sans fond perdu"]

{"sheet":"Cover-LTR","index":3,"n_rows":2,"n_cols":3,"rows_kept":2,"cut":false,"hidden":false,"merged":[[1,2,2,3]]}
[]
[null,null,"Couverture"]

{"sheet":"Cover-RTL","index":4,"n_rows":0,"n_cols":0,"rows_kept":0,"cut":false,"hidden":true,"merged":[]}

{"sheet":"Lists","index":5,"n_rows":806,"n_cols":69,"rows_kept":806,"cut":false,"hidden":true,"merged":[[0,1,0,3],[0,24,0,37]]}
[null,"Requirements List",null,null,null,null,"Official Ink & Color Text","Ink","Paper","Page thickness (Inches)","Page Thickness (mm)","Page Thickness (cm)","Inch","cm","mm",null,null,"PageCount","Inside (Gutter Margin)","Outside Margin - No Bleed","Outside margin - Bleed","Gutter (mm)","Gutter Full Name",null,"Trim Sizes - Inches and cm"]
["ReqKey","Category","SubCategory","SubCategory Requirement","Name",null,{"$f":"LU_InkPaper[[#This Row],[Ink]]&\" & \"&LU_InkPaper[[#This Row],[Paper]]","v":"Encre noire & papier crème"},"Encre noire","papier crème",2.5000000000000001E-3,{"$f":"ROUND(J2*mm,5)","v":6.3500000000000001E-2},{"$f":"ROUND(LU_InkPaper[[#This Row],[Page thickness (Inches)]]*cm, 5)","v":6.3499999999999997E-3},1,2.54,25.4,null,null,24,0.375,0.25,0.375,{"$f":"ROUND(S2*mm, 5)","v":9.5250000000000004},{"$f":"V2&\" mm\"&\" (\"&S2&\"\"\")\"","v":"9,525 mm (0,375\")"},null,"List_TrimSize","Trim Width (in)","Trim Height (in)","Trim Size (in)","Trim Width (cm)","Trim Height (cm)","Trim Size (cm)","Full Trim Size","Manuscript Trim W","Manuscript Trim H","Trim W Bleed (in)","Trim H Bleed (in)","Manuscript Trim Bleed W","Manuscript Trim Bleed H","Trim W Bleed (cm)","Trim H Bleed (cm)","Full Trim Bleed (in)","Full Trim Bleed (cm)","Manuscript Safe Zone W in","Manuscript Safe Zone W cm","Manuscript Safe Zone W","Manuscript Safe Zone H in","Manuscript Safe Zone H (cm)","Manuscript Safe Zone H","Manuscript Safe Zone IN","Manuscript Safe Zone (cm)","Cover W In","Cover W (cm)","Cover Width","Cover Height In","Cover Height CM","Cover Height","Cover Size In","Cover Size CM","Cover Safe Zone W (in)","Cover Safe Zone W cm","Cover Safe Zone W","Cover Safe Zone H","Cover Safe Zone H in","Cover Safe Zone H cm","Cover Safe Zone IN","Cover Safe Zone CM","Encre noire & papier crème","Encre noire & papier blanc","Encre de couleur & papier blanc"]
[1,"Manuscript","No Bleed Manuscript Layout","Outside Margin","=CmMarginO",null,{"$f":"LU_InkPaper[[#This Row],[Ink]]&\" & \"&LU_InkPaper[[#This Row],[Paper]]","v":"Encre noire & papier blanc"},"Encre noire","papier blanc",2.2520000000000001E-3,{"$f":"ROUND(J3*mm,5)","v":5.7200000000000001E-2},{"$f":"ROUND(LU_InkPaper[[#This Row],[Page thickness (Inches)]]*cm, 5)","v":5.7200000000000003E-3},null,null,null,null,null,25,0.375,0.25,0.375,9.5250000000000004,{"$f":"V3&\" mm\"&\" (\"&S3&\"\"\")\"","v":"9,525 mm (0,375\")"},null,"12,7 x 20,32 cm (5\" x 8\")",5,8,"5\" x 8\"",12.7,20.32,"(12.7 x 20.32 cm)","12,7 x 20,32 cm (5\" x 8\")",{"$f":"LU_TrimSizes[[#This Row],[Trim Width (cm)]]&\" cm (\"&LU_TrimSizes[[#This Row],[Trim Width (in)]]&\"\"\")\"","v":"12,7 cm (5\")"},{"$f":"LU_TrimSizes[[#This Row],[Trim Height (cm)]]&\" cm (\"&LU_TrimSizes[[#This Row],[Trim Height (in)]]&\"\"\")\"","v":"20,32 cm (8\")"},{"$f":"ROUND(LU_TrimSizes[[#This Row],[Trim Width (in)]]+0.125, 5)&\"\"\"\"","v":"5,125\""},{"$f":"ROUND(LU_TrimSizes[[#This Row],[Trim Height (in)]]+0.25, 5)&\"\"\"\"","v":"8,25\""},{"$f":"LU_TrimSizes[[#This Row],[Trim W Bleed (cm)]]&\" (\"&LU_TrimSizes[[#This Row],[Trim W Bleed (in)]]&\")\"","v":"13,0175 cm (5,125\")"},{"$f":"LU_TrimSizes[[#This Row],[Trim H Bleed (cm)]]&\" (\"&LU_TrimSizes[[#This Row],[Trim H Bleed (in)]]&\")\"","v":"20,955 cm (8,25\")"},{"$f":"ROUND(LU_TrimSizes[[#This Row],[Trim Width (in)]]*cm+blcmw, 5)&\" cm\"","v":"13,0175 cm"},{"$f":"ROUND(LU_TrimSizes[[#This Row],[Trim Height (in)]]*cm+blcmh, 5)&\" cm\"","v":"20,955 cm"},{"$f":"LU_TrimSizes[[#This Row],[Trim W Bleed (in)]]&\" x \"&LU_TrimSizes[[#This Row],[Trim H Bleed (in)]]","v":"5,125\" x 8,25\""},{"$f":"LU_TrimSizes[[#This Row],[Trim W Bleed (cm)]]&\" x \"&LU_TrimSizes[[#This Row],[Trim H Bleed (cm)]]","v":"13,0175 cm x 20,955 cm"},{"$f":"ROUND(LU_TrimSizes[[#This Row],[Trim Width (in)]]-GutterINmath-MarginOinMath, 5)","v":4.375},{"$f":"ROUND(LU_TrimSizes[[#This Row],[Trim Width (cm)]]-GutterCMmath-MarginOcmMath, 5)","v":11.112500000000001},{"$f":"LU_TrimSizes[[#This Row],[Manuscript Safe Zone W cm]]&\" cm (\"&LU_TrimSizes[[#This Row],[Manuscript Safe Zone W in]]&\"\"\")\"","v":"11,1125 cm (4,375\")"},{"$f":"ROUND(LU_TrimSizes[[#This Row],[Trim Height (in)]]-MarginOinMath-MarginOinMath, 5)","v":7.5},{"$f":"ROUND(LU_TrimSizes[[#This Row],[Trim Height (cm)]]-MarginOcmMath-MarginOcmMath, 5)","v":19.05},{"$f":"LU_TrimSizes[[#This Row],[Manuscript Safe Zone H (cm)]]&\" cm (\"&LU_TrimSizes[[#This Row],[Manuscript Safe Zone H in]]&\"\"\")\"","v":"19,05 cm (7,5\")"},{"$f":"LU_TrimSizes[[#This Row],[Manuscript Safe Zone W in]]&\"\"\" x \"&LU_TrimSizes[[#This Row],[Manuscript Safe Zone H in]]&\"\"\"\"","v":"4,375\" x 7,5\""},{"$f":"LU_TrimSizes[[#This Row],[Manuscript Safe Zone W cm]]&\" cm x \"&LU_TrimSizes[[#This Row],[Manuscript Safe Zone H (cm)]]&\" cm\"","v":"11,1125 cm x 19,05 cm"},{"$f":"ROUND(CBleedLin+LU_TrimSizes[[#This Row],[Trim Width (in)]]+SpineWidthInMath+LU_TrimSizes[[#This Row],[Trim Width (in)]]+CBleedRIn, 5)","v":11.00667},{"$f":"ROUND(LU_TrimSizes[[#This Row],[Trim Width (cm)]]+CBleedLcm+SpineWidthCmMath+CBleedRcm+LU_TrimSizes[[#This Row],[Trim Width (cm)]], 5)","v":27.95692},{"$f":"LU_TrimSizes[[#This Row],[Cover W (cm)]]&\" cm (\"&LU_TrimSizes[[#This Row],[Cover W In]]&\" cm)\"","v":"27,95692 cm (11,00667 cm)"},{"$f":"ROUND(CBleedTIn+LU_TrimSizes[[#This Row],[Trim Height (in)]]+CBleedBIn, 5)","v":8.25},{"$f":"ROUND(CBleedTcm+LU_TrimSizes[[#This Row],[Trim Height (cm)]]+CBleedBcm, 5)","v":20.954999999999998},{"$f":"LU_TrimSizes[[#This Row],[Cover Height CM]]&\" cm (\"&LU_TrimSizes[[#This Row],[Cover Height In]]&\"\"\")\"","v":"20,955 cm (8,25\")"},{"$f":"LU_TrimSizes[[#This Row],[Cover W In]]&\"\"\" x \"&LU_TrimSizes[[#This Row],[Cover Height In]]&\"\"\"\"","v":"11,00667\" x 8,25\""},{"$f":"LU_TrimSizes[[#This Row],[Cover W (cm)]]&\" cm x \"&LU_TrimSizes[[#This Row],[Cover Height CM]]&\" cm\"","v":"27,95692 cm x 20,955 cm"},{"$f":"ROUND(LU_TrimSizes[[#This Row],[Cover W In]]-0.5, 5)","v":10.50667},{"$f":"ROUND(LU_TrimSizes[[#This Row],[Cover W (cm)]]-1.27, 5)","v":26.686920000000001},{"$f":"LU_TrimSizes[[#This Row],[Cover Safe Zone W cm]]&\" cm (\"&LU_TrimSizes[[#This Row],[Cover Safe Zone W (in)]]&\"\"\")\"","v":"26,68692 cm (10,50667\")"},{"$f":"LU_TrimSizes[[#This Row],[Cover Safe Zone H cm]]&\" cm (\"&LU_TrimSizes[[#This Row],[Cover Safe Zone H in]]&\"\"\")\"","v":"19,685 cm (7,75\")"},{"$f":"ROUND(LU_TrimSizes[[#This Row],[Cover Height In]]-0.5, 5)","v":7.75},{"$f":"ROUND(LU_TrimSizes[[#This Row],[Cover Height CM]]-1.27, 5)","v":19.684999999999999},{"$f":"LU_TrimSizes[[#This Row],[Cover Safe Zone W (in)]]&\"\"\" x \"&LU_TrimSizes[[#This Row],[Cover Safe Zone H in]]&\"\"\"\"","v":"10,50667\" x 7,75\""},{"$f":"LU_TrimSizes[[#This Row],[Cover Safe Zone W cm]]&\" cm x \"&LU_TrimSizes[[#This Row],[Cover Safe Zone H cm]]&\" cm\"","v":"26,68692 cm x 19,685 cm"},776,828,828]
[2,"Manuscript","No Bleed Manuscript Layout","Gutter Margin","=mMarginG",null,{"$f":"LU_InkPaper[[#This Row],[Ink]]&\" & \"&LU_InkPaper[[#This Row],[Paper]]","v":"Encre de couleur & papier blanc"},"Encre de couleur","papier blanc",2.3470000000000001E-3,{"$f":"ROUND(J4*mm,5)","v":5.9610000000000003E-2},{"$f":"ROUND(LU_InkPaper[[#This Row],[Page thickness (Inches)]]*cm, 5)","v":5.96E-3},null,"Bleed W","Bleed H",null,null,26,0.375,0.25,0.375,9.5250000000000004,"9,525 mm (0,375\")",null,"12,85 x 19,84 cm (5,06\" x 7,81\")",5.0599999999999996,7.81,"5.06\" x 7.81\"",12.85,19.84,"(12.85 x 19.84 cm)","12,85 x 19,84 cm (5,06\" x 7,81\")",{"$f":"LU_TrimSizes[[#This Row],[Trim Width (cm)]]&\" cm (\"&LU_TrimSizes[[#This Row],[Trim Width (in)]]&\"\"\")\"","v":"12,85 cm (5,06\")"},{"$f":"LU_TrimSizes[[#This Row],[Trim Height (cm)]]&\" cm (\"&LU_TrimSizes[[#This Row],[Trim Height (in)]]&\"\"\")\"","v":"19,84 cm (7,81\")"},{"$f":"ROUND(LU_TrimSizes[[#This Row],[Trim Width (in)]]+0.125, 5)&\"\"\"\"","v":"5,185\""},{"$f":"ROUND(LU_TrimSizes[[#This Row],[Trim Height (in)]]+0.25, 5)&\"\"\"\"","v":"8,06\""},{"$f":"LU_TrimSizes[[#This Row],[Trim W Bleed (cm)]]&\" (\"&LU_TrimSizes[[#This Row],[Trim W Bleed (in)]]&\")\"","v":"13,1699 cm (5,185\")"},{"$f":"LU_TrimSizes[[#This Row],[Trim H Bleed (cm)]]&\" (\"&LU_TrimSizes[[#This Row],[Trim H Bleed (in)]]&\")\"","v":"20,4724 cm (8,06\")"},{"$f":"ROUND(LU_TrimSizes[[#This Row],[Trim Width (in)]]*cm+blcmw, 5)&\" cm\"","v":"13,1699 cm"},{"$f":"ROUND(LU_TrimSizes[[#This Row],[Trim Height (in)]]*cm+blcmh, 5)&\" cm\"","v":"20,4724 cm"},{"$f":"LU_TrimSizes[[#This Row],[Trim W Bleed (in)]]&\" x \"&LU_TrimSizes[[#This Row],[Trim H Bleed (in)]]","v":"5,185\" x 8,06\""},{"$f":"LU_TrimSizes[[#This Row],[Trim W Bleed (cm)]]&\" x \"&LU_TrimSizes[[#This Row],[Trim H Bleed (cm)]]","v":"13,1699 cm x 20,4724 cm"},{"$f":"ROUND(LU_TrimSizes[[#This Row],[Trim Width (in)]]-GutterINmath-MarginOinMath, 5)","v":4.4349999999999996},{"$f":"ROUND(LU_TrimSizes[[#This Row],[Trim Width (cm)]]-GutterCMmath-MarginOcmMath, 5)","v":11.262499999999999},{"$f":"LU_TrimSizes[[#This Row],[Manuscript Safe Zone W cm]]&\" cm (\"&LU_TrimSizes[[#This Row],[Manuscript Safe Zone W in]]&\"\"\")\"","v":"11,2625 cm (4,435\")"},{"$f":"ROUND(LU_TrimSizes[[#This Row],[Trim Height (in)]]-MarginOinMath-MarginOinMath, 5)","v":7.31},{"$f":"ROUND(LU_TrimSizes[[#This Row],[Trim Height (cm)]]-MarginOcmMath-MarginOcmMath, 5)","v":18.57},{"$f":"LU_TrimSizes[[#This Row],[Manuscript Safe Zone H (cm)]]&\" cm (\"&LU_TrimSizes[[#This Row],[Manuscript Safe Zone H in]]&\"\"\")\"","v":"18,57 cm (7,31\")"},{"$f":"LU_TrimSizes[[#This Row],[Manuscript Safe Zone W in]]&\"\"\" x \"&LU_TrimSizes[[#This Row],[Manuscript Safe Zone H in]]&\"\"\"\"","v":"4,435\" x 7,31\""},{"$f":"LU_TrimSizes[[#This Row],[Manuscript Safe Zone W cm]]&\" cm x \"&LU_TrimSizes[[#This Row],[Manuscript Safe Zone H (cm)]]&\" cm\"","v":"11,2625 cm x 18,57 cm"},{"$f":"ROUND(CBleedLin+LU_TrimSizes[[#This Row],[Trim Width (in)]]+SpineWidthInMath+LU_TrimSizes[[#This Row],[Trim Width (in)]]+CBleedRIn, 5)","v":11.126670000000001},{"$f":"ROUND(LU_TrimSizes[[#This Row],[Trim Width (cm)]]+CBleedLcm+SpineWidthCmMath+CBleedRcm+LU_TrimSizes[[#This Row],[Trim Width (cm)]], 5)","v":28.256920000000001},{"$f":"LU_TrimSizes[[#This Row],[Cover W (cm)]]&\" cm (\"&LU_TrimSizes[[#This Row],[Cover W In]]&\" cm)\"","v":"28,25692 cm (11,12667 cm)"},{"$f":"ROUND(CBleedTIn+LU_TrimSizes[[#This Row],[Trim Height (in)]]+CBleedBIn, 5)","v":8.06},{"$f":"ROUND(CBleedTcm+LU_TrimSizes[[#This Row],[Trim Height (cm)]]+CBleedBcm, 5)","v":20.475000000000001},{"$f":"LU_TrimSizes[[#This Row],[Cover Height CM]]&\" cm (\"&LU_TrimSizes[[#This Row],[Cover Height In]]&\"\"\")\"","v":"20,475 cm (8,06\")"},{"$f":"LU_TrimSizes[[#This Row],[Cover W In]]&\"\"\" x \"&LU_TrimSizes[[#This Row],[Cover Height In]]&\"\"\"\"","v":"11,12667\" x 8,06\""},{"$f":"LU_TrimSizes[[#This Row],[Cover W (cm)]]&\" cm x \"&LU_TrimSizes[[#This Row],[Cover Height CM]]&\" cm\"","v":"28,25692 cm x 20,475 cm"},{"$f":"ROUND(LU_TrimSizes[[#This Row],[Cover W In]]-0.5, 5)","v":10.626670000000001},{"$f":"ROUND(LU_TrimSizes[[#This Row],[Cover W (cm)]]-1.27, 5)","v":26.986920000000001},{"$f":"LU_TrimSizes[[#This Row],[Cover Safe Zone W cm]]&\" cm (\"&LU_TrimSizes[[#This Row],[Cover Safe Zone W (in)]]&\"\"\")\"","v":"26,98692 cm (10,62667\")"},{"$f":"LU_TrimSizes[[#This Row],[Cover Safe Zone H cm]]&\" cm (\"&LU_TrimSizes[[#This Row],[Cover Safe Zone H in]]&\"\"\")\"","v":"19,205 cm (7,56\")"},{"$f":"ROUND(LU_TrimSizes[[#This Row],[Cover Height In]]-0.5, 5)","v":7.56},{"$f":"ROUND(LU_TrimSizes[[#This Row],[Cover Height CM]]-1.27, 5)","v":19.204999999999998},{"$f":"LU_TrimSizes[[#This Row],[Cover Safe Zone W (in)]]&\"\"\" x \"&LU_TrimSizes[[#This Row],[Cover Safe Zone H in]]&\"\"\"\"","v":"10,62667\" x 7,56\""},{"$f":"LU_TrimSizes[[#This Row],[Cover Safe Zone W cm]]&\" cm x \"&LU_TrimSizes[[#This Row],[Cover Safe Zone H cm]]&\" cm\"","v":"26,98692 cm x 19,205 cm"},776,828,828]
[3,"Manuscript","No Bleed Manuscript Layout","No Bleed Manuscript Size",null,null,null,null,null,null,null,null,"In",0.125,0.25,null,null,27,0.375,0.25,0.375,9.5250000000000004,"9,525 mm (0,375\")",null,"13,34 x 20,32 cm (5,25\" x 8\")",5.25,8,"5.25\" x 8\"",13.34,20.32,"(13.34 x 20.32 cm)","13,34 x 20,32 cm (5,25\" x 8\")",{"$f":"LU_TrimSizes[[#This Row],[Trim Width (cm)]]&\" cm (\"&LU_TrimSizes[[#This Row],[Trim Width (in)]]&\"\"\")\"","v":"13,34 cm (5,25\")"},{"$f":"LU_TrimSizes[[#This Row],[Trim Height (cm)]]&\" cm (\"&LU_TrimSizes[[#This Row],[Trim Height (in)]]&\"\"\")\"","v":"20,32 cm (8\")"},{"$f":"ROUND(LU_TrimSizes[[#This Row],[Trim Width (in)]]+0.125, 5)&\"\"\"\"","v":"5,375\""},{"$f":"ROUND(LU_TrimSizes[[#This Row],[Trim Height (in)]]+0.25, 5)&\"\"\"\"","v":"8,25\""},{"$f":"LU_TrimSizes[[#This Row],[Trim W Bleed (cm)]]&\" (\"&LU_TrimSizes[[#This Row],[Trim W Bleed (in)]]&\")\"","v":"13,6525 cm (5,375\")"},{"$f":"LU_TrimSizes[[#This Row],[Trim H Bleed (cm)]]&\" (\"&LU_TrimSizes[[#This Row],[Trim H Bleed (in)]]&\")\"","v":"20,955 cm (8,25\")"},{"$f":"ROUND(LU_TrimSizes[[#This Row],[Trim Width (in)]]*cm+blcmw, 5)&\" cm\"","v":"13,6525 cm"},{"$f":"ROUND(LU_TrimSizes[[#This Row],[Trim Height (in)]]*cm+blcmh, 5)&\" cm\"","v":"20,955 cm"},{"$f":"LU_TrimSizes[[#This Row],[Trim W Bleed (in)]]&\" x \"&LU_TrimSizes[[#This Row],[Trim H Bleed (in)]]","v":"5,375\" x 8,25\""},{"$f":"LU_TrimSizes[[#This Row],[Trim W Bleed (cm)]]&\" x \"&LU_TrimSizes[[#This Row],[Trim H Bleed (cm)]]","v":"13,6525 cm x 20,955 cm"},{"$f":"ROUND(LU_TrimSizes[[#This Row],[Trim Width (in)]]-GutterINmath-MarginOinMath, 5)","v":4.625},{"$f":"ROUND(LU_TrimSizes[[#This Row],[Trim Width (cm)]]-GutterCMmath-MarginOcmMath, 5)","v":11.7525},{"$f":"LU_TrimSizes[[#This Row],[Manuscript Safe Zone W cm]]&\" cm (\"&LU_TrimSizes[[#This Row],[Manuscript Safe Zone W in]]&\"\"\")\"","v":"11,7525 cm (4,625\")"},{"$f":"ROUND(LU_TrimSizes[[#This Row],[Trim Height (in)]]-MarginOinMath-MarginOinMath, 5)","v":7.5},{"$f":"ROUND(LU_TrimSizes[[#This Row],[Trim Height (cm)]]-MarginOcmMath-MarginOcmMath, 5)","v":19.05},{"$f":"LU_TrimSizes[[#This Row],[Manuscript Safe Zone H (cm)]]&\" cm (\"&LU_TrimSizes[[#This Row],[Manuscript Safe Zone H in]]&\"\"\")\"","v":"19,05 cm (7,5\")"},{"$f":"LU_TrimSizes[[#This Row],[Manuscript Safe Zone W in]]&\"\"\" x \"&LU_TrimSizes[[#This Row],[Manuscript Safe Zone H in]]&\"\"\"\"","v":"4,625\" x 7,5\""},{"$f":"LU_TrimSizes[[#This Row],[Manuscript Safe Zone W cm]]&\" cm x \"&LU_TrimSizes[[#This Row],[Manuscript Safe Zone H (cm)]]&\" cm\"","v":"11,7525 cm x 19,05 cm"},{"$f":"ROUND(CBleedLin+LU_TrimSizes[[#This Row],[Trim Width (in)]]+SpineWidthInMath+LU_TrimSizes[[#This Row],[Trim Width (in)]]+CBleedRIn, 5)","v":11.50667},{"$f":"ROUND(LU_TrimSizes[[#This Row],[Trim Width (cm)]]+CBleedLcm+SpineWidthCmMath+CBleedRcm+LU_TrimSizes[[#This Row],[Trim Width (cm)]], 5)","v":29.236920000000001},{"$f":"LU_TrimSizes[[#This Row],[Cover W (cm)]]&\" cm (\"&LU_TrimSizes[[#This Row],[Cover W In]]&\" cm)\"","v":"29,23692 cm (11,50667 cm)"},{"$f":"ROUND(CBleedTIn+LU_TrimSizes[[#This Row],[Trim Height (in)]]+CBleedBIn, 5)","v":8.25},{"$f":"ROUND(CBleedTcm+LU_TrimSizes[[#This Row],[Trim Height (cm)]]+CBleedBcm, 5)","v":20.954999999999998},{"$f":"LU_TrimSizes[[#This Row],[Cover Height CM]]&\" cm (\"&LU_TrimSizes[[#This Row],[Cover Height In]]&\"\"\")\"","v":"20,955 cm (8,25\")"},{"$f":"LU_TrimSizes[[#This Row],[Cover W In]]&\"\"\" x \"&LU_TrimSizes[[#This Row],[Cover Height In]]&\"\"\"\"","v":"11,50667\" x 8,25\""},{"$f":"LU_TrimSizes[[#This Row],[Cover W (cm)]]&\" cm x \"&LU_TrimSizes[[#This Row],[Cover Height CM]]&\" cm\"","v":"29,23692 cm x 20,955 cm"},{"$f":"ROUND(LU_TrimSizes[[#This Row],[Cover W In]]-0.5, 5)","v":11.00667},{"$f":"ROUND(LU_TrimSizes[[#This Row],[Cover W (cm)]]-1.27, 5)","v":27.966919999999998},{"$f":"LU_TrimSizes[[#This Row],[Cover Safe Zone W cm]]&\" cm (\"&LU_TrimSizes[[#This Row],[Cover Safe Zone W (in)]]&\"\"\")\"","v":"27,96692 cm (11,00667\")"},{"$f":"LU_TrimSizes[[#This Row],[Cover Safe Zone H cm]]&\" cm (\"&LU_TrimSizes[[#This Row],[Cover Safe Zone H in]]&\"\"\")\"","v":"19,685 cm (7,75\")"},{"$f":"ROUND(LU_TrimSizes[[#This Row],[Cover Height In]]-0.5, 5)","v":7.75},{"$f":"ROUND(LU_TrimSizes[[#This Row],[Cover Height CM]]-1.27, 5)","v":19.684999999999999},{"$f":"LU_TrimSizes[[#This Row],[Cover Safe Zone W (in)]]&\"\"\" x \"&LU_TrimSizes[[#This Row],[Cover Safe Zone H in]]&\"\"\"\"","v":"11,00667\" x 7,75\""},{"$f":"LU_TrimSizes[[#This Row],[Cover Safe Zone W cm]]&\" cm x \"&LU_TrimSizes[[#This Row],[Cover Safe Zone H cm]]&\" cm\"","v":"27,96692 cm x 19,685 cm"},776,828,828]
[4,"Manuscript","No Bleed Manuscript Layout","Trim Size","=ITrimSize",null,null,null,null,null,null,null,"cm",{"$f":"N5*cm","v":0.3175},{"$f":"O5*cm","v":0.63500000000000001},null,null,28,0.375,0.25,0.375,9.5250000000000004,"9,525 mm (0,375\")",null,"13,97 x 21,59 cm (5,5\" x 8,5\")",5.5,8.5,"5.5\" x 8.5\"",13.97,21.59,"(13.97 x 21.59 cm)","13,97 x 21,59 cm (5,5\" x 8,5\")",{"$f":"LU_TrimSizes[[#This Row],[Trim Width (cm)]]&\" cm (\"&LU_TrimSizes[[#This Row],[Trim Width (in)]]&\"\"\")\"","v":"13,97 cm (5,5\")"},{"$f":"LU_TrimSizes[[#This Row],[Trim Height (cm)]]&\" cm (\"&LU_TrimSizes[[#This Row],[Trim Height (in)]]&\"\"\")\"","v":"21,59 cm (8,5\")"},{"$f":"ROUND(LU_TrimSizes[[#This Row],[Trim Width (in)]]+0.125, 5)&\"\"\"\"","v":"5,625\""},{"$f":"ROUND(LU_TrimSizes[[#This Row],[Trim Height (in)]]+0.25, 5)&\"\"\"\"","v":"8,75\""},{"$f":"LU_TrimSizes[[#This Row],[Trim W Bleed (cm)]]&\" (\"&LU_TrimSizes[[#This Row],[Trim W Bleed (in)]]&\")\"","v":"14,2875 cm (5,625\")"},{"$f":"LU_TrimSizes[[#This Row],[Trim H Bleed (cm)]]&\" (\"&LU_TrimSizes[[#This Row],[Trim H Bleed (in)]]&\")\"","v":"22,225 cm (8,75\")"},{"$f":"ROUND(LU_TrimSizes[[#This Row],[Trim Width (in)]]*cm+blcmw, 5)&\" cm\"","v":"14,2875 cm"},{"$f":"ROUND(LU_TrimSizes[[#This Row],[Trim Height (in)]]*cm+blcmh, 5)&\" cm\"","v":"22,225 cm"},{"$f":"LU_TrimSizes[[#This Row],[Trim W Bleed (in)]]&\" x \"&LU_TrimSizes[[#This Row],[Trim H Bleed (in)]]","v":"5,625\" x 8,75\""},{"$f":"LU_TrimSizes[[#This Row],[Trim W Bleed (cm)]]&\" x \"&LU_TrimSizes[[#This Row],[Trim H Bleed (cm)]]","v":"14,2875 cm x 22,225 cm"},{"$f":"ROUND(LU_TrimSizes[[#This Row],[Trim Width (in)]]-GutterINmath-MarginOinMath, 5)","v":4.875},{"$f":"ROUND(LU_TrimSizes[[#This Row],[Trim Width (cm)]]-GutterCMmath-MarginOcmMath, 5)","v":12.3825},{"$f":"LU_TrimSizes[[#This Row],[Manuscript Safe Zone W cm]]&\" cm (\"&LU_TrimSizes[[#This Row],[Manuscript Safe Zone W in]]&\"\"\")\"","v":"12,3825 cm (4,875\")"},{"$f":"ROUND(LU_TrimSizes[[#This Row],[Trim Height (in)]]-MarginOinMath-MarginOinMath, 5)","v":8},{"$f":"ROUND(LU_TrimSizes[[#This Row],[Trim Height (cm)]]-MarginOcmMath-MarginOcmMath, 5)","v":20.32},{"$f":"LU_TrimSizes[[#This Row],[Manuscript Safe Zone H (cm)]]&\" cm (\"&LU_TrimSizes[[#This Row],[Manuscript Safe Zone H in]]&\"\"\")\"","v":"20,32 cm (8\")"},{"$f":"LU_TrimSizes[[#This Row],[Manuscript Safe Zone W in]]&\"\"\" x \"&LU_TrimSizes[[#This Row],[Manuscript Safe Zone H in]]&\"\"\"\"","v":"4,875\" x 8\""},{"$f":"LU_TrimSizes[[#This Row],[Manuscript Safe Zone W cm]]&\" cm x \"&LU_TrimSizes[[#This Row],[Manuscript Safe Zone H (cm)]]&\" cm\"","v":"12,3825 cm x 20,32 cm"},{"$f":"ROUND(CBleedLin+LU_TrimSizes[[#This Row],[Trim Width (in)]]+SpineWidthInMath+LU_TrimSizes[[#This Row],[Trim Width (in)]]+CBleedRIn, 5)","v":12.00667},{"$f":"ROUND(LU_TrimSizes[[#This Row],[Trim Width (cm)]]+CBleedLcm+SpineWidthCmMath+CBleedRcm+LU_TrimSizes[[#This Row],[Trim Width (cm)]], 5)","v":30.496919999999999},{"$f":"LU_TrimSizes[[#This Row],[Cover W (cm)]]&\" cm (\"&LU_TrimSizes[[#This Row],[Cover W In]]&\" cm)\"","v":"30,49692 cm (12,00667 cm)"},{"$f":"ROUND(CBleedTIn+LU_TrimSizes[[#This Row],[Trim Height (in)]]+CBleedBIn, 5)","v":8.75},{"$f":"ROUND(CBleedTcm+LU_TrimSizes[[#This Row],[Trim Height (cm)]]+CBleedBcm, 5)","v":22.225000000000001},{"$f":"LU_TrimSizes[[#This Row],[Cover Height CM]]&\" cm (\"&LU_TrimSizes[[#This Row],[Cover Height In]]&\"\"\")\"","v":"22,225 cm (8,75\")"},{"$f":"LU_TrimSizes[[#This Row],[Cover W In]]&\"\"\" x \"&LU_TrimSizes[[#This Row],[Cover Height In]]&\"\"\"\"","v":"12,00667\" x 8,75\""},{"$f":"LU_TrimSizes[[#This Row],[Cover W (cm)]]&\" cm x \"&LU_TrimSizes[[#This Row],[Cover Height CM]]&\" cm\"","v":"30,49692 cm x 22,225 cm"},{"$f":"ROUND(LU_TrimSizes[[#This Row],[Cover W In]]-0.5, 5)","v":11.50667},{"$f":"ROUND(LU_TrimSizes[[#This Row],[Cover W (cm)]]-1.27, 5)","v":29.22692},{"$f":"LU_TrimSizes[[#This Row],[Cover Safe Zone W cm]]&\" cm (\"&LU_TrimSizes[[#This Row],[Cover Safe Zone W (in)]]&\"\"\")\"","v":"29,22692 cm (11,50667\")"},{"$f":"LU_TrimSizes[[#This Row],[Cover Safe Zone H cm]]&\" cm (\"&LU_TrimSizes[[#This Row],[Cover Safe Zone H in]]&\"\"\")\"","v":"20,955 cm (8,25\")"},{"$f":"ROUND(LU_TrimSizes[[#This Row],[Cover Height In]]-0.5, 5)","v":8.25},{"$f":"ROUND(LU_TrimSizes[[#This Row],[Cover Height CM]]-1.27, 5)","v":20.954999999999998},{"$f":"LU_TrimSizes[[#This Row],[Cover Safe Zone W (in)]]&\"\"\" x \"&LU_TrimSizes[[#This Row],[Cover Safe Zone H in]]&\"\"\"\"","v":"11,50667\" x 8,25\""},{"$f":"LU_TrimSizes[[#This Row],[Cover Safe Zone W cm]]&\" cm x \"&LU_TrimSizes[[#This Row],[Cover Safe Zone H cm]]&\" cm\"","v":"29,22692 cm x 20,955 cm"},776,828,828]
[5,"Manuscript","No Bleed Manuscript Layout","Page Size","=SmnbPage",null,"Cover Bleed Area","Cover Bleed (In)","Cover Bleed (mm)","Cover Bleed (cm)",null,null,"mm",{"$f":"N5*mm","v":3.1749999999999998},{"$f":"O5*mm","v":6.35},null,null,29,0.375,0.25,0.375,9.5250000000000004,"9,525 mm (0,375\")",null,"15,24 x 22,86 cm (6\" x 9\")",6,9,"6\" x 9\"",15.24,22.86,"(15.24 x 22.86 cm)","15,24 x 22,86 cm (6\" x 9\")",{"$f":"LU_TrimSizes[[#This Row],[Trim Width (cm)]]&\" cm (\"&LU_TrimSizes[[#This Row],[Trim Width (in)]]&\"\"\")\"","v":"15,24 cm (6\")"},{"$f":"LU_TrimSizes[[#This Row],[Trim Height (cm)]]&\" cm (\"&LU_TrimSizes[[#This Row],[Trim Height (in)]]&\"\"\")\"","v":"22,86 cm (9\")"},{"$f":"ROUND(LU_TrimSizes[[#This Row],[Trim Width (in)]]+0.125, 5)&\"\"\"\"","v":"6,125\""},{"$f":"ROUND(LU_TrimSizes[[#This Row],[Trim Height (in)]]+0.25, 5)&\"\"\"\"","v":"9,25\""},{"$f":"LU_TrimSizes[[#This Row],[Trim W Bleed (cm)]]&\" (\"&LU_TrimSizes[[#This Row],[Trim W Bleed (in)]]&\")\"","v":"15,5575 cm (6,125\")"},{"$f":"LU_TrimSizes[[#This Row],[Trim H Bleed (cm)]]&\" (\"&LU_TrimSizes[[#This Row],[Trim H Bleed (in)]]&\")\"","v":"23,495 cm (9,25\")"},{"$f":"ROUND(LU_TrimSizes[[#This Row],[Trim Width (in)]]*cm+blcmw, 5)&\" cm\"","v":"15,5575 cm"},{"$f":"ROUND(LU_TrimSizes[[#This Row],[Trim Height (in)]]*cm+blcmh, 5)&\" cm\"","v":"23,495 cm"},{"$f":"LU_TrimSizes[[#This Row],[Trim W Bleed (in)]]&\" x \"&LU_TrimSizes[[#This Row],[Trim H Bleed (in)]]","v":"6,125\" x 9,25\""},{"$f":"LU_TrimSizes[[#This Row],[Trim W Bleed (cm)]]&\" x \"&LU_TrimSizes[[#This Row],[Trim H Bleed (cm)]]","v":"15,5575 cm x 23,495 cm"},{"$f":"ROUND(LU_TrimSizes[[#This Row],[Trim Width (in)]]-GutterINmath-MarginOinMath, 5)","v":5.375},{"$f":"ROUND(LU_TrimSizes[[#This Row],[Trim Width (cm)]]-GutterCMmath-MarginOcmMath, 5)","v":13.6525},{"$f":"LU_TrimSizes[[#This Row],[Manuscript Safe Zone W cm]]&\" cm (\"&LU_TrimSizes[[#This Row],[Manuscript Safe Zone W in]]&\"\"\")\"","v":"13,6525 cm (5,375\")"},{"$f":"ROUND(LU_TrimSizes[[#This Row],[Trim Height (in)]]-MarginOinMath-MarginOinMath, 5)","v":8.5},{"$f":"ROUND(LU_TrimSizes[[#This Row],[Trim Height (cm)]]-MarginOcmMath-MarginOcmMath, 5)","v":21.59},{"$f":"LU_TrimSizes[[#This Row],[Manuscript Safe Zone H (cm)]]&\" cm (\"&LU_TrimSizes[[#This Row],[Manuscript Safe Zone H in]]&\"\"\")\"","v":"21,59 cm (8,5\")"},{"$f":"LU_TrimSizes[[#This Row],[Manuscript Safe Zone W in]]&\"\"\" x \"&LU_TrimSizes[[#This Row],[Manuscript Safe Zone H in]]&\"\"\"\"","v":"5,375\" x 8,5\""},{"$f":"LU_TrimSizes[[#This Row],[Manuscript Safe Zone W cm]]&\" cm x \"&LU_TrimSizes[[#This Row],[Manuscript Safe Zone H (cm)]]&\" cm\"","v":"13,6525 cm x 21,59 cm"},{"$f":"ROUND(CBleedLin+LU_TrimSizes[[#This Row],[Trim Width (in)]]+SpineWidthInMath+LU_TrimSizes[[#This Row],[Trim Width (in)]]+CBleedRIn, 5)","v":13.00667},{"$f":"ROUND(LU_TrimSizes[[#This Row],[Trim Width (cm)]]+CBleedLcm+SpineWidthCmMath+CBleedRcm+LU_TrimSizes[[#This Row],[Trim Width (cm)]], 5)","v":33.036920000000002},{"$f":"LU_TrimSizes[[#This Row],[Cover W (cm)]]&\" cm (\"&LU_TrimSizes[[#This Row],[Cover W In]]&\" cm)\"","v":"33,03692 cm (13,00667 cm)"},{"$f":"ROUND(CBleedTIn+LU_TrimSizes[[#This Row],[Trim Height (in)]]+CBleedBIn, 5)","v":9.25},{"$f":"ROUND(CBleedTcm+LU_TrimSizes[[#This Row],[Trim Height (cm)]]+CBleedBcm, 5)","v":23.495000000000001},{"$f":"LU_TrimSizes[[#This Row],[Cover Height CM]]&\" cm (\"&LU_TrimSizes[[#This Row],[Cover Height In]]&\"\"\")\"","v":"23,495 cm (9,25\")"},{"$f":"LU_TrimSizes[[#This Row],[Cover W In]]&\"\"\" x \"&LU_TrimSizes[[#This Row],[Cover Height In]]&\"\"\"\"","v":"13,00667\" x 9,25\""},{"$f":"LU_TrimSizes[[#This Row],[Cover W (cm)]]&\" cm x \"&LU_TrimSizes[[#This Row],[Cover Height CM]]&\" cm\"","v":"33,03692 cm x 23,495 cm"},{"$f":"ROUND(LU_TrimSizes[[#This Row],[Cover W In]]-0.5, 5)","v":12.50667},{"$f":"ROUND(LU_TrimSizes[[#This Row],[Cover W (cm)]]-1.27, 5)","v":31.766919999999999},{"$f":"LU_TrimSizes[[#This Row],[Cover Safe Zone W cm]]&\" cm (\"&LU_TrimSizes[[#This Row],[Cover Safe Zone W (in)]]&\"\"\")\"","v":"31,76692 cm (12,50667\")"},{"$f":"LU_TrimSizes[[#This Row],[Cover Safe Zone H cm]]&\" cm (\"&LU_TrimSizes[[#This Row],[Cover Safe Zone H in]]&\"\"\")\"","v":"22,225 cm (8,75\")"},{"$f":"ROUND(LU_TrimSizes[[#This Row],[Cover Height In]]-0.5, 5)","v":8.75},{"$f":"ROUND(LU_TrimSizes[[#This Row],[Cover Height CM]]-1.27, 5)","v":22.225000000000001},{"$f":"LU_TrimSizes[[#This Row],[Cover Safe Zone W (in)]]&\"\"\" x \"&LU_TrimSizes[[#This Row],[Cover Safe Zone H in]]&\"\"\"\"","v":"12,50667\" x 8,75\""},{"$f":"LU_TrimSizes[[#This Row],[Cover Safe Zone W cm]]&\" cm x \"&LU_TrimSizes[[#This Row],[Cover Safe Zone H cm]]&\" cm\"","v":"31,76692 cm x 22,225 cm"},776,828,828]
[6,"Manuscript","No Bleed Manuscript Layout","Safe Zone Size","=SmSafeZone",null,"Cover Bleed L",0.125,{"$f":"ROUND(LU_CoverBleed[[#This Row],[Cover Bleed (In)]]*mm, 5)","v":3.1749999999999998},{"$f":"ROUND(LU_CoverBleed[[#This Row],[Cover Bleed (In)]]*cm, 5)","v":0.3175},null,null,"mBleedName",null,null,null,null,30,0.375,0.25,0.375,9.5250000000000004,"9,525 mm (0,375\")",null,"15,6 x 23,39 cm (6,14\" x 9,21\")",6.14,9.2100000000000009,"6.14\" x 9.21\"",15.6,23.39,"(15.6 x 23.39 cm)","15,6 x 23,39 cm (6,14\" x 9,21\")",{"$f":"LU_TrimSizes[[#This Row],[Trim Width (cm)]]&\" cm (\"&LU_TrimSizes[[#This Row],[Trim Width (in)]]&\"\"\")\"","v":"15,6 cm (6,14\")"},{"$f":"LU_TrimSizes[[#This Row],[Trim Height (cm)]]&\" cm (\"&LU_TrimSizes[[#This Row],[Trim Height (in)]]&\"\"\")\"","v":"23,39 cm (9,21\")"},{"$f":"ROUND(LU_TrimSizes[[#This Row],[Trim Width (in)]]+0.125, 5)&\"\"\"\"","v":"6,265\""},{"$f":"ROUND(LU_TrimSizes[[#This Row],[Trim Height (in)]]+0.25, 5)&\"\"\"\"","v":"9,46\""},{"$f":"LU_TrimSizes[[#This Row],[Trim W Bleed (cm)]]&\" (\"&LU_TrimSizes[[#This Row],[Trim W Bleed (in)]]&\")\"","v":"15,9131 cm (6,265\")"},{"$f":"LU_TrimSizes[[#This Row],[Trim H Bleed (cm)]]&\" (\"&LU_TrimSizes[[#This Row],[Trim H Bleed (in)]]&\")\"","v":"24,0284 cm (9,46\")"},{"$f":"ROUND(LU_TrimSizes[[#This Row],[Trim Width (in)]]*cm+blcmw, 5)&\" cm\"","v":"15,9131 cm"},{"$f":"ROUND(LU_TrimSizes[[#This Row],[Trim Height (in)]]*cm+blcmh, 5)&\" cm\"","v":"24,0284 cm"},{"$f":"LU_TrimSizes[[#This Row],[Trim W Bleed (in)]]&\" x \"&LU_TrimSizes[[#This Row],[Trim H Bleed (in)]]","v":"6,265\" x 9,46\""},{"$f":"LU_TrimSizes[[#This Row],[Trim W Bleed (cm)]]&\" x \"&LU_TrimSizes[[#This Row],[Trim H Bleed (cm)]]","v":"15,9131 cm x 24,0284 cm"},{"$f":"ROUND(LU_TrimSizes[[#This Row],[Trim Width (in)]]-GutterINmath-MarginOinMath, 5)","v":5.5149999999999997},{"$f":"ROUND(LU_TrimSizes[[#This Row],[Trim Width (cm)]]-GutterCMmath-MarginOcmMath, 5)","v":14.012499999999999},{"$f":"LU_TrimSizes[[#This Row],[Manuscript Safe Zone W cm]]&\" cm (\"&LU_TrimSizes[[#This Row],[Manuscript Safe Zone W in]]&\"\"\")\"","v":"14,0125 cm (5,515\")"},{"$f":"ROUND(LU_TrimSizes[[#This Row],[Trim Height (in)]]-MarginOinMath-MarginOinMath, 5)","v":8.7100000000000009},{"$f":"ROUND(LU_TrimSizes[[#This Row],[Trim Height (cm)]]-MarginOcmMath-MarginOcmMath, 5)","v":22.12},{"$f":"LU_TrimSizes[[#This Row],[Manuscript Safe Zone H (cm)]]&\" cm (\"&LU_TrimSizes[[#This Row],[Manuscript Safe Zone H in]]&\"\"\")\"","v":"22,12 cm (8,71\")"},{"$f":"LU_TrimSizes[[#This Row],[Manuscript Safe Zone W in]]&\"\"\" x \"&LU_TrimSizes[[#This Row],[Manuscript Safe Zone H in]]&\"\"\"\"","v":"5,515\" x 8,71\""},{"$f":"LU_TrimSizes[[#This Row],[Manuscript Safe Zone W cm]]&\" cm x \"&LU_TrimSizes[[#This Row],[Manuscript Safe Zone H (cm)]]&\" cm\"","v":"14,0125 cm x 22,12 cm"},{"$f":"ROUND(CBleedLin+LU_TrimSizes[[#This Row],[Trim Width (in)]]+SpineWidthInMath+LU_TrimSizes[[#This Row],[Trim Width (in)]]+CBleedRIn, 5)","v":13.286670000000001},{"$f":"ROUND(LU_TrimSizes[[#This Row],[Trim Width (cm)]]+CBleedLcm+SpineWidthCmMath+CBleedRcm+LU_TrimSizes[[#This Row],[Trim Width (cm)]], 5)","v":33.756920000000001},{"$f":"LU_TrimSizes[[#This Row],[Cover W (cm)]]&\" cm (\"&LU_TrimSizes[[#This Row],[Cover W In]]&\" cm)\"","v":"33,75692 cm (13,28667 cm)"},{"$f":"ROUND(CBleedTIn+LU_TrimSizes[[#This Row],[Trim Height (in)]]+CBleedBIn, 5)","v":9.4600000000000009},{"$f":"ROUND(CBleedTcm+LU_TrimSizes[[#This Row],[Trim Height (cm)]]+CBleedBcm, 5)","v":24.024999999999999},{"$f":"LU_TrimSizes[[#This Row],[Cover Height CM]]&\" cm (\"&LU_TrimSizes[[#This Row],[Cover Height In]]&\"\"\")\"","v":"24,025 cm (9,46\")"},{"$f":"LU_TrimSizes[[#This Row],[Cover W In]]&\"\"\" x \"&LU_TrimSizes[[#This Row],[Cover Height In]]&\"\"\"\"","v":"13,28667\" x 9,46\""},{"$f":"LU_TrimSizes[[#This Row],[Cover W (cm)]]&\" cm x \"&LU_TrimSizes[[#This Row],[Cover Height CM]]&\" cm\"","v":"33,75692 cm x 24,025 cm"},{"$f":"ROUND(LU_TrimSizes[[#This Row],[Cover W In]]-0.5, 5)","v":12.786670000000001},{"$f":"ROUND(LU_TrimSizes[[#This Row],[Cover W (cm)]]-1.27, 5)","v":32.486919999999998},{"$f":"LU_TrimSizes[[#This Row],[Cover Safe Zone W cm]]&\" cm (\"&LU_TrimSizes[[#This Row],[Cover Safe Zone W (in)]]&\"\"\")\"","v":"32,48692 cm (12,78667\")"},{"$f":"LU_TrimSizes[[#This Row],[Cover Safe Zone H cm]]&\" cm (\"&LU_TrimSizes[[#This Row],[Cover Safe Zone H in]]&\"\"\")\"","v":"22,755 cm (8,96\")"},{"$f":"ROUND(LU_TrimSizes[[#This Row],[Cover Height In]]-0.5, 5)","v":8.9600000000000009},{"$f":"ROUND(LU_TrimSizes[[#This Row],[Cover Height CM]]-1.27, 5)","v":22.754999999999999},{"$f":"LU_TrimSizes[[#This Row],[Cover Safe Zone W (in)]]&\"\"\" x \"&LU_TrimSizes[[#This Row],[Cover Safe Zone H in]]&\"\"\"\"","v":"12,78667\" x 8,96\""},{"$f":"LU_TrimSizes[[#This Row],[Cover Safe Zone W cm]]&\" cm x \"&LU_TrimSizes[[#This Row],[Cover Safe Zone H cm]]&\" cm\"","v":"32,48692 cm x 22,755 cm"},776,828,828]
[7,"Manuscript","Bleed Manuscript Layout","Manuscript Bleed Size","=CmbBleed",null,"Cover Bleed R",0.125,{"$f":"ROUND(LU_CoverBleed[[#This Row],[Cover Bleed (In)]]*mm, 5)","v":3.1749999999999998},{"$f":"ROUND(LU_CoverBleed[[#This Row],[Cover Bleed (In)]]*cm, 5)","v":0.3175},null,null,null,null,null,null,null,31,0.375,0.25,0.375,9.5250000000000004,"9,525 mm (0,375\")",null,"16,99 x 24,41 cm (6,69\" x 9,61\")",6.69,9.61,"6.69\" x 9.61\"",16.989999999999998,24.41,"(16.99 x 24.41 cm)","16,99 x 24,41 cm (6,69\" x 9,61\")",{"$f":"LU_TrimSizes[[#This Row],[Trim Width (cm)]]&\" cm (\"&LU_TrimSizes[[#This Row],[Trim Width (in)]]&\"\"\")\"","v":"16,99 cm (6,69\")"},{"$f":"LU_TrimSizes[[#This Row],[Trim Height (cm)]]&\" cm (\"&LU_TrimSizes[[#This Row],[Trim Height (in)]]&\"\"\")\"","v":"24,41 cm (9,61\")"},{"$f":"ROUND(LU_TrimSizes[[#This Row],[Trim Width (in)]]+0.125, 5)&\"\"\"\"","v":"6,815\""},{"$f":"ROUND(LU_TrimSizes[[#This Row],[Trim Height (in)]]+0.25, 5)&\"\"\"\"","v":"9,86\""},{"$f":"LU_TrimSizes[[#This Row],[Trim W Bleed (cm)]]&\" (\"&LU_TrimSizes[[#This Row],[Trim W Bleed (in)]]&\")\"","v":"17,3101 cm (6,815\")"},{"$f":"LU_TrimSizes[[#This Row],[Trim H Bleed (cm)]]&\" (\"&LU_TrimSizes[[#This Row],[Trim H Bleed (in)]]&\")\"","v":"25,0444 cm (9,86\")"},{"$f":"ROUND(LU_TrimSizes[[#This Row],[Trim Width (in)]]*cm+blcmw, 5)&\" cm\"","v":"17,3101 cm"},{"$f":"ROUND(LU_TrimSizes[[#This Row],[Trim Height (in)]]*cm+blcmh, 5)&\" cm\"","v":"25,0444 cm"},{"$f":"LU_TrimSizes[[#This Row],[Trim W Bleed (in)]]&\" x \"&LU_TrimSizes[[#This Row],[Trim H Bleed (in)]]","v":"6,815\" x 9,86\""},{"$f":"LU_TrimSizes[[#This Row],[Trim W Bleed (cm)]]&\" x \"&LU_TrimSizes[[#This Row],[Trim H Bleed (cm)]]","v":"17,3101 cm x 25,0444 cm"},{"$f":"ROUND(LU_TrimSizes[[#This Row],[Trim Width (in)]]-GutterINmath-MarginOinMath, 5)","v":6.0650000000000004},{"$f":"ROUND(LU_TrimSizes[[#This Row],[Trim Width (cm)]]-GutterCMmath-MarginOcmMath, 5)","v":15.4025},{"$f":"LU_TrimSizes[[#This Row],[Manuscript Safe Zone W cm]]&\" cm (\"&LU_TrimSizes[[#This Row],[Manuscript Safe Zone W in]]&\"\"\")\"","v":"15,4025 cm (6,065\")"},{"$f":"ROUND(LU_TrimSizes[[#This Row],[Trim Height (in)]]-MarginOinMath-MarginOinMath, 5)","v":9.11},{"$f":"ROUND(LU_TrimSizes[[#This Row],[Trim Height (cm)]]-MarginOcmMath-MarginOcmMath, 5)","v":23.14},{"$f":"LU_TrimSizes[[#This Row],[Manuscript Safe Zone H (cm)]]&\" cm (\"&LU_TrimSizes[[#This Row],[Manuscript Safe Zone H in]]&\"\"\")\"","v":"23,14 cm (9,11\")"},{"$f":"LU_TrimSizes[[#This Row],[Manuscript Safe Zone W in]]&\"\"\" x \"&LU_TrimSizes[[#This Row],[Manuscript Safe Zone H in]]&\"\"\"\"","v":"6,065\" x 9,11\""},{"$f":"LU_TrimSizes[[#This Row],[Manuscript Safe Zone W cm]]&\" cm x \"&LU_TrimSizes[[#This Row],[Manuscript Safe Zone H (cm)]]&\" cm\"","v":"15,4025 cm x 23,14 cm"},{"$f":"ROUND(CBleedLin+LU_TrimSizes[[#This Row],[Trim Width (in)]]+SpineWidthInMath+LU_TrimSizes[[#This Row],[Trim Width (in)]]+CBleedRIn, 5)","v":14.386670000000001},{"$f":"ROUND(LU_TrimSizes[[#This Row],[Trim Width (cm)]]+CBleedLcm+SpineWidthCmMath+CBleedRcm+LU_TrimSizes[[#This Row],[Trim Width (cm)]], 5)","v":36.536920000000002},{"$f":"LU_TrimSizes[[#This Row],[Cover W (cm)]]&\" cm (\"&LU_TrimSizes[[#This Row],[Cover W In]]&\" cm)\"","v":"36,53692 cm (14,38667 cm)"},{"$f":"ROUND(CBleedTIn+LU_TrimSizes[[#This Row],[Trim Height (in)]]+CBleedBIn, 5)","v":9.86},{"$f":"ROUND(CBleedTcm+LU_TrimSizes[[#This Row],[Trim Height (cm)]]+CBleedBcm, 5)","v":25.045000000000002},{"$f":"LU_TrimSizes[[#This Row],[Cover Height CM]]&\" cm (\"&LU_TrimSizes[[#This Row],[Cover Height In]]&\"\"\")\"","v":"25,045 cm (9,86\")"},{"$f":"LU_TrimSizes[[#This Row],[Cover W In]]&\"\"\" x \"&LU_TrimSizes[[#This Row],[Cover Height In]]&\"\"\"\"","v":"14,38667\" x 9,86\""},{"$f":"LU_TrimSizes[[#This Row],[Cover W (cm)]]&\" cm x \"&LU_TrimSizes[[#This Row],[Cover Height CM]]&\" cm\"","v":"36,53692 cm x 25,045 cm"},{"$f":"ROUND(LU_TrimSizes[[#This Row],[Cover W In]]-0.5, 5)","v":13.886670000000001},{"$f":"ROUND(LU_TrimSizes[[#This Row],[Cover W (cm)]]-1.27, 5)","v":35.266919999999999},{"$f":"LU_TrimSizes[[#This Row],[Cover Safe Zone W cm]]&\" cm (\"&LU_TrimSizes[[#This Row],[Cover Safe Zone W (in)]]&\"\"\")\"","v":"35,26692 cm (13,88667\")"},{"$f":"LU_TrimSizes[[#This Row],[Cover Safe Zone H cm]]&\" cm (\"&LU_TrimSizes[[#This Row],[Cover Safe Zone H in]]&\"\"\")\"","v":"23,775 cm (9,36\")"},{"$f":"ROUND(LU_TrimSizes[[#This Row],[Cover Height In]]-0.5, 5)","v":9.36},{"$f":"ROUND(LU_TrimSizes[[#This Row],[Cover Height CM]]-1.27, 5)","v":23.774999999999999},{"$f":"LU_TrimSizes[[#This Row],[Cover Safe Zone W (in)]]&\"\"\" x \"&LU_TrimSizes[[#This Row],[Cover Safe Zone H in]]&\"\"\"\"","v":"13,88667\" x 9,36\""},{"$f":"LU_TrimSizes[[#This Row],[Cover Safe Zone W cm]]&\" cm x \"&LU_TrimSizes[[#This Row],[Cover Safe Zone H cm]]&\" cm\"","v":"35,26692 cm x 23,775 cm"},776,828,828]
[8,"Manuscript","Bleed Manuscript Layout","Outside Margin","=CmMarginO",null,"Cover Bleed T",0.125,{"$f":"ROUND(LU_CoverBleed[[#This Row],[Cover Bleed (In)]]*mm, 5)","v":3.1749999999999998},{"$f":"ROUND(LU_CoverBleed[[#This Row],[Cover Bleed (In)]]*cm, 5)","v":0.3175},null,null,null,null,null,null,null,32,0.375,0.25,0.375,9.5250000000000004,"9,525 mm (0,375\")",null,"17,78 x 25,4 cm (7\" x 10\")",7,10,"7\" x 10\"",17.78,25.4,"(17.78 x 25.4 cm)","17,78 x 25,4 cm (7\" x 10\")",{"$f":"LU_TrimSizes[[#This Row],[Trim Width (cm)]]&\" cm (\"&LU_TrimSizes[[#This Row],[Trim Width (in)]]&\"\"\")\"","v":"17,78 cm (7\")"},{"$f":"LU_TrimSizes[[#This Row],[Trim Height (cm)]]&\" cm (\"&LU_TrimSizes[[#This Row],[Trim Height (in)]]&\"\"\")\"","v":"25,4 cm (10\")"},{"$f":"ROUND(LU_TrimSizes[[#This Row],[Trim Width (in)]]+0.125, 5)&\"\"\"\"","v":"7,125\""},{"$f":"ROUND(LU_TrimSizes[[#This Row],[Trim Height (in)]]+0.25, 5)&\"\"\"\"","v":"10,25\""},{"$f":"LU_TrimSizes[[#This Row],[Trim W Bleed (cm)]]&\" (\"&LU_TrimSizes[[#This Row],[Trim W Bleed (in)]]&\")\"","v":"18,0975 cm (7,125\")"},{"$f":"LU_TrimSizes[[#This Row],[Trim H Bleed (cm)]]&\" (\"&LU_TrimSizes[[#This Row],[Trim H Bleed (in)]]&\")\"","v":"26,035 cm (10,25\")"},{"$f":"ROUND(LU_TrimSizes[[#This Row],[Trim Width (in)]]*cm+blcmw, 5)&\" cm\"","v":"18,0975 cm"},{"$f":"ROUND(LU_TrimSizes[[#This Row],[Trim Height (in)]]*cm+blcmh, 5)&\" cm\"","v":"26,035 cm"},{"$f":"LU_TrimSizes[[#This Row],[Trim W Bleed (in)]]&\" x \"&LU_TrimSizes[[#This Row],[Trim H Bleed (in)]]","v":"7,125\" x 10,25\""},{"$f":"LU_TrimSizes[[#This Row],[Trim W Bleed (cm)]]&\" x \"&LU_TrimSizes[[#This Row],[Trim H Bleed (cm)]]","v":"18,0975 cm x 26,035 cm"},{"$f":"ROUND(LU_TrimSizes[[#This Row],[Trim Width (in)]]-GutterINmath-MarginOinMath, 5)","v":6.375},{"$f":"ROUND(LU_TrimSizes[[#This Row],[Trim Width (cm)]]-GutterCMmath-MarginOcmMath, 5)","v":16.192499999999999},{"$f":"LU_TrimSizes[[#This Row],[Manuscript Safe Zone W cm]]&\" cm (\"&LU_TrimSizes[[#This Row],[Manuscript Safe Zone W in]]&\"\"\")\"","v":"16,1925 cm (6,375\")"},{"$f":"ROUND(LU_TrimSizes[[#This Row],[Trim Height (in)]]-MarginOinMath-MarginOinMath, 5)","v":9.5},{"$f":"ROUND(LU_TrimSizes[[#This Row],[Trim Height (cm)]]-MarginOcmMath-MarginOcmMath, 5)","v":24.13},{"$f":"LU_TrimSizes[[#This Row],[Manuscript Safe Zone H (cm)]]&\" cm (\"&LU_TrimSizes[[#This Row],[Manuscript Safe Zone H in]]&\"\"\")\"","v":"24,13 cm (9,5\")"},{"$f":"LU_TrimSizes[[#This Row],[Manuscript Safe Zone W in]]&\"\"\" x \"&LU_TrimSizes[[#This Row],[Manuscript Safe Zone H in]]&\"\"\"\"","v":"6,375\" x 9,5\""},{"$f":"LU_TrimSizes[[#This Row],[Manuscript Safe Zone W cm]]&\" cm x \"&LU_TrimSizes[[#This Row],[Manuscript Safe Zone H (cm)]]&\" cm\"","v":"16,1925 cm x 24,13 cm"},{"$f":"ROUND(CBleedLin+LU_TrimSizes[[#This Row],[Trim Width (in)]]+SpineWidthInMath+LU_TrimSizes[[#This Row],[Trim Width (in)]]+CBleedRIn, 5)","v":15.00667},{"$f":"ROUND(LU_TrimSizes[[#This Row],[Trim Width (cm)]]+CBleedLcm+SpineWidthCmMath+CBleedRcm+LU_TrimSizes[[#This Row],[Trim Width (cm)]], 5)","v":38.11692},{"$f":"LU_TrimSizes[[#This Row],[Cover W (cm)]]&\" cm (\"&LU_TrimSizes[[#This Row],[Cover W In]]&\" cm)\"","v":"38,11692 cm (15,00667 cm)"},{"$f":"ROUND(CBleedTIn+LU_TrimSizes[[#This Row],[Trim Height (in)]]+CBleedBIn, 5)","v":10.25},{"$f":"ROUND(CBleedTcm+LU_TrimSizes[[#This Row],[Trim Height (cm)]]+CBleedBcm, 5)","v":26.035},{"$f":"LU_TrimSizes[[#This Row],[Cover Height CM]]&\" cm (\"&LU_TrimSizes[[#This Row],[Cover Height In]]&\"\"\")\"","v":"26,035 cm (10,25\")"},{"$f":"LU_TrimSizes[[#This Row],[Cover W In]]&\"\"\" x \"&LU_TrimSizes[[#This Row],[Cover Height In]]&\"\"\"\"","v":"15,00667\" x 10,25\""},{"$f":"LU_TrimSizes[[#This Row],[Cover W (cm)]]&\" cm x \"&LU_TrimSizes[[#This Row],[Cover Height CM]]&\" cm\"","v":"38,11692 cm x 26,035 cm"},{"$f":"ROUND(LU_TrimSizes[[#This Row],[Cover W In]]-0.5, 5)","v":14.50667},{"$f":"ROUND(LU_TrimSizes[[#This Row],[Cover W (cm)]]-1.27, 5)","v":36.846919999999997},{"$f":"LU_TrimSizes[[#This Row],[Cover Safe Zone W cm]]&\" cm (\"&LU_TrimSizes[[#This Row],[Cover Safe Zone W (in)]]&\"\"\")\"","v":"36,84692 cm (14,50667\")"},{"$f":"LU_TrimSizes[[#This Row],[Cover Safe Zone H cm]]&\" cm (\"&LU_TrimSizes[[#This Row],[Cover Safe Zone H in]]&\"\"\")\"","v":"24,765 cm (9,75\")"},{"$f":"ROUND(LU_TrimSizes[[#This Row],[Cover Height In]]-0.5, 5)","v":9.75},{"$f":"ROUND(LU_TrimSizes[[#This Row],[Cover Height CM]]-1.27, 5)","v":24.765000000000001},{"$f":"LU_TrimSizes[[#This Row],[Cover Safe Zone W (in)]]&\"\"\" x \"&LU_TrimSizes[[#This Row],[Cover Safe Zone H in]]&\"\"\"\"","v":"14,50667\" x 9,75\""},{"$f":"LU_TrimSizes[[#This Row],[Cover Safe Zone W cm]]&\" cm x \"&LU_TrimSizes[[#This Row],[Cover Safe Zone H cm]]&\" cm\"","v":"36,84692 cm x 24,765 cm"},776,828,828]
[9,"Manuscript","Bleed Manuscript Layout","Total Outside","=CmbTotalO",null,"Cover Bleed B",0.125,{"$f":"ROUND(LU_CoverBleed[[#This Row],[Cover Bleed (In)]]*mm, 5)","v":3.1749999999999998},{"$f":"ROUND(LU_CoverBleed[[#This Row],[Cover Bleed (In)]]*cm, 5)","v":0.3175},null,null,null,null,null,null,null,33,0.375,0.25,0.375,9.5250000000000004,"9,525 mm (0,375\")",null,"18,9 x 24,61 cm (7,44\" x 9,69\")",7.44,9.69,"7.44\" x 9.69\"",18.899999999999999,24.61,"(18.9 x 24.61 cm)","18,9 x 24,61 cm (7,44\" x 9,69\")",{"$f":"LU_TrimSizes[[#This Row],[Trim Width (cm)]]&\" cm (\"&LU_TrimSizes[[#This Row],[Trim Width (in)]]&\"\"\")\"","v":"18,9 cm (7,44\")"},{"$f":"LU_TrimSizes[[#This Row],[Trim Height (cm)]]&\" cm (\"&LU_TrimSizes[[#This Row],[Trim Height (in)]]&\"\"\")\"","v":"24,61 cm (9,69\")"},{"$f":"ROUND(LU_TrimSizes[[#This Row],[Trim Width (in)]]+0.125, 5)&\"\"\"\"","v":"7,565\""},{"$f":"ROUND(LU_TrimSizes[[#This Row],[Trim Height (in)]]+0.25, 5)&\"\"\"\"","v":"9,94\""},{"$f":"LU_TrimSizes[[#This Row],[Trim W Bleed (cm)]]&\" (\"&LU_TrimSizes[[#This Row],[Trim W Bleed (in)]]&\")\"","v":"19,2151 cm (7,565\")"},{"$f":"LU_TrimSizes[[#This Row],[Trim H Bleed (cm)]]&\" (\"&LU_TrimSizes[[#This Row],[Trim H Bleed (in)]]&\")\"","v":"25,2476 cm (9,94\")"},{"$f":"ROUND(LU_TrimSizes[[#This Row],[Trim Width (in)]]*cm+blcmw, 5)&\" cm\"","v":"19,2151 cm"},{"$f":"ROUND(LU_TrimSizes[[#This Row],[Trim Height (in)]]*cm+blcmh, 5)&\" cm\"","v":"25,2476 cm"},{"$f":"LU_TrimSizes[[#This Row],[Trim W Bleed (in)]]&\" x \"&LU_TrimSizes[[#This Row],[Trim H Bleed (in)]]","v":"7,565\" x 9,94\""},{"$f":"LU_TrimSizes[[#This Row],[Trim W Bleed (cm)]]&\" x \"&LU_TrimSizes[[#This Row],[Trim H Bleed (cm)]]","v":"19,2151 cm x 25,2476 cm"},{"$f":"ROUND(LU_TrimSizes[[#This Row],[Trim Width (in)]]-GutterINmath-MarginOinMath, 5)","v":6.8150000000000004},{"$f":"ROUND(LU_TrimSizes[[#This Row],[Trim Width (cm)]]-GutterCMmath-MarginOcmMath, 5)","v":17.3125},{"$f":"LU_TrimSizes[[#This Row],[Manuscript Safe Zone W cm]]&\" cm (\"&LU_TrimSizes[[#This Row],[Manuscript Safe Zone W in]]&\"\"\")\"","v":"17,3125 cm (6,815\")"},{"$f":"ROUND(LU_TrimSizes[[#This Row],[Trim Height (in)]]-MarginOinMath-MarginOinMath, 5)","v":9.19},{"$f":"ROUND(LU_TrimSizes[[#This Row],[Trim Height (cm)]]-MarginOcmMath-MarginOcmMath, 5)","v":23.34},{"$f":"LU_TrimSizes[[#This Row],[Manuscript Safe Zone H (cm)]]&\" cm (\"&LU_TrimSizes[[#This Row],[Manuscript Safe Zone H in]]&\"\"\")\"","v":"23,34 cm (9,19\")"},{"$f":"LU_TrimSizes[[#This Row],[Manuscript Safe Zone W in]]&\"\"\" x \"&LU_TrimSizes[[#This Row],[Manuscript Safe Zone H in]]&\"\"\"\"","v":"6,815\" x 9,19\""},{"$f":"LU_TrimSizes[[#This Row],[Manuscript Safe Zone W cm]]&\" cm x \"&LU_TrimSizes[[#This Row],[Manuscript Safe Zone H (cm)]]&\" cm\"","v":"17,3125 cm x 23,34 cm"},{"$f":"ROUND(CBleedLin+LU_TrimSizes[[#This Row],[Trim Width (in)]]+SpineWidthInMath+LU_TrimSizes[[#This Row],[Trim Width (in)]]+CBleedRIn, 5)","v":15.886670000000001},{"$f":"ROUND(LU_TrimSizes[[#This Row],[Trim Width (cm)]]+CBleedLcm+SpineWidthCmMath+CBleedRcm+LU_TrimSizes[[#This Row],[Trim Width (cm)]], 5)","v":40.356920000000002},{"$f":"LU_TrimSizes[[#This Row],[Cover W (cm)]]&\" cm (\"&LU_TrimSizes[[#This Row],[Cover W In]]&\" cm)\"","v":"40,35692 cm (15,88667 cm)"},{"$f":"ROUND(CBleedTIn+LU_TrimSizes[[#This Row],[Trim Height (in)]]+CBleedBIn, 5)","v":9.94},{"$f":"ROUND(CBleedTcm+LU_TrimSizes[[#This Row],[Trim Height (cm)]]+CBleedBcm, 5)","v":25.245000000000001},{"$f":"LU_TrimSizes[[#This Row],[Cover Height CM]]&\" cm (\"&LU_TrimSizes[[#This Row],[Cover Height In]]&\"\"\")\"","v":"25,245 cm (9,94\")"},{"$f":"LU_TrimSizes[[#This Row],[Cover W In]]&\"\"\" x \"&LU_TrimSizes[[#This Row],[Cover Height In]]&\"\"\"\"","v":"15,88667\" x 9,94\""},{"$f":"LU_TrimSizes[[#This Row],[Cover W (cm)]]&\" cm x \"&LU_TrimSizes[[#This Row],[Cover Height CM]]&\" cm\"","v":"40,35692 cm x 25,245 cm"},{"$f":"ROUND(LU_TrimSizes[[#This Row],[Cover W In]]-0.5, 5)","v":15.386670000000001},{"$f":"ROUND(LU_TrimSizes[[#This Row],[Cover W (cm)]]-1.27, 5)","v":39.086919999999999},{"$f":"LU_TrimSizes[[#This Row],[Cover Safe Zone W cm]]&\" cm (\"&LU_TrimSizes[[#This Row],[Cover Safe Zone W (in)]]&\"\"\")\"","v":"39,08692 cm (15,38667\")"},{"$f":"LU_TrimSizes[[#This Row],[Cover Safe Zone H cm]]&\" cm (\"&LU_TrimSizes[[#This Row],[Cover Safe Zone H in]]&\"\"\")\"","v":"23,975 cm (9,44\")"},{"$f":"ROUND(LU_TrimSizes[[#This Row],[Cover Height In]]-0.5, 5)","v":9.44},{"$f":"ROUND(LU_TrimSizes[[#This Row],[Cover Height CM]]-1.27, 5)","v":23.975000000000001},{"$f":"LU_TrimSizes[[#This Row],[Cover Safe Zone W (in)]]&\"\"\" x \"&LU_TrimSizes[[#This Row],[Cover Safe Zone H in]]&\"\"\"\"","v":"15,38667\" x 9,44\""},{"$f":"LU_TrimSizes[[#This Row],[Cover Safe Zone W cm]]&\" cm x \"&LU_TrimSizes[[#This Row],[Cover Safe Zone H cm]]&\" cm\"","v":"39,08692 cm x 23,975 cm"},776,828,828]
[10,"Manuscript","Bleed Manuscript Layout","Trim Size + Bleed","=SmbTrimB",null,null,null,null,null,null,null,null,null,null,null,null,34,0.375,0.25,0.375,9.5250000000000004,"9,525 mm (0,375\")",null,"19,05 x 23,5 cm (7,5\" x 9,25\")",7.5,9.25,"7.5\" x 9.25\"",19.05,23.5,"(19.05 x 23.5 cm)","19,05 x 23,5 cm (7,5\" x 9,25\")",{"$f":"LU_TrimSizes[[#This Row],[Trim Width (cm)]]&\" cm (\"&LU_TrimSizes[[#This Row],[Trim Width (in)]]&\"\"\")\"","v":"19,05 cm (7,5\")"},{"$f":"LU_TrimSizes[[#This Row],[Trim Height (cm)]]&\" cm (\"&LU_TrimSizes[[#This Row],[Trim Height (in)]]&\"\"\")\"","v":"23,5 cm (9,25\")"},{"$f":"ROUND(LU_TrimSizes[[#This Row],[Trim Width (in)]]+0.125, 5)&\"\"\"\"","v":"7,625\""},{"$f":"ROUND(LU_TrimSizes[[#This Row],[Trim Height (in)]]+0.25, 5)&\"\"\"\"","v":"9,5\""},{"$f":"LU_TrimSizes[[#This Row],[Trim W Bleed (cm)]]&\" (\"&LU_TrimSizes[[#This Row],[Trim W Bleed (in)]]&\")\"","v":"19,3675 cm (7,625\")"},{"$f":"LU_TrimSizes[[#This Row],[Trim H Bleed (cm)]]&\" (\"&LU_TrimSizes[[#This Row],[Trim H Bleed (in)]]&\")\"","v":"24,13 cm (9,5\")"},{"$f":"ROUND(LU_TrimSizes[[#This Row],[Trim Width (in)]]*cm+blcmw, 5)&\" cm\"","v":"19,3675 cm"},{"$f":"ROUND(LU_TrimSizes[[#This Row],[Trim Height (in)]]*cm+blcmh, 5)&\" cm\"","v":"24,13 cm"},{"$f":"LU_TrimSizes[[#This Row],[Trim W Bleed (in)]]&\" x \"&LU_TrimSizes[[#This Row],[Trim H Bleed (in)]]","v":"7,625\" x 9,5\""},{"$f":"LU_TrimSizes[[#This Row],[Trim W Bleed (cm)]]&\" x \"&LU_TrimSizes[[#This Row],[Trim H Bleed (cm)]]","v":"19,3675 cm x 24,13 cm"},{"$f":"ROUND(LU_TrimSizes[[#This Row],[Trim Width (in)]]-GutterINmath-MarginOinMath, 5)","v":6.875},{"$f":"ROUND(LU_TrimSizes[[#This Row],[Trim Width (cm)]]-GutterCMmath-MarginOcmMath, 5)","v":17.462499999999999},{"$f":"LU_TrimSizes[[#This Row],[Manuscript Safe Zone W cm]]&\" cm (\"&LU_TrimSizes[[#This Row],[Manuscript Safe Zone W in]]&\"\"\")\"","v":"17,4625 cm (6,875\")"},{"$f":"ROUND(LU_TrimSizes[[#This Row],[Trim Height (in)]]-MarginOinMath-MarginOinMath, 5)","v":8.75},{"$f":"ROUND(LU_TrimSizes[[#This Row],[Trim Height (cm)]]-MarginOcmMath-MarginOcmMath, 5)","v":22.23},{"$f":"LU_TrimSizes[[#This Row],[Manuscript Safe Zone H (cm)]]&\" cm (\"&LU_TrimSizes[[#This Row],[Manuscript Safe Zone H in]]&\"\"\")\"","v":"22,23 cm (8,75\")"},{"$f":"LU_TrimSizes[[#This Row],[Manuscript Safe Zone W in]]&\"\"\" x \"&LU_TrimSizes[[#This Row],[Manuscript Safe Zone H in]]&\"\"\"\"","v":"6,875\" x 8,75\""},{"$f":"LU_TrimSizes[[#This Row],[Manuscript Safe Zone W cm]]&\" cm x \"&LU_TrimSizes[[#This Row],[Manuscript Safe Zone H (cm)]]&\" cm\"","v":"17,4625 cm x 22,23 cm"},{"$f":"ROUND(CBleedLin+LU_TrimSizes[[#This Row],[Trim Width (in)]]+SpineWidthInMath+LU_TrimSizes[[#This Row],[Trim Width (in)]]+CBleedRIn, 5)","v":16.00667},{"$f":"ROUND(LU_TrimSizes[[#This Row],[Trim Width (cm)]]+CBleedLcm+SpineWidthCmMath+CBleedRcm+LU_TrimSizes[[#This Row],[Trim Width (cm)]], 5)","v":40.65692},{"$f":"LU_TrimSizes[[#This Row],[Cover W (cm)]]&\" cm (\"&LU_TrimSizes[[#This Row],[Cover W In]]&\" cm)\"","v":"40,65692 cm (16,00667 cm)"},{"$f":"ROUND(CBleedTIn+LU_TrimSizes[[#This Row],[Trim Height (in)]]+CBleedBIn, 5)","v":9.5},{"$f":"ROUND(CBleedTcm+LU_TrimSizes[[#This Row],[Trim Height (cm)]]+CBleedBcm, 5)","v":24.135000000000002},{"$f":"LU_TrimSizes[[#This Row],[Cover Height CM]]&\" cm (\"&LU_TrimSizes[[#This Row],[Cover Height In]]&\"\"\")\"","v":"24,135 cm (9,5\")"},{"$f":"LU_TrimSizes[[#This Row],[Cover W In]]&\"\"\" x \"&LU_TrimSizes[[#This Row],[Cover Height In]]&\"\"\"\"","v":"16,00667\" x 9,5\""},{"$f":"LU_TrimSizes[[#This Row],[Cover W (cm)]]&\" cm x \"&LU_TrimSizes[[#This Row],[Cover Height CM]]&\" cm\"","v":"40,65692 cm x 24,135 cm"},{"$f":"ROUND(LU_TrimSizes[[#This Row],[Cover W In]]-0.5, 5)","v":15.50667},{"$f":"ROUND(LU_TrimSizes[[#This Row],[Cover W (cm)]]-1.27, 5)","v":39.386920000000003},{"$f":"LU_TrimSizes[[#This Row],[Cover Safe Zone W cm]]&\" cm (\"&LU_TrimSizes[[#This Row],[Cover Safe Zone W (in)]]&\"\"\")\"","v":"39,38692 cm (15,50667\")"},{"$f":"LU_TrimSizes[[#This Row],[Cover Safe Zone H cm]]&\" cm (\"&LU_TrimSizes[[#This Row],[Cover Safe Zone H in]]&\"\"\")\"","v":"22,865 cm (9\")"},{"$f":"ROUND(LU_TrimSizes[[#This Row],[Cover Height In]]-0.5, 5)","v":9},{"$f":"ROUND(LU_TrimSizes[[#This Row],[Cover Height CM]]-1.27, 5)","v":22.864999999999998},{"$f":"LU_TrimSizes[[#This Row],[Cover Safe Zone W (in)]]&\"\"\" x \"&LU_TrimSizes[[#This Row],[Cover Safe Zone H in]]&\"\"\"\"","v":"15,50667\" x 9\""},{"$f":"LU_TrimSizes[[#This Row],[Cover Safe Zone W cm]]&\" cm x \"&LU_TrimSizes[[#This Row],[Cover Safe Zone H cm]]&\" cm\"","v":"39,38692 cm x 22,865 cm"},776,828,828]
[11,"Manuscript","Bleed Manuscript Layout","Trim Size","=ITrimSize",null,null,null,null,null,null,null,null,null,null,null,null,35,0.375,0.25,0.375,9.5250000000000004,"9,525 mm (0,375\")",null,"20,32 x 25,4 cm (8\" x 10\")",8,10,"8\" x 10\"",20.32,25.4,"(20.32 x 25.4 cm)","20,32 x 25,4 cm (8\" x 10\")",{"$f":"LU_TrimSizes[[#This Row],[Trim Width (cm)]]&\" cm (\"&LU_TrimSizes[[#This Row],[Trim Width (in)]]&\"\"\")\"","v":"20,32 cm (8\")"},{"$f":"LU_TrimSizes[[#This Row],[Trim Height (cm)]]&\" cm (\"&LU_TrimSizes[[#This Row],[Trim Height (in)]]&\"\"\")\"","v":"25,4 cm (10\")"},{"$f":"ROUND(LU_TrimSizes[[#This Row],[Trim Width (in)]]+0.125, 5)&\"\"\"\"","v":"8,125\""},{"$f":"ROUND(LU_TrimSizes[[#This Row],[Trim Height (in)]]+0.25, 5)&\"\"\"\"","v":"10,25\""},{"$f":"LU_TrimSizes[[#This Row],[Trim W Bleed (cm)]]&\" (\"&LU_TrimSizes[[#This Row],[Trim W Bleed (in)]]&\")\"","v":"20,6375 cm (8,125\")"},{"$f":"LU_TrimSizes[[#This Row],[Trim H Bleed (cm)]]&\" (\"&LU_TrimSizes[[#This Row],[Trim H Bleed (in)]]&\")\"","v":"26,035 cm (10,25\")"},{"$f":"ROUND(LU_TrimSizes[[#This Row],[Trim Width (in)]]*cm+blcmw, 5)&\" cm\"","v":"20,6375 cm"},{"$f":"ROUND(LU_TrimSizes[[#This Row],[Trim Height (in)]]*cm+blcmh, 5)&\" cm\"","v":"26,035 cm"},{"$f":"LU_TrimSizes[[#This Row],[Trim W Bleed (in)]]&\" x \"&LU_TrimSizes[[#This Row],[Trim H Bleed (in)]]","v":"8,125\" x 10,25\""},{"$f":"LU_TrimSizes[[#This Row],[Trim W Bleed (cm)]]&\" x \"&LU_TrimSizes[[#This Row],[Trim H Bleed (cm)]]","v":"20,6375 cm x 26,035 cm"},{"$f":"ROUND(LU_TrimSizes[[#This Row],[Trim Width (in)]]-GutterINmath-MarginOinMath, 5)","v":7.375},{"$f":"ROUND(LU_TrimSizes[[#This Row],[Trim Width (cm)]]-GutterCMmath-MarginOcmMath, 5)","v":18.732500000000002},{"$f":"LU_TrimSizes[[#This Row],[Manuscript Safe Zone W cm]]&\" cm (\"&LU_TrimSizes[[#This Row],[Manuscript Safe Zone W in]]&\"\"\")\"","v":"18,7325 cm (7,375\")"},{"$f":"ROUND(LU_TrimSizes[[#This Row],[Trim Height (in)]]-MarginOinMath-MarginOinMath, 5)","v":9.5},{"$f":"ROUND(LU_TrimSizes[[#This Row],[Trim Height (cm)]]-MarginOcmMath-MarginOcmMath, 5)","v":24.13},{"$f":"LU_TrimSizes[[#This Row],[Manuscript Safe Zone H (cm)]]&\" cm (\"&LU_TrimSizes[[#This Row],[Manuscript Safe Zone H in]]&\"\"\")\"","v":"24,13 cm (9,5\")"},{"$f":"LU_TrimSizes[[#This Row],[Manuscript Safe Zone W in]]&\"\"\" x \"&LU_TrimSizes[[#This Row],[Manuscript Safe Zone H in]]&\"\"\"\"","v":"7,375\" x 9,5\""},{"$f":"LU_TrimSizes[[#This Row],[Manuscript Safe Zone W cm]]&\" cm x \"&LU_TrimSizes[[#This Row],[Manuscript Safe Zone H (cm)]]&\" cm\"","v":"18,7325 cm x 24,13 cm"},{"$f":"ROUND(CBleedLin+LU_TrimSizes[[#This Row],[Trim Width (in)]]+SpineWidthInMath+LU_TrimSizes[[#This Row],[Trim Width (in)]]+CBleedRIn, 5)","v":17.00667},{"$f":"ROUND(LU_TrimSizes[[#This Row],[Trim Width (cm)]]+CBleedLcm+SpineWidthCmMath+CBleedRcm+LU_TrimSizes[[#This Row],[Trim Width (cm)]], 5)","v":43.196919999999999},{"$f":"LU_TrimSizes[[#This Row],[Cover W (cm)]]&\" cm (\"&LU_TrimSizes[[#This Row],[Cover W In]]&\" cm)\"","v":"43,19692 cm (17,00667 cm)"},{"$f":"ROUND(CBleedTIn+LU_TrimSizes[[#This Row],[Trim Height (in)]]+CBleedBIn, 5)","v":10.25},{"$f":"ROUND(CBleedTcm+LU_TrimSizes[[#This Row],[Trim Height (cm)]]+CBleedBcm, 5)","v":26.035},{"$f":"LU_TrimSizes[[#This Row],[Cover Height CM]]&\" cm (\"&LU_TrimSizes[[#This Row],[Cover Height In]]&\"\"\")\"","v":"26,035 cm (10,25\")"},{"$f":"LU_TrimSizes[[#This Row],[Cover W In]]&\"\"\" x \"&LU_TrimSizes[[#This Row],[Cover Height In]]&\"\"\"\"","v":"17,00667\" x 10,25\""},{"$f":"LU_TrimSizes[[#This Row],[Cover W (cm)]]&\" cm x \"&LU_TrimSizes[[#This Row],[Cover Height CM]]&\" cm\"","v":"43,19692 cm x 26,035 cm"},{"$f":"ROUND(LU_TrimSizes[[#This Row],[Cover W In]]-0.5, 5)","v":16.50667},{"$f":"ROUND(LU_TrimSizes[[#This Row],[Cover W (cm)]]-1.27, 5)","v":41.926920000000003},{"$f":"LU_TrimSizes[[#This Row],[Cover Safe Zone W cm]]&\" cm (\"&LU_TrimSizes[[#This Row],[Cover Safe Zone W (in)]]&\"\"\")\"","v":"41,92692 cm (16,50667\")"},{"$f":"LU_TrimSizes[[#This Row],[Cover Safe Zone H cm]]&\" cm (\"&LU_TrimSizes[[#This Row],[Cover Safe Zone H in]]&\"\"\")\"","v":"24,765 cm (9,75\")"},{"$f":"ROUND(LU_TrimSizes[[#This Row],[Cover Height In]]-0.5, 5)","v":9.75},{"$f":"ROUND(LU_TrimSizes[[#This Row],[Cover Height CM]]-1.27, 5)","v":24.765000000000001},{"$f":"LU_TrimSizes[[#This Row],[Cover Safe Zone W (in)]]&\"\"\" x \"&LU_TrimSizes[[#This Row],[Cover Safe Zone H in]]&\"\"\"\"","v":"16,50667\" x 9,75\""},{"$f":"LU_TrimSizes[[#This Row],[Cover Safe Zone W cm]]&\" cm x \"&LU_TrimSizes[[#This Row],[Cover Safe Zone H cm]]&\" cm\"","v":"41,92692 cm x 24,765 cm"},776,828,828]
[12,"Manuscript","Bleed Manuscript Layout","Safe Zone Size","=SmSafeZone",null,"Spine Margin","Spine Margin (in)","Spine Margin (mm)","Spine Margin (cm)",null,null,null,null,null,null,null,36,0.375,0.25,0.375,9.5250000000000004,"9,525 mm (0,375\")",null,"20,96 x 15,24 cm (8,25\" x 6\")",8.25,6,"8.25\" x 6\"",20.96,15.24,"(20.96 x 15.24 cm)","20,96 x 15,24 cm (8,25\" x 6\")",{"$f":"LU_TrimSizes[[#This Row],[Trim Width (cm)]]&\" cm (\"&LU_TrimSizes[[#This Row],[Trim Width (in)]]&\"\"\")\"","v":"20,96 cm (8,25\")"},{"$f":"LU_TrimSizes[[#This Row],[Trim Height (cm)]]&\" cm (\"&LU_TrimSizes[[#This Row],[Trim Height (in)]]&\"\"\")\"","v":"15,24 cm (6\")"},{"$f":"ROUND(LU_TrimSizes[[#This Row],[Trim Width (in)]]+0.125, 5)&\"\"\"\"","v":"8,375\""},{"$f":"ROUND(LU_TrimSizes[[#This Row],[Trim Height (in)]]+0.25, 5)&\"\"\"\"","v":"6,25\""},{"$f":"LU_TrimSizes[[#This Row],[Trim W Bleed (cm)]]&\" (\"&LU_TrimSizes[[#This Row],[Trim W Bleed (in)]]&\")\"","v":"21,2725 cm (8,375\")"},{"$f":"LU_TrimSizes[[#This Row],[Trim H Bleed (cm)]]&\" (\"&LU_TrimSizes[[#This Row],[Trim H Bleed (in)]]&\")\"","v":"15,875 cm (6,25\")"},{"$f":"ROUND(LU_TrimSizes[[#This Row],[Trim Width (in)]]*cm+blcmw, 5)&\" cm\"","v":"21,2725 cm"},{"$f":"ROUND(LU_TrimSizes[[#This Row],[Trim Height (in)]]*cm+blcmh, 5)&\" cm\"","v":"15,875 cm"},{"$f":"LU_TrimSizes[[#This Row],[Trim W Bleed (in)]]&\" x \"&LU_TrimSizes[[#This Row],[Trim H Bleed (in)]]","v":"8,375\" x 6,25\""},{"$f":"LU_TrimSizes[[#This Row],[Trim W Bleed (cm)]]&\" x \"&LU_TrimSizes[[#This Row],[Trim H Bleed (cm)]]","v":"21,2725 cm x 15,875 cm"},{"$f":"ROUND(LU_TrimSizes[[#This Row],[Trim Width (in)]]-GutterINmath-MarginOinMath, 5)","v":7.625},{"$f":"ROUND(LU_TrimSizes[[#This Row],[Trim Width (cm)]]-GutterCMmath-MarginOcmMath, 5)","v":19.372499999999999},{"$f":"LU_TrimSizes[[#This Row],[Manuscript Safe Zone W cm]]&\" cm (\"&LU_TrimSizes[[#This Row],[Manuscript Safe Zone W in]]&\"\"\")\"","v":"19,3725 cm (7,625\")"},{"$f":"ROUND(LU_TrimSizes[[#This Row],[Trim Height (in)]]-MarginOinMath-MarginOinMath, 5)","v":5.5},{"$f":"ROUND(LU_TrimSizes[[#This Row],[Trim Height (cm)]]-MarginOcmMath-MarginOcmMath, 5)","v":13.97},{"$f":"LU_TrimSizes[[#This Row],[Manuscript Safe Zone H (cm)]]&\" cm (\"&LU_TrimSizes[[#This Row],[Manuscript Safe Zone H in]]&\"\"\")\"","v":"13,97 cm (5,5\")"},{"$f":"LU_TrimSizes[[#This Row],[Manuscript Safe Zone W in]]&\"\"\" x \"&LU_TrimSizes[[#This Row],[Manuscript Safe Zone H in]]&\"\"\"\"","v":"7,625\" x 5,5\""},{"$f":"LU_TrimSizes[[#This Row],[Manuscript Safe Zone W cm]]&\" cm x \"&LU_TrimSizes[[#This Row],[Manuscript Safe Zone H (cm)]]&\" cm\"","v":"19,3725 cm x 13,97 cm"},{"$f":"ROUND(CBleedLin+LU_TrimSizes[[#This Row],[Trim Width (in)]]+SpineWidthInMath+LU_TrimSizes[[#This Row],[Trim Width (in)]]+CBleedRIn, 5)","v":17.50667},{"$f":"ROUND(LU_TrimSizes[[#This Row],[Trim Width (cm)]]+CBleedLcm+SpineWidthCmMath+CBleedRcm+LU_TrimSizes[[#This Row],[Trim Width (cm)]], 5)","v":44.47692},{"$f":"LU_TrimSizes[[#This Row],[Cover W (cm)]]&\" cm (\"&LU_TrimSizes[[#This Row],[Cover W In]]&\" cm)\"","v":"44,47692 cm (17,50667 cm)"},{"$f":"ROUND(CBleedTIn+LU_TrimSizes[[#This Row],[Trim Height (in)]]+CBleedBIn, 5)","v":6.25},{"$f":"ROUND(CBleedTcm+LU_TrimSizes[[#This Row],[Trim Height (cm)]]+CBleedBcm, 5)","v":15.875},{"$f":"LU_TrimSizes[[#This Row],[Cover Height CM]]&\" cm (\"&LU_TrimSizes[[#This Row],[Cover Height In]]&\"\"\")\"","v":"15,875 cm (6,25\")"},{"$f":"LU_TrimSizes[[#This Row],[Cover W In]]&\"\"\" x \"&LU_TrimSizes[[#This Row],[Cover Height In]]&\"\"\"\"","v":"17,50667\" x 6,25\""},{"$f":"LU_TrimSizes[[#This Row],[Cover W (cm)]]&\" cm x \"&LU_TrimSizes[[#This Row],[Cover Height CM]]&\" cm\"","v":"44,47692 cm x 15,875 cm"},{"$f":"ROUND(LU_TrimSizes[[#This Row],[Cover W In]]-0.5, 5)","v":17.00667},{"$f":"ROUND(LU_TrimSizes[[#This Row],[Cover W (cm)]]-1.27, 5)","v":43.206919999999997},{"$f":"LU_TrimSizes[[#This Row],[Cover Safe Zone W cm]]&\" cm (\"&LU_TrimSizes[[#This Row],[Cover Safe Zone W (in)]]&\"\"\")\"","v":"43,20692 cm (17,00667\")"},{"$f":"LU_TrimSizes[[#This Row],[Cover Safe Zone H cm]]&\" cm (\"&LU_TrimSizes[[#This Row],[Cover Safe Zone H in]]&\"\"\")\"","v":"14,605 cm (5,75\")"},{"$f":"ROUND(LU_TrimSizes[[#This Row],[Cover Height In]]-0.5, 5)","v":5.75},{"$f":"ROUND(LU_TrimSizes[[#This Row],[Cover Height CM]]-1.27, 5)","v":14.605},{"$f":"LU_TrimSizes[[#This Row],[Cover Safe Zone W (in)]]&\"\"\" x \"&LU_TrimSizes[[#This Row],[Cover Safe Zone H in]]&\"\"\"\"","v":"17,00667\" x 5,75\""},{"$f":"LU_TrimSizes[[#This Row],[Cover Safe Zone W cm]]&\" cm x \"&LU_TrimSizes[[#This Row],[Cover Safe Zone H cm]]&\" cm\"","v":"43,20692 cm x 14,605 cm"},750,800,800]
[13,"Manuscript","Bleed Manuscript Layout","Gutter Margin","=mMarginG",null,"L Spine Margin",6.25E-2,{"$f":"ROUND(LU_SpineMargin[[#This Row],[Spine Margin (in)]]*mm, 5)","v":1.5874999999999999},{"$f":"ROUND(LU_SpineMargin[[#This Row],[Spine Margin (in)]]*cm,5 )","v":0.15875},null,null,null,null,null,null,null,37,0.375,0.25,0.375,9.5250000000000004,"9,525 mm (0,375\")",null,"20,96 x 20,96 cm (8,25\" x 8,25\")",8.25,8.25,"8.25\" x 8.25\"",20.96,20.96,"(20.96 x 20.96 cm)","20,96 x 20,96 cm (8,25\" x 8,25\")",{"$f":"LU_TrimSizes[[#This Row],[Trim Width (cm)]]&\" cm (\"&LU_TrimSizes[[#This Row],[Trim Width (in)]]&\"\"\")\"","v":"20,96 cm (8,25\")"},{"$f":"LU_TrimSizes[[#This Row],[Trim Height (cm)]]&\" cm (\"&LU_TrimSizes[[#This Row],[Trim Height (in)]]&\"\"\")\"","v":"20,96 cm (8,25\")"},{"$f":"ROUND(LU_TrimSizes[[#This Row],[Trim Width (in)]]+0.125, 5)&\"\"\"\"","v":"8,375\""},{"$f":"ROUND(LU_TrimSizes[[#This Row],[Trim Height (in)]]+0.25, 5)&\"\"\"\"","v":"8,5\""},{"$f":"LU_TrimSizes[[#This Row],[Trim W Bleed (cm)]]&\" (\"&LU_TrimSizes[[#This Row],[Trim W Bleed (in)]]&\")\"","v":"21,2725 cm (8,375\")"},{"$f":"LU_TrimSizes[[#This Row],[Trim H Bleed (cm)]]&\" (\"&LU_TrimSizes[[#This Row],[Trim H Bleed (in)]]&\")\"","v":"21,59 cm (8,5\")"},{"$f":"ROUND(LU_TrimSizes[[#This Row],[Trim Width (in)]]*cm+blcmw, 5)&\" cm\"","v":"21,2725 cm"},{"$f":"ROUND(LU_TrimSizes[[#This Row],[Trim Height (in)]]*cm+blcmh, 5)&\" cm\"","v":"21,59 cm"},{"$f":"LU_TrimSizes[[#This Row],[Trim W Bleed (in)]]&\" x \"&LU_TrimSizes[[#This Row],[Trim H Bleed (in)]]","v":"8,375\" x 8,5\""},{"$f":"LU_TrimSizes[[#This Row],[Trim W Bleed (cm)]]&\" x \"&LU_TrimSizes[[#This Row],[Trim H Bleed (cm)]]","v":"21,2725 cm x 21,59 cm"},{"$f":"ROUND(LU_TrimSizes[[#This Row],[Trim Width (in)]]-GutterINmath-MarginOinMath, 5)","v":7.625},{"$f":"ROUND(LU_TrimSizes[[#This Row],[Trim Width (cm)]]-GutterCMmath-MarginOcmMath, 5)","v":19.372499999999999},{"$f":"LU_TrimSizes[[#This Row],[Manuscript Safe Zone W cm]]&\" cm (\"&LU_TrimSizes[[#This Row],[Manuscript Safe Zone W in]]&\"\"\")\"","v":"19,3725 cm (7,625\")"},{"$f":"ROUND(LU_TrimSizes[[#This Row],[Trim Height (in)]]-MarginOinMath-MarginOinMath, 5)","v":7.75},{"$f":"ROUND(LU_TrimSizes[[#This Row],[Trim Height (cm)]]-MarginOcmMath-MarginOcmMath, 5)","v":19.690000000000001},{"$f":"LU_TrimSizes[[#This Row],[Manuscript Safe Zone H (cm)]]&\" cm (\"&LU_TrimSizes[[#This Row],[Manuscript Safe Zone H in]]&\"\"\")\"","v":"19,69 cm (7,75\")"},{"$f":"LU_TrimSizes[[#This Row],[Manuscript Safe Zone W in]]&\"\"\" x \"&LU_TrimSizes[[#This Row],[Manuscript Safe Zone H in]]&\"\"\"\"","v":"7,625\" x 7,75\""},{"$f":"LU_TrimSizes[[#This Row],[Manuscript Safe Zone W cm]]&\" cm x \"&LU_TrimSizes[[#This Row],[Manuscript Safe Zone H (cm)]]&\" cm\"","v":"19,3725 cm x 19,69 cm"},{"$f":"ROUND(CBleedLin+LU_TrimSizes[[#This Row],[Trim Width (in)]]+SpineWidthInMath+LU_TrimSizes[[#This Row],[Trim Width (in)]]+CBleedRIn, 5)","v":17.50667},{"$f":"ROUND(LU_TrimSizes[[#This Row],[Trim Width (cm)]]+CBleedLcm+SpineWidthCmMath+CBleedRcm+LU_TrimSizes[[#This Row],[Trim Width (cm)]], 5)","v":44.47692},{"$f":"LU_TrimSizes[[#This Row],[Cover W (cm)]]&\" cm (\"&LU_TrimSizes[[#This Row],[Cover W In]]&\" cm)\"","v":"44,47692 cm (17,50667 cm)"},{"$f":"ROUND(CBleedTIn+LU_TrimSizes[[#This Row],[Trim Height (in)]]+CBleedBIn, 5)","v":8.5},{"$f":"ROUND(CBleedTcm+LU_TrimSizes[[#This Row],[Trim Height (cm)]]+CBleedBcm, 5)","v":21.594999999999999},{"$f":"LU_TrimSizes[[#This Row],[Cover Height CM]]&\" cm (\"&LU_TrimSizes[[#This Row],[Cover Height In]]&\"\"\")\"","v":"21,595 cm (8,5\")"},{"$f":"LU_TrimSizes[[#This Row],[Cover W In]]&\"\"\" x \"&LU_TrimSizes[[#This Row],[Cover Height In]]&\"\"\"\"","v":"17,50667\" x 8,5\""},{"$f":"LU_TrimSizes[[#This Row],[Cover W (cm)]]&\" cm x \"&LU_TrimSizes[[#This Row],[Cover Height CM]]&\" cm\"","v":"44,47692 cm x 21,595 cm"},{"$f":"ROUND(LU_TrimSizes[[#This Row],[Cover W In]]-0.5, 5)","v":17.00667},{"$f":"ROUND(LU_TrimSizes[[#This Row],[Cover W (cm)]]-1.27, 5)","v":43.206919999999997},{"$f":"LU_TrimSizes[[#This Row],[Cover Safe Zone W cm]]&\" cm (\"&LU_TrimSizes[[#This Row],[Cover Safe Zone W (in)]]&\"\"\")\"","v":"43,20692 cm (17,00667\")"},{"$f":"LU_TrimSizes[[#This Row],[Cover Safe Zone H cm]]&\" cm (\"&LU_TrimSizes[[#This Row],[Cover Safe Zone H in]]&\"\"\")\"","v":"20,325 cm (8\")"},{"$f":"ROUND(LU_TrimSizes[[#This Row],[Cover Height In]]-0.5, 5)","v":8},{"$f":"ROUND(LU_TrimSizes[[#This Row],[Cover Height CM]]-1.27, 5)","v":20.324999999999999},{"$f":"LU_TrimSizes[[#This Row],[Cover Safe Zone W (in)]]&\"\"\" x \"&LU_TrimSizes[[#This Row],[Cover Safe Zone H in]]&\"\"\"\"","v":"17,00667\" x 8\""},{"$f":"LU_TrimSizes[[#This Row],[Cover Safe Zone W cm]]&\" cm x \"&LU_TrimSizes[[#This Row],[Cover Safe Zone H cm]]&\" cm\"","v":"43,20692 cm x 20,325 cm"},750,800,800]
[14,"Cover","Left-to-Right Reading Book Cover Layout","Spine Width","=WcSpine",null,"R Spine Margin",6.25E-2,{"$f":"ROUND(LU_SpineMargin[[#This Row],[Spine Margin (in)]]*mm, 5)","v":1.5874999999999999},{"$f":"ROUND(LU_SpineMargin[[#This Row],[Spine Margin (in)]]*cm,5 )","v":0.15875},null,null,null,null,null,null,null,38,0.375,0.25,0.375,9.5250000000000004,"9,525 mm (0,375\")",null,"21,59 x 21,59 cm (8,5\" x 8,5\")",8.5,8.5,"8.5\" x 8.5\"",21.59,21.59,"(21.59 x 21.59 cm)","21,59 x 21,59 cm (8,5\" x 8,5\")",{"$f":"LU_TrimSizes[[#This Row],[Trim Width (cm)]]&\" cm (\"&LU_TrimSizes[[#This Row],[Trim Width (in)]]&\"\"\")\"","v":"21,59 cm (8,5\")"},{"$f":"LU_TrimSizes[[#This Row],[Trim Height (cm)]]&\" cm (\"&LU_TrimSizes[[#This Row],[Trim Height (in)]]&\"\"\")\"","v":"21,59 cm (8,5\")"},{"$f":"ROUND(LU_TrimSizes[[#This Row],[Trim Width (in)]]+0.125, 5)&\"\"\"\"","v":"8,625\""},{"$f":"ROUND(LU_TrimSizes[[#This Row],[Trim Height (in)]]+0.25, 5)&\"\"\"\"","v":"8,75\""},{"$f":"LU_TrimSizes[[#This Row],[Trim W Bleed (cm)]]&\" (\"&LU_TrimSizes[[#This Row],[Trim W Bleed (in)]]&\")\"","v":"21,9075 cm (8,625\")"},{"$f":"LU_TrimSizes[[#This Row],[Trim H Bleed (cm)]]&\" (\"&LU_TrimSizes[[#This Row],[Trim H Bleed (in)]]&\")\"","v":"22,225 cm (8,75\")"},{"$f":"ROUND(LU_TrimSizes[[#This Row],[Trim Width (in)]]*cm+blcmw, 5)&\" cm\"","v":"21,9075 cm"},{"$f":"ROUND(LU_TrimSizes[[#This Row],[Trim Height (in)]]*cm+blcmh, 5)&\" cm\"","v":"22,225 cm"},{"$f":"LU_TrimSizes[[#This Row],[Trim W Bleed (in)]]&\" x \"&LU_TrimSizes[[#This Row],[Trim H Bleed (in)]]","v":"8,625\" x 8,75\""},{"$f":"LU_TrimSizes[[#This Row],[Trim W Bleed (cm)]]&\" x \"&LU_TrimSizes[[#This Row],[Trim H Bleed (cm)]]","v":"21,9075 cm x 22,225 cm"},{"$f":"ROUND(LU_TrimSizes[[#This Row],[Trim Width (in)]]-GutterINmath-MarginOinMath, 5)","v":7.875},{"$f":"ROUND(LU_TrimSizes[[#This Row],[Trim Width (cm)]]-GutterCMmath-MarginOcmMath, 5)","v":20.002500000000001},{"$f":"LU_TrimSizes[[#This Row],[Manuscript Safe Zone W cm]]&\" cm (\"&LU_TrimSizes[[#This Row],[Manuscript Safe Zone W in]]&\"\"\")\"","v":"20,0025 cm (7,875\")"},{"$f":"ROUND(LU_TrimSizes[[#This Row],[Trim Height (in)]]-MarginOinMath-MarginOinMath, 5)","v":8},{"$f":"ROUND(LU_TrimSizes[[#This Row],[Trim Height (cm)]]-MarginOcmMath-MarginOcmMath, 5)","v":20.32},{"$f":"LU_TrimSizes[[#This Row],[Manuscript Safe Zone H (cm)]]&\" cm (\"&LU_TrimSizes[[#This Row],[Manuscript Safe Zone H in]]&\"\"\")\"","v":"20,32 cm (8\")"},{"$f":"LU_TrimSizes[[#This Row],[Manuscript Safe Zone W in]]&\"\"\" x \"&LU_TrimSizes[[#This Row],[Manuscript Safe Zone H in]]&\"\"\"\"","v":"7,875\" x 8\""},{"$f":"LU_TrimSizes[[#This Row],[Manuscript Safe Zone W cm]]&\" cm x \"&LU_TrimSizes[[#This Row],[Manuscript Safe Zone H (cm)]]&\" cm\"","v":"20,0025 cm x 20,32 cm"},{"$f":"ROUND(CBleedLin+LU_TrimSizes[[#This Row],[Trim Width (in)]]+SpineWidthInMath+LU_TrimSizes[[#This Row],[Trim Width (in)]]+CBleedRIn, 5)","v":18.00667},{"$f":"ROUND(LU_TrimSizes[[#This Row],[Trim Width (cm)]]+CBleedLcm+SpineWidthCmMath+CBleedRcm+LU_TrimSizes[[#This Row],[Trim Width (cm)]], 5)","v":45.736919999999998},{"$f":"LU_TrimSizes[[#This Row],[Cover W (cm)]]&\" cm (\"&LU_TrimSizes[[#This Row],[Cover W In]]&\" cm)\"","v":"45,73692 cm (18,00667 cm)"},{"$f":"ROUND(CBleedTIn+LU_TrimSizes[[#This Row],[Trim Height (in)]]+CBleedBIn, 5)","v":8.75},{"$f":"ROUND(CBleedTcm+LU_TrimSizes[[#This Row],[Trim Height (cm)]]+CBleedBcm, 5)","v":22.225000000000001},{"$f":"LU_TrimSizes[[#This Row],[Cover Height CM]]&\" cm (\"&LU_TrimSizes[[#This Row],[Cover Height In]]&\"\"\")\"","v":"22,225 cm (8,75\")"},{"$f":"LU_TrimSizes[[#This Row],[Cover W In]]&\"\"\" x \"&LU_TrimSizes[[#This Row],[Cover Height In]]&\"\"\"\"","v":"18,00667\" x 8,75\""},{"$f":"LU_TrimSizes[[#This Row],[Cover W (cm)]]&\" cm x \"&LU_TrimSizes[[#This Row],[Cover Height CM]]&\" cm\"","v":"45,73692 cm x 22,225 cm"},{"$f":"ROUND(LU_TrimSizes[[#This Row],[Cover W In]]-0.5, 5)","v":17.50667},{"$f":"ROUND(LU_TrimSizes[[#This Row],[Cover W (cm)]]-1.27, 5)","v":44.466920000000002},{"$f":"LU_TrimSizes[[#This Row],[Cover Safe Zone W cm]]&\" cm (\"&LU_TrimSizes[[#This Row],[Cover Safe Zone W (in)]]&\"\"\")\"","v":"44,46692 cm (17,50667\")"},{"$f":"LU_TrimSizes[[#This Row],[Cover Safe Zone H cm]]&\" cm (\"&LU_TrimSizes[[#This Row],[Cover Safe Zone H in]]&\"\"\")\"","v":"20,955 cm (8,25\")"},{"$f":"ROUND(LU_TrimSizes[[#This Row],[Cover Height In]]-0.5, 5)","v":8.25},{"$f":"ROUND(LU_TrimSizes[[#This Row],[Cover Height CM]]-1.27, 5)","v":20.954999999999998},{"$f":"LU_TrimSizes[[#This Row],[Cover Safe Zone W (in)]]&\"\"\" x \"&LU_TrimSizes[[#This Row],[Cover Safe Zone H in]]&\"\"\"\"","v":"17,50667\" x 8,25\""},{"$f":"LU_TrimSizes[[#This Row],[Cover Safe Zone W cm]]&\" cm x \"&LU_TrimSizes[[#This Row],[Cover Safe Zone H cm]]&\" cm\"","v":"44,46692 cm x 20,955 cm"},550,590,590]
[15,"Cover","Left-to-Right Reading Book Cover Layout","Spine Text Width","=WcSpineText",null,null,null,null,null,null,null,null,null,null,null,null,39,0.375,0.25,0.375,9.5250000000000004,"9,525 mm (0,375\")",null,"21,59 x 27,94 cm (8,5\" x 11\")",8.5,11,"8.5\" x 11\"",21.59,27.94,"(21.59 x 27.94 cm)","21,59 x 27,94 cm (8,5\" x 11\")",{"$f":"LU_TrimSizes[[#This Row],[Trim Width (cm)]]&\" cm (\"&LU_TrimSizes[[#This Row],[Trim Width (in)]]&\"\"\")\"","v":"21,59 cm (8,5\")"},{"$f":"LU_TrimSizes[[#This Row],[Trim Height (cm)]]&\" cm (\"&LU_TrimSizes[[#This Row],[Trim Height (in)]]&\"\"\")\"","v":"27,94 cm (11\")"},{"$f":"ROUND(LU_TrimSizes[[#This Row],[Trim Width (in)]]+0.125, 5)&\"\"\"\"","v":"8,625\""},{"$f":"ROUND(LU_TrimSizes[[#This Row],[Trim Height (in)]]+0.25, 5)&\"\"\"\"","v":"11,25\""},{"$f":"LU_TrimSizes[[#This Row],[Trim W Bleed (cm)]]&\" (\"&LU_TrimSizes[[#This Row],[Trim W Bleed (in)]]&\")\"","v":"21,9075 cm (8,625\")"},{"$f":"LU_TrimSizes[[#This Row],[Trim H Bleed (cm)]]&\" (\"&LU_TrimSizes[[#This Row],[Trim H Bleed (in)]]&\")\"","v":"28,575 cm (11,25\")"},{"$f":"ROUND(LU_TrimSizes[[#This Row],[Trim Width (in)]]*cm+blcmw, 5)&\" cm\"","v":"21,9075 cm"},{"$f":"ROUND(LU_TrimSizes[[#This Row],[Trim Height (in)]]*cm+blcmh, 5)&\" cm\"","v":"28,575 cm"},{"$f":"LU_TrimSizes[[#This Row],[Trim W Bleed (in)]]&\" x \"&LU_TrimSizes[[#This Row],[Trim H Bleed (in)]]","v":"8,625\" x 11,25\""},{"$f":"LU_TrimSizes[[#This Row],[Trim W Bleed (cm)]]&\" x \"&LU_TrimSizes[[#This Row],[Trim H Bleed (cm)]]","v":"21,9075 cm x 28,575 cm"},{"$f":"ROUND(LU_TrimSizes[[#This Row],[Trim Width (in)]]-GutterINmath-MarginOinMath, 5)","v":7.875},{"$f":"ROUND(LU_TrimSizes[[#This Row],[Trim Width (cm)]]-GutterCMmath-MarginOcmMath, 5)","v":20.002500000000001},{"$f":"LU_TrimSizes[[#This Row],[Manuscript Safe Zone W cm]]&\" cm (\"&LU_TrimSizes[[#This Row],[Manuscript Safe Zone W in]]&\"\"\")\"","v":"20,0025 cm (7,875\")"},{"$f":"ROUND(LU_TrimSizes[[#This Row],[Trim Height (in)]]-MarginOinMath-MarginOinMath, 5)","v":10.5},{"$f":"ROUND(LU_TrimSizes[[#This Row],[Trim Height (cm)]]-MarginOcmMath-MarginOcmMath, 5)","v":26.67},{"$f":"LU_TrimSizes[[#This Row],[Manuscript Safe Zone H (cm)]]&\" cm (\"&LU_TrimSizes[[#This Row],[Manuscript Safe Zone H in]]&\"\"\")\"","v":"26,67 cm (10,5\")"},{"$f":"LU_TrimSizes[[#This Row],[Manuscript Safe Zone W in]]&\"\"\" x \"&LU_TrimSizes[[#This Row],[Manuscript Safe Zone H in]]&\"\"\"\"","v":"7,875\" x 10,5\""},{"$f":"LU_TrimSizes[[#This Row],[Manuscript Safe Zone W cm]]&\" cm x \"&LU_TrimSizes[[#This Row],[Manuscript Safe Zone H (cm)]]&\" cm\"","v":"20,0025 cm x 26,67 cm"},{"$f":"ROUND(CBleedLin+LU_TrimSizes[[#This Row],[Trim Width (in)]]+SpineWidthInMath+LU_TrimSizes[[#This Row],[Trim Width (in)]]+CBleedRIn, 5)","v":18.00667},{"$f":"ROUND(LU_TrimSizes[[#This Row],[Trim Width (cm)]]+CBleedLcm+SpineWidthCmMath+CBleedRcm+LU_TrimSizes[[#This Row],[Trim Width (cm)]], 5)","v":45.736919999999998},{"$f":"LU_TrimSizes[[#This Row],[Cover W (cm)]]&\" cm (\"&LU_TrimSizes[[#This Row],[Cover W In]]&\" cm)\"","v":"45,73692 cm (18,00667 cm)"},{"$f":"ROUND(CBleedTIn+LU_TrimSizes[[#This Row],[Trim Height (in)]]+CBleedBIn, 5)","v":11.25},{"$f":"ROUND(CBleedTcm+LU_TrimSizes[[#This Row],[Trim Height (cm)]]+CBleedBcm, 5)","v":28.574999999999999},{"$f":"LU_TrimSizes[[#This Row],[Cover Height CM]]&\" cm (\"&LU_TrimSizes[[#This Row],[Cover Height In]]&\"\"\")\"","v":"28,575 cm (11,25\")"},{"$f":"LU_TrimSizes[[#This Row],[Cover W In]]&\"\"\" x \"&LU_TrimSizes[[#This Row],[Cover Height In]]&\"\"\"\"","v":"18,00667\" x 11,25\""},{"$f":"LU_TrimSizes[[#This Row],[Cover W (cm)]]&\" cm x \"&LU_TrimSizes[[#This Row],[Cover Height CM]]&\" cm\"","v":"45,73692 cm x 28,575 cm"},{"$f":"ROUND(LU_TrimSizes[[#This Row],[Cover W In]]-0.5, 5)","v":17.50667},{"$f":"ROUND(LU_TrimSizes[[#This Row],[Cover W (cm)]]-1.27, 5)","v":44.466920000000002},{"$f":"LU_TrimSizes[[#This Row],[Cover Safe Zone W cm]]&\" cm (\"&LU_TrimSizes[[#This Row],[Cover Safe Zone W (in)]]&\"\"\")\"","v":"44,46692 cm (17,50667\")"},{"$f":"LU_TrimSizes[[#This Row],[Cover Safe Zone H cm]]&\" cm (\"&LU_TrimSizes[[#This Row],[Cover Safe Zone H in]]&\"\"\")\"","v":"27,305 cm (10,75\")"},{"$f":"ROUND(LU_TrimSizes[[#This Row],[Cover Height In]]-0.5, 5)","v":10.75},{"$f":"ROUND(LU_TrimSizes[[#This Row],[Cover Height CM]]-1.27, 5)","v":27.305},{"$f":"LU_TrimSizes[[#This Row],[Cover Safe Zone W (in)]]&\"\"\" x \"&LU_TrimSizes[[#This Row],[Cover Safe Zone H in]]&\"\"\"\"","v":"17,50667\" x 10,75\""},{"$f":"LU_TrimSizes[[#This Row],[Cover Safe Zone W cm]]&\" cm x \"&LU_TrimSizes[[#This Row],[Cover Safe Zone H cm]]&\" cm\"","v":"44,46692 cm x 27,305 cm"},550,590,590]
[16,"Cover","Left-to-Right Reading Book Cover Layout","Spine Margin","=CcMarginS",null,null,null,null,null,null,null,null,null,null,null,null,40,0.375,0.25,0.375,9.5250000000000004,"9,525 mm (0,375\")",null,"21 x 29,7 cm (8.27\" x 11,69\")",8.27,11.69,"8.27\" x 11.69\"",21,29.7,"(21 x 29.7 cm)","21 x 29.7 cm (8.27\" x 11.69\")",{"$f":"LU_TrimSizes[[#This Row],[Trim Width (cm)]]&\" cm (\"&LU_TrimSizes[[#This Row],[Trim Width (in)]]&\"\"\")\"","v":"21 cm (8,27\")"},{"$f":"LU_TrimSizes[[#This Row],[Trim Height (cm)]]&\" cm (\"&LU_TrimSizes[[#This Row],[Trim Height (in)]]&\"\"\")\"","v":"29,7 cm (11,69\")"},{"$f":"ROUND(LU_TrimSizes[[#This Row],[Trim Width (in)]]+0.125, 5)&\"\"\"\"","v":"8,395\""},{"$f":"ROUND(LU_TrimSizes[[#This Row],[Trim Height (in)]]+0.25, 5)&\"\"\"\"","v":"11,94\""},{"$f":"LU_TrimSizes[[#This Row],[Trim W Bleed (cm)]]&\" (\"&LU_TrimSizes[[#This Row],[Trim W Bleed (in)]]&\")\"","v":"21,3233 cm (8,395\")"},{"$f":"LU_TrimSizes[[#This Row],[Trim H Bleed (cm)]]&\" (\"&LU_TrimSizes[[#This Row],[Trim H Bleed (in)]]&\")\"","v":"30,3276 cm (11,94\")"},{"$f":"ROUND(LU_TrimSizes[[#This Row],[Trim Width (in)]]*cm+blcmw, 5)&\" cm\"","v":"21,3233 cm"},{"$f":"ROUND(LU_TrimSizes[[#This Row],[Trim Height (in)]]*cm+blcmh, 5)&\" cm\"","v":"30,3276 cm"},{"$f":"LU_TrimSizes[[#This Row],[Trim W Bleed (in)]]&\" x \"&LU_TrimSizes[[#This Row],[Trim H Bleed (in)]]","v":"8,395\" x 11,94\""},{"$f":"LU_TrimSizes[[#This Row],[Trim W Bleed (cm)]]&\" x \"&LU_TrimSizes[[#This Row],[Trim H Bleed (cm)]]","v":"21,3233 cm x 30,3276 cm"},{"$f":"ROUND(LU_TrimSizes[[#This Row],[Trim Width (in)]]-GutterINmath-MarginOinMath, 5)","v":7.6449999999999996},{"$f":"ROUND(LU_TrimSizes[[#This Row],[Trim Width (cm)]]-GutterCMmath-MarginOcmMath, 5)","v":19.412500000000001},{"$f":"LU_TrimSizes[[#This Row],[Manuscript Safe Zone W cm]]&\" cm (\"&LU_TrimSizes[[#This Row],[Manuscript Safe Zone W in]]&\"\"\")\"","v":"19,4125 cm (7,645\")"},{"$f":"ROUND(LU_TrimSizes[[#This Row],[Trim Height (in)]]-MarginOinMath-MarginOinMath, 5)","v":11.19},{"$f":"ROUND(LU_TrimSizes[[#This Row],[Trim Height (cm)]]-MarginOcmMath-MarginOcmMath, 5)","v":28.43},{"$f":"LU_TrimSizes[[#This Row],[Manuscript Safe Zone H (cm)]]&\" cm (\"&LU_TrimSizes[[#This Row],[Manuscript Safe Zone H in]]&\"\"\")\"","v":"28,43 cm (11,19\")"},{"$f":"LU_TrimSizes[[#This Row],[Manuscript Safe Zone W in]]&\"\"\" x \"&LU_TrimSizes[[#This Row],[Manuscript Safe Zone H in]]&\"\"\"\"","v":"7,645\" x 11,19\""},{"$f":"LU_TrimSizes[[#This Row],[Manuscript Safe Zone W cm]]&\" cm x \"&LU_TrimSizes[[#This Row],[Manuscript Safe Zone H (cm)]]&\" cm\"","v":"19,4125 cm x 28,43 cm"},{"$f":"ROUND(CBleedLin+LU_TrimSizes[[#This Row],[Trim Width (in)]]+SpineWidthInMath+LU_TrimSizes[[#This Row],[Trim Width (in)]]+CBleedRIn, 5)","v":17.546669999999999},{"$f":"ROUND(LU_TrimSizes[[#This Row],[Trim Width (cm)]]+CBleedLcm+SpineWidthCmMath+CBleedRcm+LU_TrimSizes[[#This Row],[Trim Width (cm)]], 5)","v":44.556919999999998},{"$f":"LU_TrimSizes[[#This Row],[Cover W (cm)]]&\" cm (\"&LU_TrimSizes[[#This Row],[Cover W In]]&\" cm)\"","v":"44,55692 cm (17,54667 cm)"},{"$f":"ROUND(CBleedTIn+LU_TrimSizes[[#This Row],[Trim Height (in)]]+CBleedBIn, 5)","v":11.94},{"$f":"ROUND(CBleedTcm+LU_TrimSizes[[#This Row],[Trim Height (cm)]]+CBleedBcm, 5)","v":30.335000000000001},{"$f":"LU_TrimSizes[[#This Row],[Cover Height CM]]&\" cm (\"&LU_TrimSizes[[#This Row],[Cover Height In]]&\"\"\")\"","v":"30,335 cm (11,94\")"},{"$f":"LU_TrimSizes[[#This Row],[Cover W In]]&\"\"\" x \"&LU_TrimSizes[[#This Row],[Cover Height In]]&\"\"\"\"","v":"17,54667\" x 11,94\""},{"$f":"LU_TrimSizes[[#This Row],[Cover W (cm)]]&\" cm x \"&LU_TrimSizes[[#This Row],[Cover Height CM]]&\" cm\"","v":"44,55692 cm x 30,335 cm"},{"$f":"ROUND(LU_TrimSizes[[#This Row],[Cover W In]]-0.5, 5)","v":17.046669999999999},{"$f":"ROUND(LU_TrimSizes[[#This Row],[Cover W (cm)]]-1.27, 5)","v":43.286920000000002},{"$f":"LU_TrimSizes[[#This Row],[Cover Safe Zone W cm]]&\" cm (\"&LU_TrimSizes[[#This Row],[Cover Safe Zone W (in)]]&\"\"\")\"","v":"43,28692 cm (17,04667\")"},{"$f":"LU_TrimSizes[[#This Row],[Cover Safe Zone H cm]]&\" cm (\"&LU_TrimSizes[[#This Row],[Cover Safe Zone H in]]&\"\"\")\"","v":"29,065 cm (11,44\")"},{"$f":"ROUND(LU_TrimSizes[[#This Row],[Cover Height In]]-0.5, 5)","v":11.44},{"$f":"ROUND(LU_TrimSizes[[#This Row],[Cover Height CM]]-1.27, 5)","v":29.065000000000001},{"$f":"LU_TrimSizes[[#This Row],[Cover Safe Zone W (in)]]&\"\"\" x \"&LU_TrimSizes[[#This Row],[Cover Safe Zone H in]]&\"\"\"\"","v":"17,04667\" x 11,44\""},{"$f":"LU_TrimSizes[[#This Row],[Cover Safe Zone W cm]]&\" cm x \"&LU_TrimSizes[[#This Row],[Cover Safe Zone H cm]]&\" cm\"","v":"43,28692 cm x 29,065 cm"},730,780,0]
[17,"Cover","Left-to-Right Reading Book Cover Layout","Bleed","=CcBleed",null,null,null,null,null,null,null,null,null,null,null,null,41,0.375,0.25,0.375,9.5250000000000004,"9,525 mm (0,375\")"]
[18,"Cover","Left-to-Right Reading Book Cover Layout","Trim Variance","=CcTrimVar",null,null,null,null,null,null,null,null,null,null,null,null,42,0.375,0.25,0.375,9.5250000000000004,"9,525 mm (0,375\")",null,1,2,3,4,5,6,7,8,9,10,11,12,13,14,15,16,17,18,19,20,21,22,23,24,25,26,27,28,29,30,31,32,33,34,35,36,37,38,39,40,41,42,43,44,45]
[19,"Cover","Left-to-Right Reading Book Cover Layout","Outside Margin","=CcMarginO",null,null,null,null,null,null,null,null,null,null,null,null,43,0.375,0.25,0.375,9.5250000000000004,"9,525 mm (0,375\")"]
[20,"Cover","Left-to-Right Reading Book Cover Layout","Barcode Size","=CcbarSize",null,null,null,null,null,null,null,null,null,null,null,null,44,0.375,0.25,0.375,9.5250000000000004,"9,525 mm (0,375\")"]
[21,"Cover","Left-to-Right Reading Book Cover Layout","Safe Zone Size","=ScSafeZone",null,null,null,null,null,null,null,null,null,null,null,null,45,0.375,0.25,0.375,9.5250000000000004,"9,525 mm (0,375\")"]
[22,"Cover","Left-to-Right Reading Book Cover Layout","Trim Size","=ScTrim",null,null,null,null,null,null,null,null,null,null,null,null,46,0.375,0.25,0.375,9.5250000000000004,"9,525 mm (0,375\")",null,"Taille de coupe","Encre noire et papier crème","Encre noire et papier blanc","Encre de couleur et papier blanc"]
[23,"Cover","Left-to-Right Reading Book Cover Layout","Cover Size","=ScSize",null,null,null,null,null,null,null,null,null,null,null,null,47,0.375,0.25,0.375,9.5250000000000004,"9,525 mm (0,375\")",null,"12,7 x 20,32 cm (5\" x 8\")",776,828,828]
[24,"Cover","Left-to-Right Reading Book Cover Layout","Barcode Placement","=CclrBarcodeP",null,null,null,null,null,null,null,null,null,null,null,null,48,0.375,0.25,0.375,9.5250000000000004,"9,525 mm (0,375\")",null,"12,85 x 19,84 cm (5,06\" x 7,81\")",776,828,828]
[25,"Cover","Right-to-Left Reading Book Cover Layout","Spine Width","=WcSpine",null,null,null,null,null,null,null,null,null,null,null,null,49,0.375,0.25,0.375,9.5250000000000004,"9,525 mm (0,375\")",null,"13,34 x 20,32 cm (5,25\" x 8\")",776,828,828]
[26,"Cover","Right-to-Left Reading Book Cover Layout","Spine Text Width","=WcSpineText",null,null,null,null,null,null,null,null,null,null,null,null,50,0.375,0.25,0.375,9.5250000000000004,"9,525 mm (0,375\")",null,"13,97 x 21,59 cm (5,5\" x 8,5\")",776,828,828]
[27,"Cover","Right-to-Left Reading Book Cover Layout","Spine Margin","=CcMarginS",null,null,null,null,null,null,null,null,null,null,null,null,51,0.375,0.25,0.375,9.5250000000000004,"9,525 mm (0,375\")",null,"15,24 x 22,86 cm (6\" x 9\")",776,828,828]
[28,"Cover","Right-to-Left Reading Book Cover Layout","Bleed","=CcBleed",null,null,null,null,null,null,null,null,null,null,null,null,52,0.375,0.25,0.375,9.5250000000000004,"9,525 mm (0,375\")",null,"15,6 x 23,39 cm (6,14\" x 9,21\")",776,828,828]
[29,"Cover","Right-to-Left Reading Book Cover Layout","Trim Variance","=CcTrimVar",null,null,null,null,null,null,null,null,null,null,null,null,53,0.375,0.25,0.375,9.5250000000000004,"9,525 mm (0,375\")",null,"16,99 x 24,41 cm (6,69\" x 9,61\")",776,828,828]
[30,"Cover","Right-to-Left Reading Book Cover Layout","Outside Margin","=CcMarginO",null,null,null,null,null,null,null,null,null,null,null,null,54,0.375,0.25,0.375,9.5250000000000004,"9,525 mm (0,375\")",null,"17,78 x 25,4 cm (7\" x 10\")",776,828,828]
[31,"Cover","Right-to-Left Reading Book Cover Layout","Barcode Size","=CcbarSize",null,null,null,null,null,null,null,null,null,null,null,null,55,0.375,0.25,0.375,9.5250000000000004,"9,525 mm (0,375\")",null,"18,9 x 24,61 cm (7,44\" x 9,69\")",776,828,828]
[32,"Cover","Right-to-Left Reading Book Cover Layout","Safe Zone Size","=ScSafeZone",null,null,null,null,null,null,null,null,null,null,null,null,56,0.375,0.25,0.375,9.5250000000000004,"9,525 mm (0,375\")",null,"19,05 x 23,5 cm (7,5\" x 9,25\")",776,828,828]
[33,"Cover","Right-to-Left Reading Book Cover Layout","Trim Size","=ScTrim",null,null,null,null,null,null,null,null,null,null,null,null,57,0.375,0.25,0.375,9.5250000000000004,"9,525 mm (0,375\")",null,"20,32 x 25,4 cm (8\" x 10\")",776,828,828]
[34,"Cover","Right-to-Left Reading Book Cover Layout","Cover Size","=ScSize",null,null,null,null,null,null,null,null,null,null,null,null,58,0.375,0.25,0.375,9.5250000000000004,"9,525 mm (0,375\")",null,"20,96 x 15,24 cm (8,25\" x 6\")",750,800,800]
[35,"Cover","Right-to-Left Reading Book Cover Layout","Barcode Placement","=CcrlBarcodeP",null,null,null,null,null,null,null,null,null,null,null,null,59,0.375,0.25,0.375,9.5250000000000004,"9,525 mm (0,375\")",null,"20,96 x 20,96 cm (8,25\" x 8,25\")",750,800,800]
[36,"Input","Input","Page Number","=IPgNo",null,null,null,null,null,null,null,null,null,null,null,null,60,0.375,0.25,0.375,9.5250000000000004,"9,525 mm (0,375\")",null,"21,59 x 21,59 cm (8,5\" x 8,5\")",550,590,590]
[37,"Input","Input","Trim Size","=ITrimSize",null,null,null,null,null,null,null,null,null,null,null,null,61,0.375,0.25,0.375,9.5250000000000004,"9,525 mm (0,375\")",null,"21,59 x 27,94 cm (8,5\" x 11\")",550,590,590]
[38,"Input","Input","Trim Width","=IWtrim",null,null,null,null,null,null,null,null,null,null,null,null,62,0.375,0.25,0.375,9.5250000000000004,"9,525 mm (0,375\")",null,"21 x 29,7 cm (8,27\" x 11,69\")",730,780,"Non disponible"]
[39,"Input","Input","Trim Height","=IHtrim",null,null,null,null,null,null,null,null,null,null,null,null,63,0.375,0.25,0.375,9.5250000000000004,"9,525 mm (0,375\")"]
[40,"Input","Input","Ink and Paper Choice","=IPaperChoice",null,null,null,null,null,null,null,null,null,null,null,null,64,0.375,0.25,0.375,9.5250000000000004,"9,525 mm (0,375\")"]
[41,"Input","Variable","PPI","=VPPI",null,null,null,null,null,null,null,null,null,null,null,null,65,0.375,0.25,0.375,9.5250000000000004,"9,525 mm (0,375\")"]
[42,"Input","Input","Bleed Option","=Ibleed",null,null,null,null,null,null,null,null,null,null,null,null,66,0.375,0.25,0.375,9.5250000000000004,"9,525 mm (0,375\")"]
[43,"Input","Input","Cover Reading","=Ireading",null,null,null,null,null,null,null,null,null,null,null,null,67,0.375,0.25,0.375,9.5250000000000004,"9,525 mm (0,375\")"]
[44,"Cover","Left-to-Right Reading Book Cover Layout","Back Cover Width","=WcBack",null,null,null,null,null,null,null,null,null,null,null,null,68,0.375,0.25,0.375,9.5250000000000004,"9,525 mm (0,375\")"]
[45,"Cover","Right-to-Left Reading Book Cover Layout","Back Cover Width","=WcBack",null,null,null,null,null,null,null,null,null,null,null,null,69,0.375,0.25,0.375,9.5250000000000004,"9,525 mm (0,375\")"]
[46,"Cover","Left-to-Right Reading Book Cover Layout","Front Cover Width","=WcFront",null,null,null,null,null,null,null,null,null,null,null,null,70,0.375,0.25,0.375,9.5250000000000004,"9,525 mm (0,375\")"]
[47,"Cover","Right-to-Left Reading Book Cover Layout","Front Cover Width","=WcFront",null,null,null,null,null,null,null,null,null,null,null,null,71,0.375,0.25,0.375,9.5250000000000004,"9,525 mm (0,375\")"]
[48,"Cover","Left-to-Right Reading Book Cover Layout","Back Cover Height","=HcBack",null,null,null,null,null,null,null,null,null,null,null,null,72,0.375,0.25,0.375,9.5250000000000004,"9,525 mm (0,375\")"]
[49,"Cover","Right-to-Left Reading Book Cover Layout","Back Cover Height","=HcBack",null,null,null,null,null,null,null,null,null,null,null,null,73,0.375,0.25,0.375,9.5250000000000004,"9,525 mm (0,375\")"]
[50,"Cover","Left-to-Right Reading Book Cover Layout","Front Cover Height","=HcFront",null,null,null,null,null,null,null,null,null,null,null,null,74,0.375,0.25,0.375,9.5250000000000004,"9,525 mm (0,375\")"]
[51,"Cover","Right-to-Left Reading Book Cover Layout","Front Cover Height","=HcFront",null,null,null,null,null,null,null,null,null,null,null,null,75,0.375,0.25,0.375,9.5250000000000004,"9,525 mm (0,375\")"]
[52,"Cover","Left-to-Right Reading Book Cover Layout","Spine Right Margin","=CcMarginSR",null,null,null,null,null,null,null,null,null,null,null,null,76,0.375,0.25,0.375,9.5250000000000004,"9,525 mm (0,375\")"]
[53,"Cover","Right-to-Left Reading Book Cover Layout","Spine Right Margin","=CcMarginSR",null,null,null,null,null,null,null,null,null,null,null,null,77,0.375,0.25,0.375,9.5250000000000004,"9,525 mm (0,375\")"]
[54,"Cover","Left-to-Right Reading Book Cover Layout","Spine Left Margin","=CcMarginSL",null,null,null,null,null,null,null,null,null,null,null,null,78,0.375,0.25,0.375,9.5250000000000004,"9,525 mm (0,375\")"]
[55,"Cover","Right-to-Left Reading Book Cover Layout","Spine Left Margin","=CcMarginSL",null,null,null,null,null,null,null,null,null,null,null,null,79,0.375,0.25,0.375,9.5250000000000004,"9,525 mm (0,375\")"]
[56,"Cover","Left-to-Right Reading Book Cover Layout","Bleed Cover Top","=CcBleedT",null,null,null,null,null,null,null,null,null,null,null,null,80,0.375,0.25,0.375,9.5250000000000004,"9,525 mm (0,375\")"]
[57,"Cover","Right-to-Left Reading Book Cover Layout","Bleed Cover Top","=CcBleedT",null,null,null,null,null,null,null,null,null,null,null,null,81,0.375,0.25,0.375,9.5250000000000004,"9,525 mm (0,375\")"]
[58,"Cover","Left-to-Right Reading Book Cover Layout","Bleed Cover Bottom","=CcBleedB",null,null,null,null,null,null,null,null,null,null,null,null,82,0.375,0.25,0.375,9.5250000000000004,"9,525 mm (0,375\")"]
[59,"Cover","Right-to-Left Reading Book Cover Layout","Bleed Cover Bottom","=CcBleedB",null,null,null,null,null,null,null,null,null,null,null,null,83,0.375,0.25,0.375,9.5250000000000004,"9,525 mm (0,375\")"]
[60,"Cover","Left-to-Right Reading Book Cover Layout","Bleed Cover Right","=CcBleedR",null,null,null,null,null,null,null,null,null,null,null,null,84,0.375,0.25,0.375,9.5250000000000004,"9,525 mm (0,375\")"]
[61,"Cover","Right-to-Left Reading Book Cover Layout","Bleed Cover Right","=CcBleedR",null,null,null,null,null,null,null,null,null,null,null,null,85,0.375,0.25,0.375,9.5250000000000004,"9,525 mm (0,375\")"]
[62,"Cover","Left-to-Right Reading Book Cover Layout","Bleed Cover Left","=CcBleedL",null,null,null,null,null,null,null,null,null,null,null,null,86,0.375,0.25,0.375,9.5250000000000004,"9,525 mm (0,375\")"]
[63,"Cover","Right-to-Left Reading Book Cover Layout","Bleed Cover Left","=CcBleedL",null,null,null,null,null,null,null,null,null,null,null,null,87,0.375,0.25,0.375,9.5250000000000004,"9,525 mm (0,375\")"]
[64,"Manuscript","Bleed Manuscript Layout","Bleed Outside","=CmBleedO",null,null,null,null,null,null,null,null,null,null,null,null,88,0.375,0.25,0.375,{"$f":"ROUND(S66*mm, 5)","v":9.5250000000000004},"9,525 mm (0,375\")"]
[65,"Manuscript","Bleed Manuscript Layout","Bleed Top","=CmBleedT",null,null,null,null,null,null,null,null,null,null,null,null,89,0.375,0.25,0.375,9.5250000000000004,{"$f":"V67&\" mm\"&\" (\"&S67&\"\"\")\"","v":"9,525 mm (0,375\")"}]
[66,"Manuscript","Bleed Manuscript Layout","Bleed Bottom","=CmBleedB",null,null,null,null,null,null,null,null,null,null,null,null,90,0.375,0.25,0.375,9.5250000000000004,"9,525 mm (0,375\")"]
[67,"Cover","Right-to-Left Reading Book Cover Layout","Cover Safe Zone Height","=WcSafeZone",null,null,null,null,null,null,null,null,null,null,null,null,91,0.375,0.25,0.375,9.5250000000000004,"9,525 mm (0,375\")"]
[68,"Cover","Right-to-Left Reading Book Cover Layout","Cover Safe Zone Width","=HcSafeZone",null,null,null,null,null,null,null,null,null,null,null,null,92,0.375,0.25,0.375,9.5250000000000004,"9,525 mm (0,375\")"]
[69,"Cover","Left-to-Right Reading Book Cover Layout","Cover Safe Zone Height","=WcSafeZone",null,null,null,null,null,null,null,null,null,null,null,null,93,0.375,0.25,0.375,9.5250000000000004,"9,525 mm (0,375\")"]
[70,"Cover","Left-to-Right Reading Book Cover Layout","Cover Safe Zone Width","=HcSafeZone",null,null,null,null,null,null,null,null,null,null,null,null,94,0.375,0.25,0.375,9.5250000000000004,"9,525 mm (0,375\")"]
[null,null,null,null,null,null,null,null,null,null,null,null,null,null,null,null,null,95,0.375,0.25,0.375,9.5250000000000004,"9,525 mm (0,375\")"]
[null,null,null,null,null,null,null,null,null,null,null,null,null,null,null,null,null,96,0.375,0.25,0.375,9.5250000000000004,"9,525 mm (0,375\")"]
[null,null,null,null,null,null,null,null,null,null,null,null,null,null,null,null,null,97,0.375,0.25,0.375,9.5250000000000004,"9,525 mm (0,375\")"]
[null,null,null,null,null,null,null,null,null,null,null,null,null,null,null,null,null,98,0.375,0.25,0.375,9.5250000000000004,"9,525 mm (0,375\")"]
[null,null,null,null,null,null,null,null,null,null,null,null,null,null,null,null,null,99,0.375,0.25,0.375,9.5250000000000004,"9,525 mm (0,375\")"]
[null,null,null,null,null,null,null,null,null,null,null,null,null,null,null,null,null,100,0.375,0.25,0.375,9.5250000000000004,"9,525 mm (0,375\")"]
[null,null,null,null,null,null,null,null,null,null,null,null,null,null,null,null,null,101,0.375,0.25,0.375,9.5250000000000004,"9,525 mm (0,375\")"]
[null,null,null,null,null,null,null,null,null,null,null,null,null,null,null,null,null,102,0.375,0.25,0.375,9.5250000000000004,"9,525 mm (0,375\")"]
[null,null,null,null,null,null,null,null,null,null,null,null,null,null,null,null,null,103,0.375,0.25,0.375,9.5250000000000004,"9,525 mm (0,375\")"]
[null,null,null,null,null,null,null,null,null,null,null,null,null,null,null,null,null,104,0.375,0.25,0.375,9.5250000000000004,"9,525 mm (0,375\")"]
[null,null,null,null,null,null,null,null,null,null,null,null,null,null,null,null,null,105,0.375,0.25,0.375,9.5250000000000004,"9,525 mm (0,375\")"]
[null,null,null,null,null,null,null,null,null,null,null,null,null,null,null,null,null,106,0.375,0.25,0.375,9.5250000000000004,"9,525 mm (0,375\")"]
[null,null,null,null,null,null,null,null,null,null,null,null,null,null,null,null,null,107,0.375,0.25,0.375,9.5250000000000004,"9,525 mm (0,375\")"]
[null,null,null,null,null,null,null,null,null,null,null,null,null,null,null,null,null,108,0.375,0.25,0.375,9.5250000000000004,"9,525 mm (0,375\")"]
[null,null,null,null,null,null,null,null,null,null,null,null,null,null,null,null,null,109,0.375,0.25,0.375,9.5250000000000004,"9,525 mm (0,375\")"]
[null,null,null,null,null,null,null,null,null,null,null,null,null,null,null,null,null,110,0.375,0.25,0.375,9.5250000000000004,"9,525 mm (0,375\")"]
[null,null,null,null,null,null,null,null,null,null,null,null,null,null,null,null,null,111,0.375,0.25,0.375,9.5250000000000004,"9,525 mm (0,375\")"]
[null,null,null,null,null,null,null,null,null,null,null,null,null,null,null,null,null,112,0.375,0.25,0.375,9.5250000000000004,"9,525 mm (0,375\")"]
[null,null,null,null,null,null,null,null,null,null,null,null,null,null,null,null,null,113,0.375,0.25,0.375,9.5250000000000004,"9,525 mm (0,375\")"]
[null,null,null,null,null,null,null,null,null,null,null,null,null,null,null,null,null,114,0.375,0.25,0.375,9.5250000000000004,"9,525 mm (0,375\")"]
[null,null,null,null,null,null,null,null,null,null,null,null,null,null,null,null,null,115,0.375,0.25,0.375,9.5250000000000004,"9,525 mm (0,375\")"]
[null,null,null,null,null,null,null,null,null,null,null,null,null,null,null,null,null,116,0.375,0.25,0.375,9.5250000000000004,"9,525 mm (0,375\")"]
[null,null,null,null,null,null,null,null,null,null,null,null,null,null,null,null,null,117,0.375,0.25,0.375,9.5250000000000004,"9,525 mm (0,375\")"]
[null,null,null,null,null,null,null,null,null,null,null,null,null,null,null,null,null,118,0.375,0.25,0.375,9.5250000000000004,"9,525 mm (0,375\")"]
[null,null,null,null,null,null,null,null,null,null,null,null,null,null,null,null,null,119,0.375,0.25,0.375,9.5250000000000004,"9,525 mm (0,375\")"]
[null,null,null,null,null,null,null,null,null,null,null,null,null,null,null,null,null,120,0.375,0.25,0.375,9.5250000000000004,"9,525 mm (0,375\")"]
[null,null,null,null,null,null,null,null,null,null,null,null,null,null,null,null,null,121,0.375,0.25,0.375,9.5250000000000004,"9,525 mm (0,375\")"]
[null,null,null,null,null,null,null,null,null,null,null,null,null,null,null,null,null,122,0.375,0.25,0.375,9.5250000000000004,"9,525 mm (0,375\")"]
[null,null,null,null,null,null,null,null,null,null,null,null,null,null,null,null,null,123,0.375,0.25,0.375,9.5250000000000004,"9,525 mm (0,375\")"]
[null,null,null,null,null,null,null,null,null,null,null,null,null,null,null,null,null,124,0.375,0.25,0.375,9.5250000000000004,"9,525 mm (0,375\")"]
[null,null,null,null,null,null,null,null,null,null,null,null,null,null,null,null,null,125,0.375,0.25,0.375,9.5250000000000004,"9,525 mm (0,375\")"]
[null,null,null,null,null,null,null,null,null,null,null,null,null,null,null,null,null,126,0.375,0.25,0.375,9.5250000000000004,"9,525 mm (0,375\")"]
[null,null,null,null,null,null,null,null,null,null,null,null,null,null,null,null,null,127,0.375,0.25,0.375,9.5250000000000004,"9,525 mm (0,375\")"]
[null,null,null,null,null,null,null,null,null,null,null,null,null,null,null,null,null,128,0.375,0.25,0.375,9.5250000000000004,"9,525 mm (0,375\")"]
[null,null,null,null,null,null,null,null,null,null,null,null,null,null,null,null,null,129,0.375,0.25,0.375,9.5250000000000004,"9,525 mm (0,375\")"]
[null,null,null,null,null,null,null,null,null,null,null,null,null,null,null,null,null,130,0.375,0.25,0.375,9.5250000000000004,"9,525 mm (0,375\")"]
[null,null,null,null,null,null,null,null,null,null,null,null,null,null,null,null,null,131,0.375,0.25,0.375,9.5250000000000004,"9,525 mm (0,375\")"]
[null,null,null,null,null,null,null,null,null,null,null,null,null,null,null,null,null,132,0.375,0.25,0.375,9.5250000000000004,"9,525 mm (0,375\")"]
[null,null,null,null,null,null,null,null,null,null,null,null,null,null,null,null,null,133,0.375,0.25,0.375,9.5250000000000004,"9,525 mm (0,375\")"]
[null,null,null,null,null,null,null,null,null,null,null,null,null,null,null,null,null,134,0.375,0.25,0.375,9.5250000000000004,"9,525 mm (0,375\")"]
[null,null,null,null,null,null,null,null,null,null,null,null,null,null,null,null,null,135,0.375,0.25,0.375,9.5250000000000004,"9,525 mm (0,375\")"]
[null,null,null,null,null,null,null,null,null,null,null,null,null,null,null,null,null,136,0.375,0.25,0.375,9.5250000000000004,"9,525 mm (0,375\")"]
[null,null,null,null,null,null,null,null,null,null,null,null,null,null,null,null,null,137,0.375,0.25,0.375,9.5250000000000004,"9,525 mm (0,375\")"]
[null,null,null,null,null,null,null,null,null,null,null,null,null,null,null,null,null,138,0.375,0.25,0.375,9.5250000000000004,"9,525 mm (0,375\")"]
[null,null,null,null,null,null,null,null,null,null,null,null,null,null,null,null,null,139,0.375,0.25,0.375,9.5250000000000004,"9,525 mm (0,375\")"]
[null,null,null,null,null,null,null,null,null,null,null,null,null,null,null,null,null,140,0.375,0.25,0.375,9.5250000000000004,"9,525 mm (0,375\")"]
[null,null,null,null,null,null,null,null,null,null,null,null,null,null,null,null,null,141,0.375,0.25,0.375,9.5250000000000004,"9,525 mm (0,375\")"]
[null,null,null,null,null,null,null,null,null,null,null,null,null,null,null,null,null,142,0.375,0.25,0.375,9.5250000000000004,"9,525 mm (0,375\")"]
[null,null,null,null,null,null,null,null,null,null,null,null,null,null,null,null,null,143,0.375,0.25,0.375,9.5250000000000004,"9,525 mm (0,375\")"]
[null,null,null,null,null,null,null,null,null,null,null,null,null,null,null,null,null,144,0.375,0.25,0.375,9.5250000000000004,"9,525 mm (0,375\")"]
[null,null,null,null,null,null,null,null,null,null,null,null,null,null,null,null,null,145,0.375,0.25,0.375,9.5250000000000004,"9,525 mm (0,375\")"]
[null,null,null,null,null,null,null,null,null,null,null,null,null,null,null,null,null,146,0.375,0.25,0.375,9.5250000000000004,"9,525 mm (0,375\")"]
[null,null,null,null,null,null,null,null,null,null,null,null,null,null,null,null,null,147,0.375,0.25,0.375,9.5250000000000004,"9,525 mm (0,375\")"]
[null,null,null,null,null,null,null,null,null,null,null,null,null,null,null,null,null,148,0.375,0.25,0.375,9.5250000000000004,"9,525 mm (0,375\")"]
[null,null,null,null,null,null,null,null,null,null,null,null,null,null,null,null,null,149,0.375,0.25,0.375,9.5250000000000004,"9,525 mm (0,375\")"]
[null,null,null,null,null,null,null,null,null,null,null,null,null,null,null,null,null,150,0.375,0.25,0.375,9.5250000000000004,"9,525 mm (0,375\")"]
[null,null,null,null,null,null,null,null,null,null,null,null,null,null,null,null,null,151,0.5,0.25,0.375,12.7,"12,7 mm (0,5\")"]
[null,null,null,null,null,null,null,null,null,null,null,null,null,null,null,null,null,152,0.5,0.25,0.375,{"$f":"ROUND(S130*mm, 5)","v":12.7},"12,7 mm (0,5\")"]
[null,null,null,null,null,null,null,null,null,null,null,null,null,null,null,null,null,153,0.5,0.25,0.375,12.7,{"$f":"V131&\" mm\"&\" (\"&S131&\"\"\")\"","v":"12,7 mm (0,5\")"}]
[null,null,null,null,null,null,null,null,null,null,null,null,null,null,null,null,null,154,0.5,0.25,0.375,12.7,"12,7 mm (0,5\")"]
[null,null,null,null,null,null,null,null,null,null,null,null,null,null,null,null,null,155,0.5,0.25,0.375,12.7,"12,7 mm (0,5\")"]
[null,null,null,null,null,null,null,null,null,null,null,null,null,null,null,null,null,156,0.5,0.25,0.375,12.7,"12,7 mm (0,5\")"]
[null,null,null,null,null,null,null,null,null,null,null,null,null,null,null,null,null,157,0.5,0.25,0.375,12.7,"12,7 mm (0,5\")"]
[null,null,null,null,null,null,null,null,null,null,null,null,null,null,null,null,null,158,0.5,0.25,0.375,12.7,"12,7 mm (0,5\")"]
[null,null,null,null,null,null,null,null,null,null,null,null,null,null,null,null,null,159,0.5,0.25,0.375,12.7,"12,7 mm (0,5\")"]
[null,null,null,null,null,null,null,null,null,null,null,null,null,null,null,null,null,160,0.5,0.25,0.375,12.7,"12,7 mm (0,5\")"]
[null,null,null,null,null,null,null,null,null,null,null,null,null,null,null,null,null,161,0.5,0.25,0.375,12.7,"12,7 mm (0,5\")"]
[null,null,null,null,null,null,null,null,null,null,null,null,null,null,null,null,null,162,0.5,0.25,0.375,12.7,"12,7 mm (0,5\")"]
[null,null,null,null,null,null,null,null,null,null,null,null,null,null,null,null,null,163,0.5,0.25,0.375,12.7,"12,7 mm (0,5\")"]
[null,null,null,null,null,null,null,null,null,null,null,null,null,null,null,null,null,164,0.5,0.25,0.375,12.7,"12,7 mm (0,5\")"]
[null,null,null,null,null,null,null,null,null,null,null,null,null,null,null,null,null,165,0.5,0.25,0.375,12.7,"12,7 mm (0,5\")"]
[null,null,null,null,null,null,null,null,null,null,null,null,null,null,null,null,null,166,0.5,0.25,0.375,12.7,"12,7 mm (0,5\")"]
[null,null,null,null,null,null,null,null,null,null,null,null,null,null,null,null,null,167,0.5,0.25,0.375,12.7,"12,7 mm (0,5\")"]
[null,null,null,null,null,null,null,null,null,null,null,null,null,null,null,null,null,168,0.5,0.25,0.375,12.7,"12,7 mm (0,5\")"]
[null,null,null,null,null,null,null,null,null,null,null,null,null,null,null,null,null,169,0.5,0.25,0.375,12.7,"12,7 mm (0,5\")"]
[null,null,null,null,null,null,null,null,null,null,null,null,null,null,null,null,null,170,0.5,0.25,0.375,12.7,"12,7 mm (0,5\")"]
[null,null,null,null,null,null,null,null,null,null,null,null,null,null,null,null,null,171,0.5,0.25,0.375,12.7,"12,7 mm (0,5\")"]
[null,null,null,null,null,null,null,null,null,null,null,null,null,null,null,null,null,172,0.5,0.25,0.375,12.7,"12,7 mm (0,5\")"]
[null,null,null,null,null,null,null,null,null,null,null,null,null,null,null,null,null,173,0.5,0.25,0.375,12.7,"12,7 mm (0,5\")"]
[null,null,null,null,null,null,null,null,null,null,null,null,null,null,null,null,null,174,0.5,0.25,0.375,12.7,"12,7 mm (0,5\")"]
[null,null,null,null,null,null,null,null,null,null,null,null,null,null,null,null,null,175,0.5,0.25,0.375,12.7,"12,7 mm (0,5\")"]
[null,null,null,null,null,null,null,null,null,null,null,null,null,null,null,null,null,176,0.5,0.25,0.375,12.7,"12,7 mm (0,5\")"]
[null,null,null,null,null,null,null,null,null,null,null,null,null,null,null,null,null,177,0.5,0.25,0.375,12.7,"12,7 mm (0,5\")"]
[null,null,null,null,null,null,null,null,null,null,null,null,null,null,null,null,null,178,0.5,0.25,0.375,12.7,"12,7 mm (0,5\")"]
[null,null,null,null,null,null,null,null,null,null,null,null,null,null,null,null,null,179,0.5,0.25,0.375,12.7,"12,7 mm (0,5\")"]
[null,null,null,null,null,null,null,null,null,null,null,null,null,null,null,null,null,180,0.5,0.25,0.375,12.7,"12,7 mm (0,5\")"]
[null,null,null,null,null,null,null,null,null,null,null,null,null,null,null,null,null,181,0.5,0.25,0.375,12.7,"12,7 mm (0,5\")"]
[null,null,null,null,null,null,null,null,null,null,null,null,null,null,null,null,null,182,0.5,0.25,0.375,12.7,"12,7 mm (0,5\")"]
[null,null,null,null,null,null,null,null,null,null,null,null,null,null,null,null,null,183,0.5,0.25,0.375,12.7,"12,7 mm (0,5\")"]
[null,null,null,null,null,null,null,null,null,null,null,null,null,null,null,null,null,184,0.5,0.25,0.375,12.7,"12,7 mm (0,5\")"]
[null,null,null,null,null,null,null,null,null,null,null,null,null,null,null,null,null,185,0.5,0.25,0.375,12.7,"12,7 mm (0,5\")"]
[null,null,null,null,null,null,null,null,null,null,null,null,null,null,null,null,null,186,0.5,0.25,0.375,12.7,"12,7 mm (0,5\")"]
[null,null,null,null,null,null,null,null,null,null,null,null,null,null,null,null,null,187,0.5,0.25,0.375,12.7,"12,7 mm (0,5\")"]
[null,null,null,null,null,null,null,null,null,null,null,null,null,null,null,null,null,188,0.5,0.25,0.375,12.7,"12,7 mm (0,5\")"]
[null,null,null,null,null,null,null,null,null,null,null,null,null,null,null,null,null,189,0.5,0.25,0.375,12.7,"12,7 mm (0,5\")"]
[null,null,null,null,null,null,null,null,null,null,null,null,null,null,null,null,null,190,0.5,0.25,0.375,12.7,"12,7 mm (0,5\")"]
[null,null,null,null,null,null,null,null,null,null,null,null,null,null,null,null,null,191,0.5,0.25,0.375,12.7,"12,7 mm (0,5\")"]
[null,null,null,null,null,null,null,null,null,null,null,null,null,null,null,null,null,192,0.5,0.25,0.375,12.7,"12,7 mm (0,5\")"]
[null,null,null,null,null,null,null,null,null,null,null,null,null,null,null,null,null,193,0.5,0.25,0.375,12.7,"12,7 mm (0,5\")"]
[null,null,null,null,null,null,null,null,null,null,null,null,null,null,null,null,null,194,0.5,0.25,0.375,12.7,"12,7 mm (0,5\")"]
[null,null,null,null,null,null,null,null,null,null,null,null,null,null,null,null,null,195,0.5,0.25,0.375,12.7,"12,7 mm (0,5\")"]
[null,null,null,null,null,null,null,null,null,null,null,null,null,null,null,null,null,196,0.5,0.25,0.375,12.7,"12,7 mm (0,5\")"]
[null,null,null,null,null,null,null,null,null,null,null,null,null,null,null,null,null,197,0.5,0.25,0.375,12.7,"12,7 mm (0,5\")"]
[null,null,null,null,null,null,null,null,null,null,null,null,null,null,null,null,null,198,0.5,0.25,0.375,12.7,"12,7 mm (0,5\")"]
[null,null,null,null,null,null,null,null,null,null,null,null,null,null,null,null,null,199,0.5,0.25,0.375,12.7,"12,7 mm (0,5\")"]
[null,null,null,null,null,null,null,null,null,null,null,null,null,null,null,null,null,200,0.5,0.25,0.375,12.7,"12,7 mm (0,5\")"]
[null,null,null,null,null,null,null,null,null,null,null,null,null,null,null,null,null,201,0.5,0.25,0.375,12.7,"12,7 mm (0,5\")"]
[null,null,null,null,null,null,null,null,null,null,null,null,null,null,null,null,null,202,0.5,0.25,0.375,12.7,"12,7 mm (0,5\")"]
[null,null,null,null,null,null,null,null,null,null,null,null,null,null,null,null,null,203,0.5,0.25,0.375,12.7,"12,7 mm (0,5\")"]
[null,null,null,null,null,null,null,null,null,null,null,null,null,null,null,null,null,204,0.5,0.25,0.375,12.7,"12,7 mm (0,5\")"]
[null,null,null,null,null,null,null,null,null,null,null,null,null,null,null,null,null,205,0.5,0.25,0.375,12.7,"12,7 mm (0,5\")"]
[null,null,null,null,null,null,null,null,null,null,null,null,null,null,null,null,null,206,0.5,0.25,0.375,12.7,"12,7 mm (0,5\")"]
[null,null,null,null,null,null,null,null,null,null,null,null,null,null,null,null,null,207,0.5,0.25,0.375,12.7,"12,7 mm (0,5\")"]
[null,null,null,null,null,null,null,null,null,null,null,null,null,null,null,null,null,208,0.5,0.25,0.375,12.7,"12,7 mm (0,5\")"]
[null,null,null,null,null,null,null,null,null,null,null,null,null,null,null,null,null,209,0.5,0.25,0.375,12.7,"12,7 mm (0,5\")"]
[null,null,null,null,null,null,null,null,null,null,null,null,null,null,null,null,null,210,0.5,0.25,0.375,12.7,"12,7 mm (0,5\")"]
[null,null,null,null,null,null,null,null,null,null,null,null,null,null,null,null,null,211,0.5,0.25,0.375,12.7,"12,7 mm (0,5\")"]
[null,null,null,null,null,null,null,null,null,null,null,null,null,null,null,null,null,212,0.5,0.25,0.375,12.7,"12,7 mm (0,5\")"]
[null,null,null,null,null,null,null,null,null,null,null,null,null,null,null,null,null,213,0.5,0.25,0.375,12.7,"12,7 mm (0,5\")"]
[null,null,null,null,null,null,null,null,null,null,null,null,null,null,null,null,null,214,0.5,0.25,0.375,12.7,"12,7 mm (0,5\")"]
[null,null,null,null,null,null,null,null,null,null,null,null,null,null,null,null,null,215,0.5,0.25,0.375,12.7,"12,7 mm (0,5\")"]
[null,null,null,null,null,null,null,null,null,null,null,null,null,null,null,null,null,216,0.5,0.25,0.375,{"$f":"ROUND(S194*mm, 5)","v":12.7},"12,7 mm (0,5\")"]
[null,null,null,null,null,null,null,null,null,null,null,null,null,null,null,null,null,217,0.5,0.25,0.375,12.7,{"$f":"V195&\" mm\"&\" (\"&S195&\"\"\")\"","v":"12,7 mm (0,5\")"}]
[null,null,null,null,null,null,null,null,null,null,null,null,null,null,null,null,null,218,0.5,0.25,0.375,12.7,"12,7 mm (0,5\")"]
[null,null,null,null,null,null,null,null,null,null,null,null,null,null,null,null,null,219,0.5,0.25,0.375,12.7,"12,7 mm (0,5\")"]
[null,null,null,null,null,null,null,null,null,null,null,null,null,null,null,null,null,220,0.5,0.25,0.375,12.7,"12,7 mm (0,5\")"]
[null,null,null,null,null,null,null,null,null,null,null,null,null,null,null,null,null,221,0.5,0.25,0.375,12.7,"12,7 mm (0,5\")"]
[null,null,null,null,null,null,null,null,null,null,null,null,null,null,null,null,null,222,0.5,0.25,0.375,12.7,"12,7 mm (0,5\")"]
[null,null,null,null,null,null,null,null,null,null,null,null,null,null,null,null,null,223,0.5,0.25,0.375,12.7,"12,7 mm (0,5\")"]
[null,null,null,null,null,null,null,null,null,null,null,null,null,null,null,null,null,224,0.5,0.25,0.375,12.7,"12,7 mm (0,5\")"]
[null,null,null,null,null,null,null,null,null,null,null,null,null,null,null,null,null,225,0.5,0.25,0.375,12.7,"12,7 mm (0,5\")"]
[null,null,null,null,null,null,null,null,null,null,null,null,null,null,null,null,null,226,0.5,0.25,0.375,12.7,"12,7 mm (0,5\")"]
[null,null,null,null,null,null,null,null,null,null,null,null,null,null,null,null,null,227,0.5,0.25,0.375,12.7,"12,7 mm (0,5\")"]
[null,null,null,null,null,null,null,null,null,null,null,null,null,null,null,null,null,228,0.5,0.25,0.375,12.7,"12,7 mm (0,5\")"]
[null,null,null,null,null,null,null,null,null,null,null,null,null,null,null,null,null,229,0.5,0.25,0.375,12.7,"12,7 mm (0,5\")"]
[null,null,null,null,null,null,null,null,null,null,null,null,null,null,null,null,null,230,0.5,0.25,0.375,12.7,"12,7 mm (0,5\")"]
[null,null,null,null,null,null,null,null,null,null,null,null,null,null,null,null,null,231,0.5,0.25,0.375,12.7,"12,7 mm (0,5\")"]
[null,null,null,null,null,null,null,null,null,null,null,null,null,null,null,null,null,232,0.5,0.25,0.375,12.7,"12,7 mm (0,5\")"]
[null,null,null,null,null,null,null,null,null,null,null,null,null,null,null,null,null,233,0.5,0.25,0.375,12.7,"12,7 mm (0,5\")"]
[null,null,null,null,null,null,null,null,null,null,null,null,null,null,null,null,null,234,0.5,0.25,0.375,12.7,"12,7 mm (0,5\")"]
[null,null,null,null,null,null,null,null,null,null,null,null,null,null,null,null,null,235,0.5,0.25,0.375,12.7,"12,7 mm (0,5\")"]
[null,null,null,null,null,null,null,null,null,null,null,null,null,null,null,null,null,236,0.5,0.25,0.375,12.7,"12,7 mm (0,5\")"]
[null,null,null,null,null,null,null,null,null,null,null,null,null,null,null,null,null,237,0.5,0.25,0.375,12.7,"12,7 mm (0,5\")"]
[null,null,null,null,null,null,null,null,null,null,null,null,null,null,null,null,null,238,0.5,0.25,0.375,12.7,"12,7 mm (0,5\")"]
[null,null,null,null,null,null,null,null,null,null,null,null,null,null,null,null,null,239,0.5,0.25,0.375,12.7,"12,7 mm (0,5\")"]
[null,null,null,null,null,null,null,null,null,null,null,null,null,null,null,null,null,240,0.5,0.25,0.375,12.7,"12,7 mm (0,5\")"]
[null,null,null,null,null,null,null,null,null,null,null,null,null,null,null,null,null,241,0.5,0.25,0.375,12.7,"12,7 mm (0,5\")"]
[null,null,null,null,null,null,null,null,null,null,null,null,null,null,null,null,null,242,0.5,0.25,0.375,12.7,"12,7 mm (0,5\")"]
[null,null,null,null,null,null,null,null,null,null,null,null,null,null,null,null,null,243,0.5,0.25,0.375,12.7,"12,7 mm (0,5\")"]
[null,null,null,null,null,null,null,null,null,null,null,null,null,null,null,null,null,244,0.5,0.25,0.375,12.7,"12,7 mm (0,5\")"]
[null,null,null,null,null,null,null,null,null,null,null,null,null,null,null,null,null,245,0.5,0.25,0.375,12.7,"12,7 mm (0,5\")"]
[null,null,null,null,null,null,null,null,null,null,null,null,null,null,null,null,null,246,0.5,0.25,0.375,12.7,"12,7 mm (0,5\")"]
[null,null,null,null,null,null,null,null,null,null,null,null,null,null,null,null,null,247,0.5,0.25,0.375,12.7,"12,7 mm (0,5\")"]
[null,null,null,null,null,null,null,null,null,null,null,null,null,null,null,null,null,248,0.5,0.25,0.375,12.7,"12,7 mm (0,5\")"]
[null,null,null,null,null,null,null,null,null,null,null,null,null,null,null,null,null,249,0.5,0.25,0.375,12.7,"12,7 mm (0,5\")"]
[null,null,null,null,null,null,null,null,null,null,null,null,null,null,null,null,null,250,0.5,0.25,0.375,12.7,"12,7 mm (0,5\")"]
[null,null,null,null,null,null,null,null,null,null,null,null,null,null,null,null,null,251,0.5,0.25,0.375,12.7,"12,7 mm (0,5\")"]
[null,null,null,null,null,null,null,null,null,null,null,null,null,null,null,null,null,252,0.5,0.25,0.375,12.7,"12,7 mm (0,5\")"]
[null,null,null,null,null,null,null,null,null,null,null,null,null,null,null,null,null,253,0.5,0.25,0.375,12.7,"12,7 mm (0,5\")"]
[null,null,null,null,null,null,null,null,null,null,null,null,null,null,null,null,null,254,0.5,0.25,0.375,12.7,"12,7 mm (0,5\")"]
[null,null,null,null,null,null,null,null,null,null,null,null,null,null,null,null,null,255,0.5,0.25,0.375,12.7,"12,7 mm (0,5\")"]
[null,null,null,null,null,null,null,null,null,null,null,null,null,null,null,null,null,256,0.5,0.25,0.375,12.7,"12,7 mm (0,5\")"]
[null,null,null,null,null,null,null,null,null,null,null,null,null,null,null,null,null,257,0.5,0.25,0.375,12.7,"12,7 mm (0,5\")"]
[null,null,null,null,null,null,null,null,null,null,null,null,null,null,null,null,null,258,0.5,0.25,0.375,12.7,"12,7 mm (0,5\")"]
[null,null,null,null,null,null,null,null,null,null,null,null,null,null,null,null,null,259,0.5,0.25,0.375,12.7,"12,7 mm (0,5\")"]
[null,null,null,null,null,null,null,null,null,null,null,null,null,null,null,null,null,260,0.5,0.25,0.375,12.7,"12,7 mm (0,5\")"]
[null,null,null,null,null,null,null,null,null,null,null,null,null,null,null,null,null,261,0.5,0.25,0.375,12.7,"12,7 mm (0,5\")"]
[null,null,null,null,null,null,null,null,null,null,null,null,null,null,null,null,null,262,0.5,0.25,0.375,12.7,"12,7 mm (0,5\")"]
[null,null,null,null,null,null,null,null,null,null,null,null,null,null,null,null,null,263,0.5,0.25,0.375,12.7,"12,7 mm (0,5\")"]
[null,null,null,null,null,null,null,null,null,null,null,null,null,null,null,null,null,264,0.5,0.25,0.375,12.7,"12,7 mm (0,5\")"]
[null,null,null,null,null,null,null,null,null,null,null,null,null,null,null,null,null,265,0.5,0.25,0.375,12.7,"12,7 mm (0,5\")"]
[null,null,null,null,null,null,null,null,null,null,null,null,null,null,null,null,null,266,0.5,0.25,0.375,12.7,"12,7 mm (0,5\")"]
[null,null,null,null,null,null,null,null,null,null,null,null,null,null,null,null,null,267,0.5,0.25,0.375,12.7,"12,7 mm (0,5\")"]
[null,null,null,null,null,null,null,null,null,null,null,null,null,null,null,null,null,268,0.5,0.25,0.375,12.7,"12,7 mm (0,5\")"]
[null,null,null,null,null,null,null,null,null,null,null,null,null,null,null,null,null,269,0.5,0.25,0.375,12.7,"12,7 mm (0,5\")"]
[null,null,null,null,null,null,null,null,null,null,null,null,null,null,null,null,null,270,0.5,0.25,0.375,12.7,"12,7 mm (0,5\")"]
[null,null,null,null,null,null,null,null,null,null,null,null,null,null,null,null,null,271,0.5,0.25,0.375,12.7,"12,7 mm (0,5\")"]
[null,null,null,null,null,null,null,null,null,null,null,null,null,null,null,null,null,272,0.5,0.25,0.375,12.7,"12,7 mm (0,5\")"]
[null,null,null,null,null,null,null,null,null,null,null,null,null,null,null,null,null,273,0.5,0.25,0.375,12.7,"12,7 mm (0,5\")"]
[null,null,null,null,null,null,null,null,null,null,null,null,null,null,null,null,null,274,0.5,0.25,0.375,12.7,"12,7 mm (0,5\")"]
[null,null,null,null,null,null,null,null,null,null,null,null,null,null,null,null,null,275,0.5,0.25,0.375,12.7,"12,7 mm (0,5\")"]
[null,null,null,null,null,null,null,null,null,null,null,null,null,null,null,null,null,276,0.5,0.25,0.375,12.7,"12,7 mm (0,5\")"]
[null,null,null,null,null,null,null,null,null,null,null,null,null,null,null,null,null,277,0.5,0.25,0.375,12.7,"12,7 mm (0,5\")"]
[null,null,null,null,null,null,null,null,null,null,null,null,null,null,null,null,null,278,0.5,0.25,0.375,12.7,"12,7 mm (0,5\")"]
[null,null,null,null,null,null,null,null,null,null,null,null,null,null,null,null,null,279,0.5,0.25,0.375,12.7,"12,7 mm (0,5\")"]
[null,null,null,null,null,null,null,null,null,null,null,null,null,null,null,null,null,280,0.5,0.25,0.375,{"$f":"ROUND(S258*mm, 5)","v":12.7},"12,7 mm (0,5\")"]
[null,null,null,null,null,null,null,null,null,null,null,null,null,null,null,null,null,281,0.5,0.25,0.375,12.7,{"$f":"V259&\" mm\"&\" (\"&S259&\"\"\")\"","v":"12,7 mm (0,5\")"}]
[null,null,null,null,null,null,null,null,null,null,null,null,null,null,null,null,null,282,0.5,0.25,0.375,12.7,"12,7 mm (0,5\")"]
[null,null,null,null,null,null,null,null,null,null,null,null,null,null,null,null,null,283,0.5,0.25,0.375,12.7,"12,7 mm (0,5\")"]
[null,null,null,null,null,null,null,null,null,null,null,null,null,null,null,null,null,284,0.5,0.25,0.375,12.7,"12,7 mm (0,5\")"]
[null,null,null,null,null,null,null,null,null,null,null,null,null,null,null,null,null,285,0.5,0.25,0.375,12.7,"12,7 mm (0,5\")"]
[null,null,null,null,null,null,null,null,null,null,null,null,null,null,null,null,null,286,0.5,0.25,0.375,12.7,"12,7 mm (0,5\")"]
[null,null,null,null,null,null,null,null,null,null,null,null,null,null,null,null,null,287,0.5,0.25,0.375,12.7,"12,7 mm (0,5\")"]
[null,null,null,null,null,null,null,null,null,null,null,null,null,null,null,null,null,288,0.5,0.25,0.375,12.7,"12,7 mm (0,5\")"]
[null,null,null,null,null,null,null,null,null,null,null,null,null,null,null,null,null,289,0.5,0.25,0.375,12.7,"12,7 mm (0,5\")"]
[null,null,null,null,null,null,null,null,null,null,null,null,null,null,null,null,null,290,0.5,0.25,0.375,12.7,"12,7 mm (0,5\")"]
[null,null,null,null,null,null,null,null,null,null,null,null,null,null,null,null,null,291,0.5,0.25,0.375,12.7,"12,7 mm (0,5\")"]
[null,null,null,null,null,null,null,null,null,null,null,null,null,null,null,null,null,292,0.5,0.25,0.375,12.7,"12,7 mm (0,5\")"]
[null,null,null,null,null,null,null,null,null,null,null,null,null,null,null,null,null,293,0.5,0.25,0.375,12.7,"12,7 mm (0,5\")"]
[null,null,null,null,null,null,null,null,null,null,null,null,null,null,null,null,null,294,0.5,0.25,0.375,12.7,"12,7 mm (0,5\")"]
[null,null,null,null,null,null,null,null,null,null,null,null,null,null,null,null,null,295,0.5,0.25,0.375,12.7,"12,7 mm (0,5\")"]
[null,null,null,null,null,null,null,null,null,null,null,null,null,null,null,null,null,296,0.5,0.25,0.375,12.7,"12,7 mm (0,5\")"]
[null,null,null,null,null,null,null,null,null,null,null,null,null,null,null,null,null,297,0.5,0.25,0.375,12.7,"12,7 mm (0,5\")"]
[null,null,null,null,null,null,null,null,null,null,null,null,null,null,null,null,null,298,0.5,0.25,0.375,12.7,"12,7 mm (0,5\")"]
[null,null,null,null,null,null,null,null,null,null,null,null,null,null,null,null,null,299,0.5,0.25,0.375,12.7,"12,7 mm (0,5\")"]
[null,null,null,null,null,null,null,null,null,null,null,null,null,null,null,null,null,300,0.5,0.25,0.375,12.7,"12,7 mm (0,5\")"]
[null,null,null,null,null,null,null,null,null,null,null,null,null,null,null,null,null,301,0.625,0.25,0.375,15.875,"15,875 mm (0,625\")"]
[null,null,null,null,null,null,null,null,null,null,null,null,null,null,null,null,null,302,0.625,0.25,0.375,15.875,"15,875 mm (0,625\")"]
[null,null,null,null,null,null,null,null,null,null,null,null,null,null,null,null,null,303,0.625,0.25,0.375,15.875,"15,875 mm (0,625\")"]
[null,null,null,null,null,null,null,null,null,null,null,null,null,null,null,null,null,304,0.625,0.25,0.375,15.875,"15,875 mm (0,625\")"]
[null,null,null,null,null,null,null,null,null,null,null,null,null,null,null,null,null,305,0.625,0.25,0.375,15.875,"15,875 mm (0,625\")"]
[null,null,null,null,null,null,null,null,null,null,null,null,null,null,null,null,null,306,0.625,0.25,0.375,15.875,"15,875 mm (0,625\")"]
[null,null,null,null,null,null,null,null,null,null,null,null,null,null,null,null,null,307,0.625,0.25,0.375,15.875,"15,875 mm (0,625\")"]
[null,null,null,null,null,null,null,null,null,null,null,null,null,null,null,null,null,308,0.625,0.25,0.375,15.875,"15,875 mm (0,625\")"]
[null,null,null,null,null,null,null,null,null,null,null,null,null,null,null,null,null,309,0.625,0.25,0.375,15.875,"15,875 mm (0,625\")"]
[null,null,null,null,null,null,null,null,null,null,null,null,null,null,null,null,null,310,0.625,0.25,0.375,15.875,"15,875 mm (0,625\")"]
[null,null,null,null,null,null,null,null,null,null,null,null,null,null,null,null,null,311,0.625,0.25,0.375,15.875,"15,875 mm (0,625\")"]
[null,null,null,null,null,null,null,null,null,null,null,null,null,null,null,null,null,312,0.625,0.25,0.375,15.875,"15,875 mm (0,625\")"]
[null,null,null,null,null,null,null,null,null,null,null,null,null,null,null,null,null,313,0.625,0.25,0.375,15.875,"15,875 mm (0,625\")"]
[null,null,null,null,null,null,null,null,null,null,null,null,null,null,null,null,null,314,0.625,0.25,0.375,15.875,"15,875 mm (0,625\")"]
[null,null,null,null,null,null,null,null,null,null,null,null,null,null,null,null,null,315,0.625,0.25,0.375,15.875,"15,875 mm (0,625\")"]
[null,null,null,null,null,null,null,null,null,null,null,null,null,null,null,null,null,316,0.625,0.25,0.375,15.875,"15,875 mm (0,625\")"]
[null,null,null,null,null,null,null,null,null,null,null,null,null,null,null,null,null,317,0.625,0.25,0.375,15.875,"15,875 mm (0,625\")"]
[null,null,null,null,null,null,null,null,null,null,null,null,null,null,null,null,null,318,0.625,0.25,0.375,15.875,"15,875 mm (0,625\")"]
[null,null,null,null,null,null,null,null,null,null,null,null,null,null,null,null,null,319,0.625,0.25,0.375,15.875,"15,875 mm (0,625\")"]
[null,null,null,null,null,null,null,null,null,null,null,null,null,null,null,null,null,320,0.625,0.25,0.375,15.875,"15,875 mm (0,625\")"]
[null,null,null,null,null,null,null,null,null,null,null,null,null,null,null,null,null,321,0.625,0.25,0.375,15.875,"15,875 mm (0,625\")"]
[null,null,null,null,null,null,null,null,null,null,null,null,null,null,null,null,null,322,0.625,0.25,0.375,15.875,"15,875 mm (0,625\")"]
[null,null,null,null,null,null,null,null,null,null,null,null,null,null,null,null,null,323,0.625,0.25,0.375,15.875,"15,875 mm (0,625\")"]
[null,null,null,null,null,null,null,null,null,null,null,null,null,null,null,null,null,324,0.625,0.25,0.375,15.875,"15,875 mm (0,625\")"]
[null,null,null,null,null,null,null,null,null,null,null,null,null,null,null,null,null,325,0.625,0.25,0.375,15.875,"15,875 mm (0,625\")"]
[null,null,null,null,null,null,null,null,null,null,null,null,null,null,null,null,null,326,0.625,0.25,0.375,15.875,"15,875 mm (0,625\")"]
[null,null,null,null,null,null,null,null,null,null,null,null,null,null,null,null,null,327,0.625,0.25,0.375,15.875,"15,875 mm (0,625\")"]
[null,null,null,null,null,null,null,null,null,null,null,null,null,null,null,null,null,328,0.625,0.25,0.375,15.875,"15,875 mm (0,625\")"]
[null,null,null,null,null,null,null,null,null,null,null,null,null,null,null,null,null,329,0.625,0.25,0.375,15.875,"15,875 mm (0,625\")"]
[null,null,null,null,null,null,null,null,null,null,null,null,null,null,null,null,null,330,0.625,0.25,0.375,15.875,"15,875 mm (0,625\")"]
[null,null,null,null,null,null,null,null,null,null,null,null,null,null,null,null,null,331,0.625,0.25,0.375,15.875,"15,875 mm (0,625\")"]
[null,null,null,null,null,null,null,null,null,null,null,null,null,null,null,null,null,332,0.625,0.25,0.375,15.875,"15,875 mm (0,625\")"]
[null,null,null,null,null,null,null,null,null,null,null,null,null,null,null,null,null,333,0.625,0.25,0.375,15.875,"15,875 mm (0,625\")"]
[null,null,null,null,null,null,null,null,null,null,null,null,null,null,null,null,null,334,0.625,0.25,0.375,15.875,"15,875 mm (0,625\")"]
[null,null,null,null,null,null,null,null,null,null,null,null,null,null,null,null,null,335,0.625,0.25,0.375,15.875,"15,875 mm (0,625\")"]
[null,null,null,null,null,null,null,null,null,null,null,null,null,null,null,null,null,336,0.625,0.25,0.375,15.875,"15,875 mm (0,625\")"]
[null,null,null,null,null,null,null,null,null,null,null,null,null,null,null,null,null,337,0.625,0.25,0.375,15.875,"15,875 mm (0,625\")"]
[null,null,null,null,null,null,null,null,null,null,null,null,null,null,null,null,null,338,0.625,0.25,0.375,15.875,"15,875 mm (0,625\")"]
[null,null,null,null,null,null,null,null,null,null,null,null,null,null,null,null,null,339,0.625,0.25,0.375,15.875,"15,875 mm (0,625\")"]
[null,null,null,null,null,null,null,null,null,null,null,null,null,null,null,null,null,340,0.625,0.25,0.375,15.875,"15,875 mm (0,625\")"]
[null,null,null,null,null,null,null,null,null,null,null,null,null,null,null,null,null,341,0.625,0.25,0.375,15.875,"15,875 mm (0,625\")"]
[null,null,null,null,null,null,null,null,null,null,null,null,null,null,null,null,null,342,0.625,0.25,0.375,15.875,"15,875 mm (0,625\")"]
[null,null,null,null,null,null,null,null,null,null,null,null,null,null,null,null,null,343,0.625,0.25,0.375,15.875,"15,875 mm (0,625\")"]
[null,null,null,null,null,null,null,null,null,null,null,null,null,null,null,null,null,344,0.625,0.25,0.375,{"$f":"ROUND(S322*mm, 5)","v":15.875},"15,875 mm (0,625\")"]
[null,null,null,null,null,null,null,null,null,null,null,null,null,null,null,null,null,345,0.625,0.25,0.375,15.875,{"$f":"V323&\" mm\"&\" (\"&S323&\"\"\")\"","v":"15,875 mm (0,625\")"}]
[null,null,null,null,null,null,null,null,null,null,null,null,null,null,null,null,null,346,0.625,0.25,0.375,15.875,"15,875 mm (0,625\")"]
[null,null,null,null,null,null,null,null,null,null,null,null,null,null,null,null,null,347,0.625,0.25,0.375,15.875,"15,875 mm (0,625\")"]
[null,null,null,null,null,null,null,null,null,null,null,null,null,null,null,null,null,348,0.625,0.25,0.375,15.875,"15,875 mm (0,625\")"]
[null,null,null,null,null,null,null,null,null,null,null,null,null,null,null,null,null,349,0.625,0.25,0.375,15.875,"15,875 mm (0,625\")"]
[null,null,null,null,null,null,null,null,null,null,null,null,null,null,null,null,null,350,0.625,0.25,0.375,15.875,"15,875 mm (0,625\")"]
[null,null,null,null,null,null,null,null,null,null,null,null,null,null,null,null,null,351,0.625,0.25,0.375,15.875,"15,875 mm (0,625\")"]
[null,null,null,null,null,null,null,null,null,null,null,null,null,null,null,null,null,352,0.625,0.25,0.375,15.875,"15,875 mm (0,625\")"]
[null,null,null,null,null,null,null,null,null,null,null,null,null,null,null,null,null,353,0.625,0.25,0.375,15.875,"15,875 mm (0,625\")"]
[null,null,null,null,null,null,null,null,null,null,null,null,null,null,null,null,null,354,0.625,0.25,0.375,15.875,"15,875 mm (0,625\")"]
[null,null,null,null,null,null,null,null,null,null,null,null,null,null,null,null,null,355,0.625,0.25,0.375,15.875,"15,875 mm (0,625\")"]
[null,null,null,null,null,null,null,null,null,null,null,null,null,null,null,null,null,356,0.625,0.25,0.375,15.875,"15,875 mm (0,625\")"]
[null,null,null,null,null,null,null,null,null,null,null,null,null,null,null,null,null,357,0.625,0.25,0.375,15.875,"15,875 mm (0,625\")"]
[null,null,null,null,null,null,null,null,null,null,null,null,null,null,null,null,null,358,0.625,0.25,0.375,15.875,"15,875 mm (0,625\")"]
[null,null,null,null,null,null,null,null,null,null,null,null,null,null,null,null,null,359,0.625,0.25,0.375,15.875,"15,875 mm (0,625\")"]
[null,null,null,null,null,null,null,null,null,null,null,null,null,null,null,null,null,360,0.625,0.25,0.375,15.875,"15,875 mm (0,625\")"]
[null,null,null,null,null,null,null,null,null,null,null,null,null,null,null,null,null,361,0.625,0.25,0.375,15.875,"15,875 mm (0,625\")"]
[null,null,null,null,null,null,null,null,null,null,null,null,null,null,null,null,null,362,0.625,0.25,0.375,15.875,"15,875 mm (0,625\")"]
[null,null,null,null,null,null,null,null,null,null,null,null,null,null,null,null,null,363,0.625,0.25,0.375,15.875,"15,875 mm (0,625\")"]
[null,null,null,null,null,null,null,null,null,null,null,null,null,null,null,null,null,364,0.625,0.25,0.375,15.875,"15,875 mm (0,625\")"]
[null,null,null,null,null,null,null,null,null,null,null,null,null,null,null,null,null,365,0.625,0.25,0.375,15.875,"15,875 mm (0,625\")"]
[null,null,null,null,null,null,null,null,null,null,null,null,null,null,null,null,null,366,0.625,0.25,0.375,15.875,"15,875 mm (0,625\")"]
[null,null,null,null,null,null,null,null,null,null,null,null,null,null,null,null,null,367,0.625,0.25,0.375,15.875,"15,875 mm (0,625\")"]
[null,null,null,null,null,null,null,null,null,null,null,null,null,null,null,null,null,368,0.625,0.25,0.375,15.875,"15,875 mm (0,625\")"]
[null,null,null,null,null,null,null,null,null,null,null,null,null,null,null,null,null,369,0.625,0.25,0.375,15.875,"15,875 mm (0,625\")"]
[null,null,null,null,null,null,null,null,null,null,null,null,null,null,null,null,null,370,0.625,0.25,0.375,15.875,"15,875 mm (0,625\")"]
[null,null,null,null,null,null,null,null,null,null,null,null,null,null,null,null,null,371,0.625,0.25,0.375,15.875,"15,875 mm (0,625\")"]
[null,null,null,null,null,null,null,null,null,null,null,null,null,null,null,null,null,372,0.625,0.25,0.375,15.875,"15,875 mm (0,625\")"]
[null,null,null,null,null,null,null,null,null,null,null,null,null,null,null,null,null,373,0.625,0.25,0.375,15.875,"15,875 mm (0,625\")"]
[null,null,null,null,null,null,null,null,null,null,null,null,null,null,null,null,null,374,0.625,0.25,0.375,15.875,"15,875 mm (0,625\")"]
[null,null,null,null,null,null,null,null,null,null,null,null,null,null,null,null,null,375,0.625,0.25,0.375,15.875,"15,875 mm (0,625\")"]
[null,null,null,null,null,null,null,null,null,null,null,null,null,null,null,null,null,376,0.625,0.25,0.375,15.875,"15,875 mm (0,625\")"]
[null,null,null,null,null,null,null,null,null,null,null,null,null,null,null,null,null,377,0.625,0.25,0.375,15.875,"15,875 mm (0,625\")"]
[null,null,null,null,null,null,null,null,null,null,null,null,null,null,null,null,null,378,0.625,0.25,0.375,15.875,"15,875 mm (0,625\")"]
[null,null,null,null,null,null,null,null,null,null,null,null,null,null,null,null,null,379,0.625,0.25,0.375,15.875,"15,875 mm (0,625\")"]
[null,null,null,null,null,null,null,null,null,null,null,null,null,null,null,null,null,380,0.625,0.25,0.375,15.875,"15,875 mm (0,625\")"]
[null,null,null,null,null,null,null,null,null,null,null,null,null,null,null,null,null,381,0.625,0.25,0.375,15.875,"15,875 mm (0,625\")"]
[null,null,null,null,null,null,null,null,null,null,null,null,null,null,null,null,null,382,0.625,0.25,0.375,15.875,"15,875 mm (0,625\")"]
[null,null,null,null,null,null,null,null,null,null,null,null,null,null,null,null,null,383,0.625,0.25,0.375,15.875,"15,875 mm (0,625\")"]
[null,null,null,null,null,null,null,null,null,null,null,null,null,null,null,null,null,384,0.625,0.25,0.375,15.875,"15,875 mm (0,625\")"]
[null,null,null,null,null,null,null,null,null,null,null,null,null,null,null,null,null,385,0.625,0.25,0.375,15.875,"15,875 mm (0,625\")"]
[null,null,null,null,null,null,null,null,null,null,null,null,null,null,null,null,null,386,0.625,0.25,0.375,15.875,"15,875 mm (0,625\")"]
[null,null,null,null,null,null,null,null,null,null,null,null,null,null,null,null,null,387,0.625,0.25,0.375,15.875,"15,875 mm (0,625\")"]
[null,null,null,null,null,null,null,null,null,null,null,null,null,null,null,null,null,388,0.625,0.25,0.375,15.875,"15,875 mm (0,625\")"]
[null,null,null,null,null,null,null,null,null,null,null,null,null,null,null,null,null,389,0.625,0.25,0.375,15.875,"15,875 mm (0,625\")"]
[null,null,null,null,null,null,null,null,null,null,null,null,null,null,null,null,null,390,0.625,0.25,0.375,15.875,"15,875 mm (0,625\")"]
[null,null,null,null,null,null,null,null,null,null,null,null,null,null,null,null,null,391,0.625,0.25,0.375,15.875,"15,875 mm (0,625\")"]
[null,null,null,null,null,null,null,null,null,null,null,null,null,null,null,null,null,392,0.625,0.25,0.375,15.875,"15,875 mm (0,625\")"]
[null,null,null,null,null,null,null,null,null,null,null,null,null,null,null,null,null,393,0.625,0.25,0.375,15.875,"15,875 mm (0,625\")"]
[null,null,null,null,null,null,null,null,null,null,null,null,null,null,null,null,null,394,0.625,0.25,0.375,15.875,"15,875 mm (0,625\")"]
[null,null,null,null,null,null,null,null,null,null,null,null,null,null,null,null,null,395,0.625,0.25,0.375,15.875,"15,875 mm (0,625\")"]
[null,null,null,null,null,null,null,null,null,null,null,null,null,null,null,null,null,396,0.625,0.25,0.375,15.875,"15,875 mm (0,625\")"]
[null,null,null,null,null,null,null,null,null,null,null,null,null,null,null,null,null,397,0.625,0.25,0.375,15.875,"15,875 mm (0,625\")"]
[null,null,null,null,null,null,null,null,null,null,null,null,null,null,null,null,null,398,0.625,0.25,0.375,15.875,"15,875 mm (0,625\")"]
[null,null,null,null,null,null,null,null,null,null,null,null,null,null,null,null,null,399,0.625,0.25,0.375,15.875,"15,875 mm (0,625\")"]
[null,null,null,null,null,null,null,null,null,null,null,null,null,null,null,null,null,400,0.625,0.25,0.375,15.875,"15,875 mm (0,625\")"]
[null,null,null,null,null,null,null,null,null,null,null,null,null,null,null,null,null,401,0.625,0.25,0.375,15.875,"15,875 mm (0,625\")"]
[null,null,null,null,null,null,null,null,null,null,null,null,null,null,null,null,null,402,0.625,0.25,0.375,15.875,"15,875 mm (0,625\")"]
[null,null,null,null,null,null,null,null,null,null,null,null,null,null,null,null,null,403,0.625,0.25,0.375,15.875,"15,875 mm (0,625\")"]
[null,null,null,null,null,null,null,null,null,null,null,null,null,null,null,null,null,404,0.625,0.25,0.375,15.875,"15,875 mm (0,625\")"]
[null,null,null,null,null,null,null,null,null,null,null,null,null,null,null,null,null,405,0.625,0.25,0.375,15.875,"15,875 mm (0,625\")"]
[null,null,null,null,null,null,null,null,null,null,null,null,null,null,null,null,null,406,0.625,0.25,0.375,15.875,"15,875 mm (0,625\")"]
[null,null,null,null,null,null,null,null,null,null,null,null,null,null,null,null,null,407,0.625,0.25,0.375,15.875,"15,875 mm (0,625\")"]
[null,null,null,null,null,null,null,null,null,null,null,null,null,null,null,null,null,408,0.625,0.25,0.375,{"$f":"ROUND(S386*mm, 5)","v":15.875},"15,875 mm (0,625\")"]
[null,null,null,null,null,null,null,null,null,null,null,null,null,null,null,null,null,409,0.625,0.25,0.375,15.875,{"$f":"V387&\" mm\"&\" (\"&S387&\"\"\")\"","v":"15,875 mm (0,625\")"}]
[null,null,null,null,null,null,null,null,null,null,null,null,null,null,null,null,null,410,0.625,0.25,0.375,15.875,"15,875 mm (0,625\")"]
[null,null,null,null,null,null,null,null,null,null,null,null,null,null,null,null,null,411,0.625,0.25,0.375,15.875,"15,875 mm (0,625\")"]
[null,null,null,null,null,null,null,null,null,null,null,null,null,null,null,null,null,412,0.625,0.25,0.375,15.875,"15,875 mm (0,625\")"]
[null,null,null,null,null,null,null,null,null,null,null,null,null,null,null,null,null,413,0.625,0.25,0.375,15.875,"15,875 mm (0,625\")"]
[null,null,null,null,null,null,null,null,null,null,null,null,null,null,null,null,null,414,0.625,0.25,0.375,15.875,"15,875 mm (0,625\")"]
[null,null,null,null,null,null,null,null,null,null,null,null,null,null,null,null,null,415,0.625,0.25,0.375,15.875,"15,875 mm (0,625\")"]
[null,null,null,null,null,null,null,null,null,null,null,null,null,null,null,null,null,416,0.625,0.25,0.375,15.875,"15,875 mm (0,625\")"]
[null,null,null,null,null,null,null,null,null,null,null,null,null,null,null,null,null,417,0.625,0.25,0.375,15.875,"15,875 mm (0,625\")"]
[null,null,null,null,null,null,null,null,null,null,null,null,null,null,null,null,null,418,0.625,0.25,0.375,15.875,"15,875 mm (0,625\")"]
[null,null,null,null,null,null,null,null,null,null,null,null,null,null,null,null,null,419,0.625,0.25,0.375,15.875,"15,875 mm (0,625\")"]
[null,null,null,null,null,null,null,null,null,null,null,null,null,null,null,null,null,420,0.625,0.25,0.375,15.875,"15,875 mm (0,625\")"]
[null,null,null,null,null,null,null,null,null,null,null,null,null,null,null,null,null,421,0.625,0.25,0.375,15.875,"15,875 mm (0,625\")"]
[null,null,null,null,null,null,null,null,null,null,null,null,null,null,null,null,null,422,0.625,0.25,0.375,15.875,"15,875 mm (0,625\")"]
[null,null,null,null,null,null,null,null,null,null,null,null,null,null,null,null,null,423,0.625,0.25,0.375,15.875,"15,875 mm (0,625\")"]
[null,null,null,null,null,null,null,null,null,null,null,null,null,null,null,null,null,424,0.625,0.25,0.375,15.875,"15,875 mm (0,625\")"]
[null,null,null,null,null,null,null,null,null,null,null,null,null,null,null,null,null,425,0.625,0.25,0.375,15.875,"15,875 mm (0,625\")"]
[null,null,null,null,null,null,null,null,null,null,null,null,null,null,null,null,null,426,0.625,0.25,0.375,15.875,"15,875 mm (0,625\")"]
[null,null,null,null,null,null,null,null,null,null,null,null,null,null,null,null,null,427,0.625,0.25,0.375,15.875,"15,875 mm (0,625\")"]
[null,null,null,null,null,null,null,null,null,null,null,null,null,null,null,null,null,428,0.625,0.25,0.375,15.875,"15,875 mm (0,625\")"]
[null,null,null,null,null,null,null,null,null,null,null,null,null,null,null,null,null,429,0.625,0.25,0.375,15.875,"15,875 mm (0,625\")"]
[null,null,null,null,null,null,null,null,null,null,null,null,null,null,null,null,null,430,0.625,0.25,0.375,15.875,"15,875 mm (0,625\")"]
[null,null,null,null,null,null,null,null,null,null,null,null,null,null,null,null,null,431,0.625,0.25,0.375,15.875,"15,875 mm (0,625\")"]
[null,null,null,null,null,null,null,null,null,null,null,null,null,null,null,null,null,432,0.625,0.25,0.375,15.875,"15,875 mm (0,625\")"]
[null,null,null,null,null,null,null,null,null,null,null,null,null,null,null,null,null,433,0.625,0.25,0.375,15.875,"15,875 mm (0,625\")"]
[null,null,null,null,null,null,null,null,null,null,null,null,null,null,null,null,null,434,0.625,0.25,0.375,15.875,"15,875 mm (0,625\")"]
[null,null,null,null,null,null,null,null,null,null,null,null,null,null,null,null,null,435,0.625,0.25,0.375,15.875,"15,875 mm (0,625\")"]
[null,null,null,null,null,null,null,null,null,null,null,null,null,null,null,null,null,436,0.625,0.25,0.375,15.875,"15,875 mm (0,625\")"]
[null,null,null,null,null,null,null,null,null,null,null,null,null,null,null,null,null,437,0.625,0.25,0.375,15.875,"15,875 mm (0,625\")"]
[null,null,null,null,null,null,null,null,null,null,null,null,null,null,null,null,null,438,0.625,0.25,0.375,15.875,"15,875 mm (0,625\")"]
[null,null,null,null,null,null,null,null,null,null,null,null,null,null,null,null,null,439,0.625,0.25,0.375,15.875,"15,875 mm (0,625\")"]
[null,null,null,null,null,null,null,null,null,null,null,null,null,null,null,null,null,440,0.625,0.25,0.375,15.875,"15,875 mm (0,625\")"]
[null,null,null,null,null,null,null,null,null,null,null,null,null,null,null,null,null,441,0.625,0.25,0.375,15.875,"15,875 mm (0,625\")"]
[null,null,null,null,null,null,null,null,null,null,null,null,null,null,null,null,null,442,0.625,0.25,0.375,15.875,"15,875 mm (0,625\")"]
[null,null,null,null,null,null,null,null,null,null,null,null,null,null,null,null,null,443,0.625,0.25,0.375,15.875,"15,875 mm (0,625\")"]
[null,null,null,null,null,null,null,null,null,null,null,null,null,null,null,null,null,444,0.625,0.25,0.375,15.875,"15,875 mm (0,625\")"]
[null,null,null,null,null,null,null,null,null,null,null,null,null,null,null,null,null,445,0.625,0.25,0.375,15.875,"15,875 mm (0,625\")"]
[null,null,null,null,null,null,null,null,null,null,null,null,null,null,null,null,null,446,0.625,0.25,0.375,15.875,"15,875 mm (0,625\")"]
[null,null,null,null,null,null,null,null,null,null,null,null,null,null,null,null,null,447,0.625,0.25,0.375,15.875,"15,875 mm (0,625\")"]
[null,null,null,null,null,null,null,null,null,null,null,null,null,null,null,null,null,448,0.625,0.25,0.375,15.875,"15,875 mm (0,625\")"]
[null,null,null,null,null,null,null,null,null,null,null,null,null,null,null,null,null,449,0.625,0.25,0.375,15.875,"15,875 mm (0,625\")"]
[null,null,null,null,null,null,null,null,null,null,null,null,null,null,null,null,null,450,0.625,0.25,0.375,15.875,"15,875 mm (0,625\")"]
[null,null,null,null,null,null,null,null,null,null,null,null,null,null,null,null,null,451,0.625,0.25,0.375,15.875,"15,875 mm (0,625\")"]
[null,null,null,null,null,null,null,null,null,null,null,null,null,null,null,null,null,452,0.625,0.25,0.375,15.875,"15,875 mm (0,625\")"]
[null,null,null,null,null,null,null,null,null,null,null,null,null,null,null,null,null,453,0.625,0.25,0.375,15.875,"15,875 mm (0,625\")"]
[null,null,null,null,null,null,null,null,null,null,null,null,null,null,null,null,null,454,0.625,0.25,0.375,15.875,"15,875 mm (0,625\")"]
[null,null,null,null,null,null,null,null,null,null,null,null,null,null,null,null,null,455,0.625,0.25,0.375,15.875,"15,875 mm (0,625\")"]
[null,null,null,null,null,null,null,null,null,null,null,null,null,null,null,null,null,456,0.625,0.25,0.375,15.875,"15,875 mm (0,625\")"]
[null,null,null,null,null,null,null,null,null,null,null,null,null,null,null,null,null,457,0.625,0.25,0.375,15.875,"15,875 mm (0,625\")"]
[null,null,null,null,null,null,null,null,null,null,null,null,null,null,null,null,null,458,0.625,0.25,0.375,15.875,"15,875 mm (0,625\")"]
[null,null,null,null,null,null,null,null,null,null,null,null,null,null,null,null,null,459,0.625,0.25,0.375,15.875,"15,875 mm (0,625\")"]
[null,null,null,null,null,null,null,null,null,null,null,null,null,null,null,null,null,460,0.625,0.25,0.375,15.875,"15,875 mm (0,625\")"]
[null,null,null,null,null,null,null,null,null,null,null,null,null,null,null,null,null,461,0.625,0.25,0.375,15.875,"15,875 mm (0,625\")"]
[null,null,null,null,null,null,null,null,null,null,null,null,null,null,null,null,null,462,0.625,0.25,0.375,15.875,"15,875 mm (0,625\")"]
[null,null,null,null,null,null,null,null,null,null,null,null,null,null,null,null,null,463,0.625,0.25,0.375,15.875,"15,875 mm (0,625\")"]
[null,null,null,null,null,null,null,null,null,null,null,null,null,null,null,null,null,464,0.625,0.25,0.375,15.875,"15,875 mm (0,625\")"]
[null,null,null,null,null,null,null,null,null,null,null,null,null,null,null,null,null,465,0.625,0.25,0.375,15.875,"15,875 mm (0,625\")"]
[null,null,null,null,null,null,null,null,null,null,null,null,null,null,null,null,null,466,0.625,0.25,0.375,15.875,"15,875 mm (0,625\")"]
[null,null,null,null,null,null,null,null,null,null,null,null,null,null,null,null,null,467,0.625,0.25,0.375,15.875,"15,875 mm (0,625\")"]
[null,null,null,null,null,null,null,null,null,null,null,null,null,null,null,null,null,468,0.625,0.25,0.375,15.875,"15,875 mm (0,625\")"]
[null,null,null,null,null,null,null,null,null,null,null,null,null,null,null,null,null,469,0.625,0.25,0.375,15.875,"15,875 mm (0,625\")"]
[null,null,null,null,null,null,null,null,null,null,null,null,null,null,null,null,null,470,0.625,0.25,0.375,15.875,"15,875 mm (0,625\")"]
[null,null,null,null,null,null,null,null,null,null,null,null,null,null,null,null,null,471,0.625,0.25,0.375,15.875,"15,875 mm (0,625\")"]
[null,null,null,null,null,null,null,null,null,null,null,null,null,null,null,null,null,472,0.625,0.25,0.375,{"$f":"ROUND(S450*mm, 5)","v":15.875},"15,875 mm (0,625\")"]
[null,null,null,null,null,null,null,null,null,null,null,null,null,null,null,null,null,473,0.625,0.25,0.375,15.875,{"$f":"V451&\" mm\"&\" (\"&S451&\"\"\")\"","v":"15,875 mm (0,625\")"}]
[null,null,null,null,null,null,null,null,null,null,null,null,null,null,null,null,null,474,0.625,0.25,0.375,15.875,"15,875 mm (0,625\")"]
[null,null,null,null,null,null,null,null,null,null,null,null,null,null,null,null,null,475,0.625,0.25,0.375,15.875,"15,875 mm (0,625\")"]
[null,null,null,null,null,null,null,null,null,null,null,null,null,null,null,null,null,476,0.625,0.25,0.375,15.875,"15,875 mm (0,625\")"]
[null,null,null,null,null,null,null,null,null,null,null,null,null,null,null,null,null,477,0.625,0.25,0.375,15.875,"15,875 mm (0,625\")"]
[null,null,null,null,null,null,null,null,null,null,null,null,null,null,null,null,null,478,0.625,0.25,0.375,15.875,"15,875 mm (0,625\")"]
[null,null,null,null,null,null,null,null,null,null,null,null,null,null,null,null,null,479,0.625,0.25,0.375,15.875,"15,875 mm (0,625\")"]
[null,null,null,null,null,null,null,null,null,null,null,null,null,null,null,null,null,480,0.625,0.25,0.375,15.875,"15,875 mm (0,625\")"]
[null,null,null,null,null,null,null,null,null,null,null,null,null,null,null,null,null,481,0.625,0.25,0.375,15.875,"15,875 mm (0,625\")"]
[null,null,null,null,null,null,null,null,null,null,null,null,null,null,null,null,null,482,0.625,0.25,0.375,15.875,"15,875 mm (0,625\")"]
[null,null,null,null,null,null,null,null,null,null,null,null,null,null,null,null,null,483,0.625,0.25,0.375,15.875,"15,875 mm (0,625\")"]
[null,null,null,null,null,null,null,null,null,null,null,null,null,null,null,null,null,484,0.625,0.25,0.375,15.875,"15,875 mm (0,625\")"]
[null,null,null,null,null,null,null,null,null,null,null,null,null,null,null,null,null,485,0.625,0.25,0.375,15.875,"15,875 mm (0,625\")"]
[null,null,null,null,null,null,null,null,null,null,null,null,null,null,null,null,null,486,0.625,0.25,0.375,15.875,"15,875 mm (0,625\")"]
[null,null,null,null,null,null,null,null,null,null,null,null,null,null,null,null,null,487,0.625,0.25,0.375,15.875,"15,875 mm (0,625\")"]
[null,null,null,null,null,null,null,null,null,null,null,null,null,null,null,null,null,488,0.625,0.25,0.375,15.875,"15,875 mm (0,625\")"]
[null,null,null,null,null,null,null,null,null,null,null,null,null,null,null,null,null,489,0.625,0.25,0.375,15.875,"15,875 mm (0,625\")"]
[null,null,null,null,null,null,null,null,null,null,null,null,null,null,null,null,null,490,0.625,0.25,0.375,15.875,"15,875 mm (0,625\")"]
[null,null,null,null,null,null,null,null,null,null,null,null,null,null,null,null,null,491,0.625,0.25,0.375,15.875,"15,875 mm (0,625\")"]
[null,null,null,null,null,null,null,null,null,null,null,null,null,null,null,null,null,492,0.625,0.25,0.375,15.875,"15,875 mm (0,625\")"]
[null,null,null,null,null,null,null,null,null,null,null,null,null,null,null,null,null,493,0.625,0.25,0.375,15.875,"15,875 mm (0,625\")"]
[null,null,null,null,null,null,null,null,null,null,null,null,null,null,null,null,null,494,0.625,0.25,0.375,15.875,"15,875 mm (0,625\")"]
[null,null,null,null,null,null,null,null,null,null,null,null,null,null,null,null,null,495,0.625,0.25,0.375,15.875,"15,875 mm (0,625\")"]
[null,null,null,null,null,null,null,null,null,null,null,null,null,null,null,null,null,496,0.625,0.25,0.375,15.875,"15,875 mm (0,625\")"]
[null,null,null,null,null,null,null,null,null,null,null,null,null,null,null,null,null,497,0.625,0.25,0.375,15.875,"15,875 mm (0,625\")"]
[null,null,null,null,null,null,null,null,null,null,null,null,null,null,null,null,null,498,0.625,0.25,0.375,15.875,"15,875 mm (0,625\")"]
[null,null,null,null,null,null,null,null,null,null,null,null,null,null,null,null,null,499,0.625,0.25,0.375,15.875,"15,875 mm (0,625\")"]
[null,null,null,null,null,null,null,null,null,null,null,null,null,null,null,null,null,500,0.625,0.25,0.375,15.875,"15,875 mm (0,625\")"]
[null,null,null,null,null,null,null,null,null,null,null,null,null,null,null,null,null,501,0.75,0.25,0.375,19.05,"19,05 mm (0,75\")"]
[null,null,null,null,null,null,null,null,null,null,null,null,null,null,null,null,null,502,0.75,0.25,0.375,19.05,"19,05 mm (0,75\")"]
[null,null,null,null,null,null,null,null,null,null,null,null,null,null,null,null,null,503,0.75,0.25,0.375,19.05,"19,05 mm (0,75\")"]
[null,null,null,null,null,null,null,null,null,null,null,null,null,null,null,null,null,504,0.75,0.25,0.375,19.05,"19,05 mm (0,75\")"]
[null,null,null,null,null,null,null,null,null,null,null,null,null,null,null,null,null,505,0.75,0.25,0.375,19.05,"19,05 mm (0,75\")"]
[null,null,null,null,null,null,null,null,null,null,null,null,null,null,null,null,null,506,0.75,0.25,0.375,19.05,"19,05 mm (0,75\")"]
[null,null,null,null,null,null,null,null,null,null,null,null,null,null,null,null,null,507,0.75,0.25,0.375,19.05,"19,05 mm (0,75\")"]
[null,null,null,null,null,null,null,null,null,null,null,null,null,null,null,null,null,508,0.75,0.25,0.375,19.05,"19,05 mm (0,75\")"]
[null,null,null,null,null,null,null,null,null,null,null,null,null,null,null,null,null,509,0.75,0.25,0.375,19.05,"19,05 mm (0,75\")"]
[null,null,null,null,null,null,null,null,null,null,null,null,null,null,null,null,null,510,0.75,0.25,0.375,19.05,"19,05 mm (0,75\")"]
[null,null,null,null,null,null,null,null,null,null,null,null,null,null,null,null,null,511,0.75,0.25,0.375,19.05,"19,05 mm (0,75\")"]
[null,null,null,null,null,null,null,null,null,null,null,null,null,null,null,null,null,512,0.75,0.25,0.375,19.05,"19,05 mm (0,75\")"]
[null,null,null,null,null,null,null,null,null,null,null,null,null,null,null,null,null,513,0.75,0.25,0.375,19.05,"19,05 mm (0,75\")"]
[null,null,null,null,null,null,null,null,null,null,null,null,null,null,null,null,null,514,0.75,0.25,0.375,19.05,"19,05 mm (0,75\")"]
[null,null,null,null,null,null,null,null,null,null,null,null,null,null,null,null,null,515,0.75,0.25,0.375,19.05,"19,05 mm (0,75\")"]
[null,null,null,null,null,null,null,null,null,null,null,null,null,null,null,null,null,516,0.75,0.25,0.375,19.05,"19,05 mm (0,75\")"]
[null,null,null,null,null,null,null,null,null,null,null,null,null,null,null,null,null,517,0.75,0.25,0.375,19.05,"19,05 mm (0,75\")"]
[null,null,null,null,null,null,null,null,null,null,null,null,null,null,null,null,null,518,0.75,0.25,0.375,19.05,"19,05 mm (0,75\")"]
[null,null,null,null,null,null,null,null,null,null,null,null,null,null,null,null,null,519,0.75,0.25,0.375,19.05,"19,05 mm (0,75\")"]
[null,null,null,null,null,null,null,null,null,null,null,null,null,null,null,null,null,520,0.75,0.25,0.375,19.05,"19,05 mm (0,75\")"]
[null,null,null,null,null,null,null,null,null,null,null,null,null,null,null,null,null,521,0.75,0.25,0.375,19.05,"19,05 mm (0,75\")"]
[null,null,null,null,null,null,null,null,null,null,null,null,null,null,null,null,null,522,0.75,0.25,0.375,19.05,"19,05 mm (0,75\")"]
[null,null,null,null,null,null,null,null,null,null,null,null,null,null,null,null,null,523,0.75,0.25,0.375,19.05,"19,05 mm (0,75\")"]
[null,null,null,null,null,null,null,null,null,null,null,null,null,null,null,null,null,524,0.75,0.25,0.375,19.05,"19,05 mm (0,75\")"]
[null,null,null,null,null,null,null,null,null,null,null,null,null,null,null,null,null,525,0.75,0.25,0.375,19.05,"19,05 mm (0,75\")"]
[null,null,null,null,null,null,null,null,null,null,null,null,null,null,null,null,null,526,0.75,0.25,0.375,19.05,"19,05 mm (0,75\")"]
[null,null,null,null,null,null,null,null,null,null,null,null,null,null,null,null,null,527,0.75,0.25,0.375,19.05,"19,05 mm (0,75\")"]
[null,null,null,null,null,null,null,null,null,null,null,null,null,null,null,null,null,528,0.75,0.25,0.375,19.05,"19,05 mm (0,75\")"]
[null,null,null,null,null,null,null,null,null,null,null,null,null,null,null,null,null,529,0.75,0.25,0.375,19.05,"19,05 mm (0,75\")"]
[null,null,null,null,null,null,null,null,null,null,null,null,null,null,null,null,null,530,0.75,0.25,0.375,19.05,"19,05 mm (0,75\")"]
[null,null,null,null,null,null,null,null,null,null,null,null,null,null,null,null,null,531,0.75,0.25,0.375,19.05,"19,05 mm (0,75\")"]
[null,null,null,null,null,null,null,null,null,null,null,null,null,null,null,null,null,532,0.75,0.25,0.375,19.05,"19,05 mm (0,75\")"]
[null,null,null,null,null,null,null,null,null,null,null,null,null,null,null,null,null,533,0.75,0.25,0.375,19.05,"19,05 mm (0,75\")"]
[null,null,null,null,null,null,null,null,null,null,null,null,null,null,null,null,null,534,0.75,0.25,0.375,19.05,"19,05 mm (0,75\")"]
[null,null,null,null,null,null,null,null,null,null,null,null,null,null,null,null,null,535,0.75,0.25,0.375,19.05,"19,05 mm (0,75\")"]
[null,null,null,null,null,null,null,null,null,null,null,null,null,null,null,null,null,536,0.75,0.25,0.375,{"$f":"ROUND(S514*mm, 5)","v":19.05},"19,05 mm (0,75\")"]
[null,null,null,null,null,null,null,null,null,null,null,null,null,null,null,null,null,537,0.75,0.25,0.375,19.05,{"$f":"V515&\" mm\"&\" (\"&S515&\"\"\")\"","v":"19,05 mm (0,75\")"}]
[null,null,null,null,null,null,null,null,null,null,null,null,null,null,null,null,null,538,0.75,0.25,0.375,19.05,"19,05 mm (0,75\")"]
[null,null,null,null,null,null,null,null,null,null,null,null,null,null,null,null,null,539,0.75,0.25,0.375,19.05,"19,05 mm (0,75\")"]
[null,null,null,null,null,null,null,null,null,null,null,null,null,null,null,null,null,540,0.75,0.25,0.375,19.05,"19,05 mm (0,75\")"]
[null,null,null,null,null,null,null,null,null,null,null,null,null,null,null,null,null,541,0.75,0.25,0.375,19.05,"19,05 mm (0,75\")"]
[null,null,null,null,null,null,null,null,null,null,null,null,null,null,null,null,null,542,0.75,0.25,0.375,19.05,"19,05 mm (0,75\")"]
[null,null,null,null,null,null,null,null,null,null,null,null,null,null,null,null,null,543,0.75,0.25,0.375,19.05,"19,05 mm (0,75\")"]
[null,null,null,null,null,null,null,null,null,null,null,null,null,null,null,null,null,544,0.75,0.25,0.375,19.05,"19,05 mm (0,75\")"]
[null,null,null,null,null,null,null,null,null,null,null,null,null,null,null,null,null,545,0.75,0.25,0.375,19.05,"19,05 mm (0,75\")"]
[null,null,null,null,null,null,null,null,null,null,null,null,null,null,null,null,null,546,0.75,0.25,0.375,19.05,"19,05 mm (0,75\")"]
[null,null,null,null,null,null,null,null,null,null,null,null,null,null,null,null,null,547,0.75,0.25,0.375,19.05,"19,05 mm (0,75\")"]
[null,null,null,null,null,null,null,null,null,null,null,null,null,null,null,null,null,548,0.75,0.25,0.375,19.05,"19,05 mm (0,75\")"]
[null,null,null,null,null,null,null,null,null,null,null,null,null,null,null,null,null,549,0.75,0.25,0.375,19.05,"19,05 mm (0,75\")"]
[null,null,null,null,null,null,null,null,null,null,null,null,null,null,null,null,null,550,0.75,0.25,0.375,19.05,"19,05 mm (0,75\")"]
[null,null,null,null,null,null,null,null,null,null,null,null,null,null,null,null,null,551,0.75,0.25,0.375,19.05,"19,05 mm (0,75\")"]
[null,null,null,null,null,null,null,null,null,null,null,null,null,null,null,null,null,552,0.75,0.25,0.375,19.05,"19,05 mm (0,75\")"]
[null,null,null,null,null,null,null,null,null,null,null,null,null,null,null,null,null,553,0.75,0.25,0.375,19.05,"19,05 mm (0,75\")"]
[null,null,null,null,null,null,null,null,null,null,null,null,null,null,null,null,null,554,0.75,0.25,0.375,19.05,"19,05 mm (0,75\")"]
[null,null,null,null,null,null,null,null,null,null,null,null,null,null,null,null,null,555,0.75,0.25,0.375,19.05,"19,05 mm (0,75\")"]
[null,null,null,null,null,null,null,null,null,null,null,null,null,null,null,null,null,556,0.75,0.25,0.375,19.05,"19,05 mm (0,75\")"]
[null,null,null,null,null,null,null,null,null,null,null,null,null,null,null,null,null,557,0.75,0.25,0.375,19.05,"19,05 mm (0,75\")"]
[null,null,null,null,null,null,null,null,null,null,null,null,null,null,null,null,null,558,0.75,0.25,0.375,19.05,"19,05 mm (0,75\")"]
[null,null,null,null,null,null,null,null,null,null,null,null,null,null,null,null,null,559,0.75,0.25,0.375,19.05,"19,05 mm (0,75\")"]
[null,null,null,null,null,null,null,null,null,null,null,null,null,null,null,null,null,560,0.75,0.25,0.375,19.05,"19,05 mm (0,75\")"]
[null,null,null,null,null,null,null,null,null,null,null,null,null,null,null,null,null,561,0.75,0.25,0.375,19.05,"19,05 mm (0,75\")"]
[null,null,null,null,null,null,null,null,null,null,null,null,null,null,null,null,null,562,0.75,0.25,0.375,19.05,"19,05 mm (0,75\")"]
[null,null,null,null,null,null,null,null,null,null,null,null,null,null,null,null,null,563,0.75,0.25,0.375,19.05,"19,05 mm (0,75\")"]
[null,null,null,null,null,null,null,null,null,null,null,null,null,null,null,null,null,564,0.75,0.25,0.375,19.05,"19,05 mm (0,75\")"]
[null,null,null,null,null,null,null,null,null,null,null,null,null,null,null,null,null,565,0.75,0.25,0.375,19.05,"19,05 mm (0,75\")"]
[null,null,null,null,null,null,null,null,null,null,null,null,null,null,null,null,null,566,0.75,0.25,0.375,19.05,"19,05 mm (0,75\")"]
[null,null,null,null,null,null,null,null,null,null,null,null,null,null,null,null,null,567,0.75,0.25,0.375,19.05,"19,05 mm (0,75\")"]
[null,null,null,null,null,null,null,null,null,null,null,null,null,null,null,null,null,568,0.75,0.25,0.375,19.05,"19,05 mm (0,75\")"]
[null,null,null,null,null,null,null,null,null,null,null,null,null,null,null,null,null,569,0.75,0.25,0.375,19.05,"19,05 mm (0,75\")"]
[null,null,null,null,null,null,null,null,null,null,null,null,null,null,null,null,null,570,0.75,0.25,0.375,19.05,"19,05 mm (0,75\")"]
[null,null,null,null,null,null,null,null,null,null,null,null,null,null,null,null,null,571,0.75,0.25,0.375,19.05,"19,05 mm (0,75\")"]
[null,null,null,null,null,null,null,null,null,null,null,null,null,null,null,null,null,572,0.75,0.25,0.375,19.05,"19,05 mm (0,75\")"]
[null,null,null,null,null,null,null,null,null,null,null,null,null,null,null,null,null,573,0.75,0.25,0.375,19.05,"19,05 mm (0,75\")"]
[null,null,null,null,null,null,null,null,null,null,null,null,null,null,null,null,null,574,0.75,0.25,0.375,19.05,"19,05 mm (0,75\")"]
[null,null,null,null,null,null,null,null,null,null,null,null,null,null,null,null,null,575,0.75,0.25,0.375,19.05,"19,05 mm (0,75\")"]
[null,null,null,null,null,null,null,null,null,null,null,null,null,null,null,null,null,576,0.75,0.25,0.375,19.05,"19,05 mm (0,75\")"]
[null,null,null,null,null,null,null,null,null,null,null,null,null,null,null,null,null,577,0.75,0.25,0.375,19.05,"19,05 mm (0,75\")"]
[null,null,null,null,null,null,null,null,null,null,null,null,null,null,null,null,null,578,0.75,0.25,0.375,19.05,"19,05 mm (0,75\")"]
[null,null,null,null,null,null,null,null,null,null,null,null,null,null,null,null,null,579,0.75,0.25,0.375,19.05,"19,05 mm (0,75\")"]
[null,null,null,null,null,null,null,null,null,null,null,null,null,null,null,null,null,580,0.75,0.25,0.375,19.05,"19,05 mm (0,75\")"]
[null,null,null,null,null,null,null,null,null,null,null,null,null,null,null,null,null,581,0.75,0.25,0.375,19.05,"19,05 mm (0,75\")"]
[null,null,null,null,null,null,null,null,null,null,null,null,null,null,null,null,null,582,0.75,0.25,0.375,19.05,"19,05 mm (0,75\")"]
[null,null,null,null,null,null,null,null,null,null,null,null,null,null,null,null,null,583,0.75,0.25,0.375,19.05,"19,05 mm (0,75\")"]
[null,null,null,null,null,null,null,null,null,null,null,null,null,null,null,null,null,584,0.75,0.25,0.375,19.05,"19,05 mm (0,75\")"]
[null,null,null,null,null,null,null,null,null,null,null,null,null,null,null,null,null,585,0.75,0.25,0.375,19.05,"19,05 mm (0,75\")"]
[null,null,null,null,null,null,null,null,null,null,null,null,null,null,null,null,null,586,0.75,0.25,0.375,19.05,"19,05 mm (0,75\")"]
[null,null,null,null,null,null,null,null,null,null,null,null,null,null,null,null,null,587,0.75,0.25,0.375,19.05,"19,05 mm (0,75\")"]
[null,null,null,null,null,null,null,null,null,null,null,null,null,null,null,null,null,588,0.75,0.25,0.375,19.05,"19,05 mm (0,75\")"]
[null,null,null,null,null,null,null,null,null,null,null,null,null,null,null,null,null,589,0.75,0.25,0.375,19.05,"19,05 mm (0,75\")"]
[null,null,null,null,null,null,null,null,null,null,null,null,null,null,null,null,null,590,0.75,0.25,0.375,19.05,"19,05 mm (0,75\")"]
[null,null,null,null,null,null,null,null,null,null,null,null,null,null,null,null,null,591,0.75,0.25,0.375,19.05,"19,05 mm (0,75\")"]
[null,null,null,null,null,null,null,null,null,null,null,null,null,null,null,null,null,592,0.75,0.25,0.375,19.05,"19,05 mm (0,75\")"]
[null,null,null,null,null,null,null,null,null,null,null,null,null,null,null,null,null,593,0.75,0.25,0.375,19.05,"19,05 mm (0,75\")"]
[null,null,null,null,null,null,null,null,null,null,null,null,null,null,null,null,null,594,0.75,0.25,0.375,19.05,"19,05 mm (0,75\")"]
[null,null,null,null,null,null,null,null,null,null,null,null,null,null,null,null,null,595,0.75,0.25,0.375,19.05,"19,05 mm (0,75\")"]
[null,null,null,null,null,null,null,null,null,null,null,null,null,null,null,null,null,596,0.75,0.25,0.375,19.05,"19,05 mm (0,75\")"]
[null,null,null,null,null,null,null,null,null,null,null,null,null,null,null,null,null,597,0.75,0.25,0.375,19.05,"19,05 mm (0,75\")"]
[null,null,null,null,null,null,null,null,null,null,null,null,null,null,null,null,null,598,0.75,0.25,0.375,19.05,"19,05 mm (0,75\")"]
[null,null,null,null,null,null,null,null,null,null,null,null,null,null,null,null,null,599,0.75,0.25,0.375,19.05,"19,05 mm (0,75\")"]
[null,null,null,null,null,null,null,null,null,null,null,null,null,null,null,null,null,600,0.75,0.25,0.375,{"$f":"ROUND(S578*mm, 5)","v":19.05},"19,05 mm (0,75\")"]
[null,null,null,null,null,null,null,null,null,null,null,null,null,null,null,null,null,601,0.75,0.25,0.375,19.05,{"$f":"V579&\" mm\"&\" (\"&S579&\"\"\")\"","v":"19,05 mm (0,75\")"}]
[null,null,null,null,null,null,null,null,null,null,null,null,null,null,null,null,null,602,0.75,0.25,0.375,19.05,"19,05 mm (0,75\")"]
[null,null,null,null,null,null,null,null,null,null,null,null,null,null,null,null,null,603,0.75,0.25,0.375,19.05,"19,05 mm (0,75\")"]
[null,null,null,null,null,null,null,null,null,null,null,null,null,null,null,null,null,604,0.75,0.25,0.375,19.05,"19,05 mm (0,75\")"]
[null,null,null,null,null,null,null,null,null,null,null,null,null,null,null,null,null,605,0.75,0.25,0.375,19.05,"19,05 mm (0,75\")"]
[null,null,null,null,null,null,null,null,null,null,null,null,null,null,null,null,null,606,0.75,0.25,0.375,19.05,"19,05 mm (0,75\")"]
[null,null,null,null,null,null,null,null,null,null,null,null,null,null,null,null,null,607,0.75,0.25,0.375,19.05,"19,05 mm (0,75\")"]
[null,null,null,null,null,null,null,null,null,null,null,null,null,null,null,null,null,608,0.75,0.25,0.375,19.05,"19,05 mm (0,75\")"]
[null,null,null,null,null,null,null,null,null,null,null,null,null,null,null,null,null,609,0.75,0.25,0.375,19.05,"19,05 mm (0,75\")"]
[null,null,null,null,null,null,null,null,null,null,null,null,null,null,null,null,null,610,0.75,0.25,0.375,19.05,"19,05 mm (0,75\")"]
[null,null,null,null,null,null,null,null,null,null,null,null,null,null,null,null,null,611,0.75,0.25,0.375,19.05,"19,05 mm (0,75\")"]
[null,null,null,null,null,null,null,null,null,null,null,null,null,null,null,null,null,612,0.75,0.25,0.375,19.05,"19,05 mm (0,75\")"]
[null,null,null,null,null,null,null,null,null,null,null,null,null,null,null,null,null,613,0.75,0.25,0.375,19.05,"19,05 mm (0,75\")"]
[null,null,null,null,null,null,null,null,null,null,null,null,null,null,null,null,null,614,0.75,0.25,0.375,19.05,"19,05 mm (0,75\")"]
[null,null,null,null,null,null,null,null,null,null,null,null,null,null,null,null,null,615,0.75,0.25,0.375,19.05,"19,05 mm (0,75\")"]
[null,null,null,null,null,null,null,null,null,null,null,null,null,null,null,null,null,616,0.75,0.25,0.375,19.05,"19,05 mm (0,75\")"]
[null,null,null,null,null,null,null,null,null,null,null,null,null,null,null,null,null,617,0.75,0.25,0.375,19.05,"19,05 mm (0,75\")"]
[null,null,null,null,null,null,null,null,null,null,null,null,null,null,null,null,null,618,0.75,0.25,0.375,19.05,"19,05 mm (0,75\")"]
[null,null,null,null,null,null,null,null,null,null,null,null,null,null,null,null,null,619,0.75,0.25,0.375,19.05,"19,05 mm (0,75\")"]
[null,null,null,null,null,null,null,null,null,null,null,null,null,null,null,null,null,620,0.75,0.25,0.375,19.05,"19,05 mm (0,75\")"]
[null,null,null,null,null,null,null,null,null,null,null,null,null,null,null,null,null,621,0.75,0.25,0.375,19.05,"19,05 mm (0,75\")"]
[null,null,null,null,null,null,null,null,null,null,null,null,null,null,null,null,null,622,0.75,0.25,0.375,19.05,"19,05 mm (0,75\")"]
[null,null,null,null,null,null,null,null,null,null,null,null,null,null,null,null,null,623,0.75,0.25,0.375,19.05,"19,05 mm (0,75\")"]
[null,null,null,null,null,null,null,null,null,null,null,null,null,null,null,null,null,624,0.75,0.25,0.375,19.05,"19,05 mm (0,75\")"]
[null,null,null,null,null,null,null,null,null,null,null,null,null,null,null,null,null,625,0.75,0.25,0.375,19.05,"19,05 mm (0,75\")"]
[null,null,null,null,null,null,null,null,null,null,null,null,null,null,null,null,null,626,0.75,0.25,0.375,19.05,"19,05 mm (0,75\")"]
[null,null,null,null,null,null,null,null,null,null,null,null,null,null,null,null,null,627,0.75,0.25,0.375,19.05,"19,05 mm (0,75\")"]
[null,null,null,null,null,null,null,null,null,null,null,null,null,null,null,null,null,628,0.75,0.25,0.375,19.05,"19,05 mm (0,75\")"]
[null,null,null,null,null,null,null,null,null,null,null,null,null,null,null,null,null,629,0.75,0.25,0.375,19.05,"19,05 mm (0,75\")"]
[null,null,null,null,null,null,null,null,null,null,null,null,null,null,null,null,null,630,0.75,0.25,0.375,19.05,"19,05 mm (0,75\")"]
[null,null,null,null,null,null,null,null,null,null,null,null,null,null,null,null,null,631,0.75,0.25,0.375,19.05,"19,05 mm (0,75\")"]
[null,null,null,null,null,null,null,null,null,null,null,null,null,null,null,null,null,632,0.75,0.25,0.375,19.05,"19,05 mm (0,75\")"]
[null,null,null,null,null,null,null,null,null,null,null,null,null,null,null,null,null,633,0.75,0.25,0.375,19.05,"19,05 mm (0,75\")"]
[null,null,null,null,null,null,null,null,null,null,null,null,null,null,null,null,null,634,0.75,0.25,0.375,19.05,"19,05 mm (0,75\")"]
[null,null,null,null,null,null,null,null,null,null,null,null,null,null,null,null,null,635,0.75,0.25,0.375,19.05,"19,05 mm (0,75\")"]
[null,null,null,null,null,null,null,null,null,null,null,null,null,null,null,null,null,636,0.75,0.25,0.375,19.05,"19,05 mm (0,75\")"]
[null,null,null,null,null,null,null,null,null,null,null,null,null,null,null,null,null,637,0.75,0.25,0.375,19.05,"19,05 mm (0,75\")"]
[null,null,null,null,null,null,null,null,null,null,null,null,null,null,null,null,null,638,0.75,0.25,0.375,19.05,"19,05 mm (0,75\")"]
[null,null,null,null,null,null,null,null,null,null,null,null,null,null,null,null,null,639,0.75,0.25,0.375,19.05,"19,05 mm (0,75\")"]
[null,null,null,null,null,null,null,null,null,null,null,null,null,null,null,null,null,640,0.75,0.25,0.375,19.05,"19,05 mm (0,75\")"]
[null,null,null,null,null,null,null,null,null,null,null,null,null,null,null,null,null,641,0.75,0.25,0.375,19.05,"19,05 mm (0,75\")"]
[null,null,null,null,null,null,null,null,null,null,null,null,null,null,null,null,null,642,0.75,0.25,0.375,19.05,"19,05 mm (0,75\")"]
[null,null,null,null,null,null,null,null,null,null,null,null,null,null,null,null,null,643,0.75,0.25,0.375,19.05,"19,05 mm (0,75\")"]
[null,null,null,null,null,null,null,null,null,null,null,null,null,null,null,null,null,644,0.75,0.25,0.375,19.05,"19,05 mm (0,75\")"]
[null,null,null,null,null,null,null,null,null,null,null,null,null,null,null,null,null,645,0.75,0.25,0.375,19.05,"19,05 mm (0,75\")"]
[null,null,null,null,null,null,null,null,null,null,null,null,null,null,null,null,null,646,0.75,0.25,0.375,19.05,"19,05 mm (0,75\")"]
[null,null,null,null,null,null,null,null,null,null,null,null,null,null,null,null,null,647,0.75,0.25,0.375,19.05,"19,05 mm (0,75\")"]
[null,null,null,null,null,null,null,null,null,null,null,null,null,null,null,null,null,648,0.75,0.25,0.375,19.05,"19,05 mm (0,75\")"]
[null,null,null,null,null,null,null,null,null,null,null,null,null,null,null,null,null,649,0.75,0.25,0.375,19.05,"19,05 mm (0,75\")"]
[null,null,null,null,null,null,null,null,null,null,null,null,null,null,null,null,null,650,0.75,0.25,0.375,19.05,"19,05 mm (0,75\")"]
[null,null,null,null,null,null,null,null,null,null,null,null,null,null,null,null,null,651,0.75,0.25,0.375,19.05,"19,05 mm (0,75\")"]
[null,null,null,null,null,null,null,null,null,null,null,null,null,null,null,null,null,652,0.75,0.25,0.375,19.05,"19,05 mm (0,75\")"]
[null,null,null,null,null,null,null,null,null,null,null,null,null,null,null,null,null,653,0.75,0.25,0.375,19.05,"19,05 mm (0,75\")"]
[null,null,null,null,null,null,null,null,null,null,null,null,null,null,null,null,null,654,0.75,0.25,0.375,19.05,"19,05 mm (0,75\")"]
[null,null,null,null,null,null,null,null,null,null,null,null,null,null,null,null,null,655,0.75,0.25,0.375,19.05,"19,05 mm (0,75\")"]
[null,null,null,null,null,null,null,null,null,null,null,null,null,null,null,null,null,656,0.75,0.25,0.375,19.05,"19,05 mm (0,75\")"]
[null,null,null,null,null,null,null,null,null,null,null,null,null,null,null,null,null,657,0.75,0.25,0.375,19.05,"19,05 mm (0,75\")"]
[null,null,null,null,null,null,null,null,null,null,null,null,null,null,null,null,null,658,0.75,0.25,0.375,19.05,"19,05 mm (0,75\")"]
[null,null,null,null,null,null,null,null,null,null,null,null,null,null,null,null,null,659,0.75,0.25,0.375,19.05,"19,05 mm (0,75\")"]
[null,null,null,null,null,null,null,null,null,null,null,null,null,null,null,null,null,660,0.75,0.25,0.375,19.05,"19,05 mm (0,75\")"]
[null,null,null,null,null,null,null,null,null,null,null,null,null,null,null,null,null,661,0.75,0.25,0.375,19.05,"19,05 mm (0,75\")"]
[null,null,null,null,null,null,null,null,null,null,null,null,null,null,null,null,null,662,0.75,0.25,0.375,19.05,"19,05 mm (0,75\")"]
[null,null,null,null,null,null,null,null,null,null,null,null,null,null,null,null,null,663,0.75,0.25,0.375,19.05,"19,05 mm (0,75\")"]
[null,null,null,null,null,null,null,null,null,null,null,null,null,null,null,null,null,664,0.75,0.25,0.375,{"$f":"ROUND(S642*mm, 5)","v":19.05},"19,05 mm (0,75\")"]
[null,null,null,null,null,null,null,null,null,null,null,null,null,null,null,null,null,665,0.75,0.25,0.375,19.05,{"$f":"V643&\" mm\"&\" (\"&S643&\"\"\")\"","v":"19,05 mm (0,75\")"}]
[null,null,null,null,null,null,null,null,null,null,null,null,null,null,null,null,null,666,0.75,0.25,0.375,19.05,"19,05 mm (0,75\")"]
[null,null,null,null,null,null,null,null,null,null,null,null,null,null,null,null,null,667,0.75,0.25,0.375,19.05,"19,05 mm (0,75\")"]
[null,null,null,null,null,null,null,null,null,null,null,null,null,null,null,null,null,668,0.75,0.25,0.375,19.05,"19,05 mm (0,75\")"]
[null,null,null,null,null,null,null,null,null,null,null,null,null,null,null,null,null,669,0.75,0.25,0.375,19.05,"19,05 mm (0,75\")"]
[null,null,null,null,null,null,null,null,null,null,null,null,null,null,null,null,null,670,0.75,0.25,0.375,19.05,"19,05 mm (0,75\")"]
[null,null,null,null,null,null,null,null,null,null,null,null,null,null,null,null,null,671,0.75,0.25,0.375,19.05,"19,05 mm (0,75\")"]
[null,null,null,null,null,null,null,null,null,null,null,null,null,null,null,null,null,672,0.75,0.25,0.375,19.05,"19,05 mm (0,75\")"]
[null,null,null,null,null,null,null,null,null,null,null,null,null,null,null,null,null,673,0.75,0.25,0.375,19.05,"19,05 mm (0,75\")"]
[null,null,null,null,null,null,null,null,null,null,null,null,null,null,null,null,null,674,0.75,0.25,0.375,19.05,"19,05 mm (0,75\")"]
[null,null,null,null,null,null,null,null,null,null,null,null,null,null,null,null,null,675,0.75,0.25,0.375,19.05,"19,05 mm (0,75\")"]
[null,null,null,null,null,null,null,null,null,null,null,null,null,null,null,null,null,676,0.75,0.25,0.375,19.05,"19,05 mm (0,75\")"]
[null,null,null,null,null,null,null,null,null,null,null,null,null,null,null,null,null,677,0.75,0.25,0.375,19.05,"19,05 mm (0,75\")"]
[null,null,null,null,null,null,null,null,null,null,null,null,null,null,null,null,null,678,0.75,0.25,0.375,19.05,"19,05 mm (0,75\")"]
[null,null,null,null,null,null,null,null,null,null,null,null,null,null,null,null,null,679,0.75,0.25,0.375,19.05,"19,05 mm (0,75\")"]
[null,null,null,null,null,null,null,null,null,null,null,null,null,null,null,null,null,680,0.75,0.25,0.375,19.05,"19,05 mm (0,75\")"]
[null,null,null,null,null,null,null,null,null,null,null,null,null,null,null,null,null,681,0.75,0.25,0.375,19.05,"19,05 mm (0,75\")"]
[null,null,null,null,null,null,null,null,null,null,null,null,null,null,null,null,null,682,0.75,0.25,0.375,19.05,"19,05 mm (0,75\")"]
[null,null,null,null,null,null,null,null,null,null,null,null,null,null,null,null,null,683,0.75,0.25,0.375,19.05,"19,05 mm (0,75\")"]
[null,null,null,null,null,null,null,null,null,null,null,null,null,null,null,null,null,684,0.75,0.25,0.375,19.05,"19,05 mm (0,75\")"]
[null,null,null,null,null,null,null,null,null,null,null,null,null,null,null,null,null,685,0.75,0.25,0.375,19.05,"19,05 mm (0,75\")"]
[null,null,null,null,null,null,null,null,null,null,null,null,null,null,null,null,null,686,0.75,0.25,0.375,19.05,"19,05 mm (0,75\")"]
[null,null,null,null,null,null,null,null,null,null,null,null,null,null,null,null,null,687,0.75,0.25,0.375,19.05,"19,05 mm (0,75\")"]
[null,null,null,null,null,null,null,null,null,null,null,null,null,null,null,null,null,688,0.75,0.25,0.375,19.05,"19,05 mm (0,75\")"]
[null,null,null,null,null,null,null,null,null,null,null,null,null,null,null,null,null,689,0.75,0.25,0.375,19.05,"19,05 mm (0,75\")"]
[null,null,null,null,null,null,null,null,null,null,null,null,null,null,null,null,null,690,0.75,0.25,0.375,19.05,"19,05 mm (0,75\")"]
[null,null,null,null,null,null,null,null,null,null,null,null,null,null,null,null,null,691,0.75,0.25,0.375,19.05,"19,05 mm (0,75\")"]
[null,null,null,null,null,null,null,null,null,null,null,null,null,null,null,null,null,692,0.75,0.25,0.375,19.05,"19,05 mm (0,75\")"]
[null,null,null,null,null,null,null,null,null,null,null,null,null,null,null,null,null,693,0.75,0.25,0.375,19.05,"19,05 mm (0,75\")"]
[null,null,null,null,null,null,null,null,null,null,null,null,null,null,null,null,null,694,0.75,0.25,0.375,19.05,"19,05 mm (0,75\")"]
[null,null,null,null,null,null,null,null,null,null,null,null,null,null,null,null,null,695,0.75,0.25,0.375,19.05,"19,05 mm (0,75\")"]
[null,null,null,null,null,null,null,null,null,null,null,null,null,null,null,null,null,696,0.75,0.25,0.375,19.05,"19,05 mm (0,75\")"]
[null,null,null,null,null,null,null,null,null,null,null,null,null,null,null,null,null,697,0.75,0.25,0.375,19.05,"19,05 mm (0,75\")"]
[null,null,null,null,null,null,null,null,null,null,null,null,null,null,null,null,null,698,0.75,0.25,0.375,19.05,"19,05 mm (0,75\")"]
[null,null,null,null,null,null,null,null,null,null,null,null,null,null,null,null,null,699,0.75,0.25,0.375,19.05,"19,05 mm (0,75\")"]
[null,null,null,null,null,null,null,null,null,null,null,null,null,null,null,null,null,700,0.75,0.25,0.375,19.05,"19,05 mm (0,75\")"]
[null,null,null,null,null,null,null,null,null,null,null,null,null,null,null,null,null,701,0.875,0.25,0.375,22.225000000000001,"22,225 mm (0,875\")"]
[null,null,null,null,null,null,null,null,null,null,null,null,null,null,null,null,null,702,0.875,0.25,0.375,22.225000000000001,"22,225 mm (0,875\")"]
[null,null,null,null,null,null,null,null,null,null,null,null,null,null,null,null,null,703,0.875,0.25,0.375,22.225000000000001,"22,225 mm (0,875\")"]
[null,null,null,null,null,null,null,null,null,null,null,null,null,null,null,null,null,704,0.875,0.25,0.375,22.225000000000001,"22,225 mm (0,875\")"]
[null,null,null,null,null,null,null,null,null,null,null,null,null,null,null,null,null,705,0.875,0.25,0.375,22.225000000000001,"22,225 mm (0,875\")"]
[null,null,null,null,null,null,null,null,null,null,null,null,null,null,null,null,null,706,0.875,0.25,0.375,22.225000000000001,"22,225 mm (0,875\")"]
[null,null,null,null,null,null,null,null,null,null,null,null,null,null,null,null,null,707,0.875,0.25,0.375,22.225000000000001,"22,225 mm (0,875\")"]
[null,null,null,null,null,null,null,null,null,null,null,null,null,null,null,null,null,708,0.875,0.25,0.375,22.225000000000001,"22,225 mm (0,875\")"]
[null,null,null,null,null,null,null,null,null,null,null,null,null,null,null,null,null,709,0.875,0.25,0.375,22.225000000000001,"22,225 mm (0,875\")"]
[null,null,null,null,null,null,null,null,null,null,null,null,null,null,null,null,null,710,0.875,0.25,0.375,22.225000000000001,"22,225 mm (0,875\")"]
[null,null,null,null,null,null,null,null,null,null,null,null,null,null,null,null,null,711,0.875,0.25,0.375,22.225000000000001,"22,225 mm (0,875\")"]
[null,null,null,null,null,null,null,null,null,null,null,null,null,null,null,null,null,712,0.875,0.25,0.375,22.225000000000001,"22,225 mm (0,875\")"]
[null,null,null,null,null,null,null,null,null,null,null,null,null,null,null,null,null,713,0.875,0.25,0.375,22.225000000000001,"22,225 mm (0,875\")"]
[null,null,null,null,null,null,null,null,null,null,null,null,null,null,null,null,null,714,0.875,0.25,0.375,22.225000000000001,"22,225 mm (0,875\")"]
[null,null,null,null,null,null,null,null,null,null,null,null,null,null,null,null,null,715,0.875,0.25,0.375,22.225000000000001,"22,225 mm (0,875\")"]
[null,null,null,null,null,null,null,null,null,null,null,null,null,null,null,null,null,716,0.875,0.25,0.375,22.225000000000001,"22,225 mm (0,875\")"]
[null,null,null,null,null,null,null,null,null,null,null,null,null,null,null,null,null,717,0.875,0.25,0.375,22.225000000000001,"22,225 mm (0,875\")"]
[null,null,null,null,null,null,null,null,null,null,null,null,null,null,null,null,null,718,0.875,0.25,0.375,22.225000000000001,"22,225 mm (0,875\")"]
[null,null,null,null,null,null,null,null,null,null,null,null,null,null,null,null,null,719,0.875,0.25,0.375,22.225000000000001,"22,225 mm (0,875\")"]
[null,null,null,null,null,null,null,null,null,null,null,null,null,null,null,null,null,720,0.875,0.25,0.375,22.225000000000001,"22,225 mm (0,875\")"]
[null,null,null,null,null,null,null,null,null,null,null,null,null,null,null,null,null,721,0.875,0.25,0.375,22.225000000000001,"22,225 mm (0,875\")"]
[null,null,null,null,null,null,null,null,null,null,null,null,null,null,null,null,null,722,0.875,0.25,0.375,22.225000000000001,"22,225 mm (0,875\")"]
[null,null,null,null,null,null,null,null,null,null,null,null,null,null,null,null,null,723,0.875,0.25,0.375,22.225000000000001,"22,225 mm (0,875\")"]
[null,null,null,null,null,null,null,null,null,null,null,null,null,null,null,null,null,724,0.875,0.25,0.375,22.225000000000001,"22,225 mm (0,875\")"]
[null,null,null,null,null,null,null,null,null,null,null,null,null,null,null,null,null,725,0.875,0.25,0.375,22.225000000000001,"22,225 mm (0,875\")"]
[null,null,null,null,null,null,null,null,null,null,null,null,null,null,null,null,null,726,0.875,0.25,0.375,22.225000000000001,"22,225 mm (0,875\")"]
[null,null,null,null,null,null,null,null,null,null,null,null,null,null,null,null,null,727,0.875,0.25,0.375,22.225000000000001,"22,225 mm (0,875\")"]
[null,null,null,null,null,null,null,null,null,null,null,null,null,null,null,null,null,728,0.875,0.25,0.375,{"$f":"ROUND(S706*mm, 5)","v":22.225000000000001},"22,225 mm (0,875\")"]
[null,null,null,null,null,null,null,null,null,null,null,null,null,null,null,null,null,729,0.875,0.25,0.375,22.225000000000001,{"$f":"V707&\" mm\"&\" (\"&S707&\"\"\")\"","v":"22,225 mm (0,875\")"}]
[null,null,null,null,null,null,null,null,null,null,null,null,null,null,null,null,null,730,0.875,0.25,0.375,22.225000000000001,"22,225 mm (0,875\")"]
[null,null,null,null,null,null,null,null,null,null,null,null,null,null,null,null,null,731,0.875,0.25,0.375,22.225000000000001,"22,225 mm (0,875\")"]
[null,null,null,null,null,null,null,null,null,null,null,null,null,null,null,null,null,732,0.875,0.25,0.375,22.225000000000001,"22,225 mm (0,875\")"]
[null,null,null,null,null,null,null,null,null,null,null,null,null,null,null,null,null,733,0.875,0.25,0.375,22.225000000000001,"22,225 mm (0,875\")"]
[null,null,null,null,null,null,null,null,null,null,null,null,null,null,null,null,null,734,0.875,0.25,0.375,22.225000000000001,"22,225 mm (0,875\")"]
[null,null,null,null,null,null,null,null,null,null,null,null,null,null,null,null,null,735,0.875,0.25,0.375,22.225000000000001,"22,225 mm (0,875\")"]
[null,null,null,null,null,null,null,null,null,null,null,null,null,null,null,null,null,736,0.875,0.25,0.375,22.225000000000001,"22,225 mm (0,875\")"]
[null,null,null,null,null,null,null,null,null,null,null,null,null,null,null,null,null,737,0.875,0.25,0.375,22.225000000000001,"22,225 mm (0,875\")"]
[null,null,null,null,null,null,null,null,null,null,null,null,null,null,null,null,null,738,0.875,0.25,0.375,22.225000000000001,"22,225 mm (0,875\")"]
[null,null,null,null,null,null,null,null,null,null,null,null,null,null,null,null,null,739,0.875,0.25,0.375,22.225000000000001,"22,225 mm (0,875\")"]
[null,null,null,null,null,null,null,null,null,null,null,null,null,null,null,null,null,740,0.875,0.25,0.375,22.225000000000001,"22,225 mm (0,875\")"]
[null,null,null,null,null,null,null,null,null,null,null,null,null,null,null,null,null,741,0.875,0.25,0.375,22.225000000000001,"22,225 mm (0,875\")"]
[null,null,null,null,null,null,null,null,null,null,null,null,null,null,null,null,null,742,0.875,0.25,0.375,22.225000000000001,"22,225 mm (0,875\")"]
[null,null,null,null,null,null,null,null,null,null,null,null,null,null,null,null,null,743,0.875,0.25,0.375,22.225000000000001,"22,225 mm (0,875\")"]
[null,null,null,null,null,null,null,null,null,null,null,null,null,null,null,null,null,744,0.875,0.25,0.375,22.225000000000001,"22,225 mm (0,875\")"]
[null,null,null,null,null,null,null,null,null,null,null,null,null,null,null,null,null,745,0.875,0.25,0.375,22.225000000000001,"22,225 mm (0,875\")"]
[null,null,null,null,null,null,null,null,null,null,null,null,null,null,null,null,null,746,0.875,0.25,0.375,22.225000000000001,"22,225 mm (0,875\")"]
[null,null,null,null,null,null,null,null,null,null,null,null,null,null,null,null,null,747,0.875,0.25,0.375,22.225000000000001,"22,225 mm (0,875\")"]
[null,null,null,null,null,null,null,null,null,null,null,null,null,null,null,null,null,748,0.875,0.25,0.375,22.225000000000001,"22,225 mm (0,875\")"]
[null,null,null,null,null,null,null,null,null,null,null,null,null,null,null,null,null,749,0.875,0.25,0.375,22.225000000000001,"22,225 mm (0,875\")"]
[null,null,null,null,null,null,null,null,null,null,null,null,null,null,null,null,null,750,0.875,0.25,0.375,22.225000000000001,"22,225 mm (0,875\")"]
[null,null,null,null,null,null,null,null,null,null,null,null,null,null,null,null,null,751,0.875,0.25,0.375,22.225000000000001,"22,225 mm (0,875\")"]
[null,null,null,null,null,null,null,null,null,null,null,null,null,null,null,null,null,752,0.875,0.25,0.375,22.225000000000001,"22,225 mm (0,875\")"]
[null,null,null,null,null,null,null,null,null,null,null,null,null,null,null,null,null,753,0.875,0.25,0.375,22.225000000000001,"22,225 mm (0,875\")"]
[null,null,null,null,null,null,null,null,null,null,null,null,null,null,null,null,null,754,0.875,0.25,0.375,22.225000000000001,"22,225 mm (0,875\")"]
[null,null,null,null,null,null,null,null,null,null,null,null,null,null,null,null,null,755,0.875,0.25,0.375,22.225000000000001,"22,225 mm (0,875\")"]
[null,null,null,null,null,null,null,null,null,null,null,null,null,null,null,null,null,756,0.875,0.25,0.375,22.225000000000001,"22,225 mm (0,875\")"]
[null,null,null,null,null,null,null,null,null,null,null,null,null,null,null,null,null,757,0.875,0.25,0.375,22.225000000000001,"22,225 mm (0,875\")"]
[null,null,null,null,null,null,null,null,null,null,null,null,null,null,null,null,null,758,0.875,0.25,0.375,22.225000000000001,"22,225 mm (0,875\")"]
[null,null,null,null,null,null,null,null,null,null,null,null,null,null,null,null,null,759,0.875,0.25,0.375,22.225000000000001,"22,225 mm (0,875\")"]
[null,null,null,null,null,null,null,null,null,null,null,null,null,null,null,null,null,760,0.875,0.25,0.375,22.225000000000001,"22,225 mm (0,875\")"]
[null,null,null,null,null,null,null,null,null,null,null,null,null,null,null,null,null,761,0.875,0.25,0.375,22.225000000000001,"22,225 mm (0,875\")"]
[null,null,null,null,null,null,null,null,null,null,null,null,null,null,null,null,null,762,0.875,0.25,0.375,22.225000000000001,"22,225 mm (0,875\")"]
[null,null,null,null,null,null,null,null,null,null,null,null,null,null,null,null,null,763,0.875,0.25,0.375,22.225000000000001,"22,225 mm (0,875\")"]
[null,null,null,null,null,null,null,null,null,null,null,null,null,null,null,null,null,764,0.875,0.25,0.375,22.225000000000001,"22,225 mm (0,875\")"]
[null,null,null,null,null,null,null,null,null,null,null,null,null,null,null,null,null,765,0.875,0.25,0.375,22.225000000000001,"22,225 mm (0,875\")"]
[null,null,null,null,null,null,null,null,null,null,null,null,null,null,null,null,null,766,0.875,0.25,0.375,22.225000000000001,"22,225 mm (0,875\")"]
[null,null,null,null,null,null,null,null,null,null,null,null,null,null,null,null,null,767,0.875,0.25,0.375,22.225000000000001,"22,225 mm (0,875\")"]
[null,null,null,null,null,null,null,null,null,null,null,null,null,null,null,null,null,768,0.875,0.25,0.375,22.225000000000001,"22,225 mm (0,875\")"]
[null,null,null,null,null,null,null,null,null,null,null,null,null,null,null,null,null,769,0.875,0.25,0.375,22.225000000000001,"22,225 mm (0,875\")"]
[null,null,null,null,null,null,null,null,null,null,null,null,null,null,null,null,null,770,0.875,0.25,0.375,22.225000000000001,"22,225 mm (0,875\")"]
[null,null,null,null,null,null,null,null,null,null,null,null,null,null,null,null,null,771,0.875,0.25,0.375,22.225000000000001,"22,225 mm (0,875\")"]
[null,null,null,null,null,null,null,null,null,null,null,null,null,null,null,null,null,772,0.875,0.25,0.375,22.225000000000001,"22,225 mm (0,875\")"]
[null,null,null,null,null,null,null,null,null,null,null,null,null,null,null,null,null,773,0.875,0.25,0.375,22.225000000000001,"22,225 mm (0,875\")"]
[null,null,null,null,null,null,null,null,null,null,null,null,null,null,null,null,null,774,0.875,0.25,0.375,22.225000000000001,"22,225 mm (0,875\")"]
[null,null,null,null,null,null,null,null,null,null,null,null,null,null,null,null,null,775,0.875,0.25,0.375,22.225000000000001,"22,225 mm (0,875\")"]
[null,null,null,null,null,null,null,null,null,null,null,null,null,null,null,null,null,776,0.875,0.25,0.375,22.225000000000001,"22,225 mm (0,875\")"]
[null,null,null,null,null,null,null,null,null,null,null,null,null,null,null,null,null,777,0.875,0.25,0.375,22.225000000000001,"22,225 mm (0,875\")"]
[null,null,null,null,null,null,null,null,null,null,null,null,null,null,null,null,null,778,0.875,0.25,0.375,22.225000000000001,"22,225 mm (0,875\")"]
[null,null,null,null,null,null,null,null,null,null,null,null,null,null,null,null,null,779,0.875,0.25,0.375,22.225000000000001,"22,225 mm (0,875\")"]
[null,null,null,null,null,null,null,null,null,null,null,null,null,null,null,null,null,780,0.875,0.25,0.375,22.225000000000001,"22,225 mm (0,875\")"]
[null,null,null,null,null,null,null,null,null,null,null,null,null,null,null,null,null,781,0.875,0.25,0.375,22.225000000000001,"22,225 mm (0,875\")"]
[null,null,null,null,null,null,null,null,null,null,null,null,null,null,null,null,null,782,0.875,0.25,0.375,22.225000000000001,"22,225 mm (0,875\")"]
[null,null,null,null,null,null,null,null,null,null,null,null,null,null,null,null,null,783,0.875,0.25,0.375,22.225000000000001,"22,225 mm (0,875\")"]
[null,null,null,null,null,null,null,null,null,null,null,null,null,null,null,null,null,784,0.875,0.25,0.375,22.225000000000001,"22,225 mm (0,875\")"]
[null,null,null,null,null,null,null,null,null,null,null,null,null,null,null,null,null,785,0.875,0.25,0.375,22.225000000000001,"22,225 mm (0,875\")"]
[null,null,null,null,null,null,null,null,null,null,null,null,null,null,null,null,null,786,0.875,0.25,0.375,22.225000000000001,"22,225 mm (0,875\")"]
[null,null,null,null,null,null,null,null,null,null,null,null,null,null,null,null,null,787,0.875,0.25,0.375,22.225000000000001,"22,225 mm (0,875\")"]
[null,null,null,null,null,null,null,null,null,null,null,null,null,null,null,null,null,788,0.875,0.25,0.375,22.225000000000001,"22,225 mm (0,875\")"]
[null,null,null,null,null,null,null,null,null,null,null,null,null,null,null,null,null,789,0.875,0.25,0.375,22.225000000000001,"22,225 mm (0,875\")"]
[null,null,null,null,null,null,null,null,null,null,null,null,null,null,null,null,null,790,0.875,0.25,0.375,22.225000000000001,"22,225 mm (0,875\")"]
[null,null,null,null,null,null,null,null,null,null,null,null,null,null,null,null,null,791,0.875,0.25,0.375,22.225000000000001,"22,225 mm (0,875\")"]
[null,null,null,null,null,null,null,null,null,null,null,null,null,null,null,null,null,792,0.875,0.25,0.375,{"$f":"ROUND(S770*mm, 5)","v":22.225000000000001},"22,225 mm (0,875\")"]
[null,null,null,null,null,null,null,null,null,null,null,null,null,null,null,null,null,793,0.875,0.25,0.375,22.225000000000001,{"$f":"V771&\" mm\"&\" (\"&S771&\"\"\")\"","v":"22,225 mm (0,875\")"}]
[null,null,null,null,null,null,null,null,null,null,null,null,null,null,null,null,null,794,0.875,0.25,0.375,22.225000000000001,"22,225 mm (0,875\")"]
[null,null,null,null,null,null,null,null,null,null,null,null,null,null,null,null,null,795,0.875,0.25,0.375,22.225000000000001,"22,225 mm (0,875\")"]
[null,null,null,null,null,null,null,null,null,null,null,null,null,null,null,null,null,796,0.875,0.25,0.375,22.225000000000001,"22,225 mm (0,875\")"]
[null,null,null,null,null,null,null,null,null,null,null,null,null,null,null,null,null,797,0.875,0.25,0.375,22.225000000000001,"22,225 mm (0,875\")"]
[null,null,null,null,null,null,null,null,null,null,null,null,null,null,null,null,null,798,0.875,0.25,0.375,22.225000000000001,"22,225 mm (0,875\")"]
[null,null,null,null,null,null,null,null,null,null,null,null,null,null,null,null,null,799,0.875,0.25,0.375,22.225000000000001,"22,225 mm (0,875\")"]
[null,null,null,null,null,null,null,null,null,null,null,null,null,null,null,null,null,800,0.875,0.25,0.375,22.225000000000001,"22,225 mm (0,875\")"]
[null,null,null,null,null,null,null,null,null,null,null,null,null,null,null,null,null,801,0.875,0.25,0.375,22.225000000000001,"22,225 mm (0,875\")"]
[null,null,null,null,null,null,null,null,null,null,null,null,null,null,null,null,null,802,0.875,0.25,0.375,22.225000000000001,"22,225 mm (0,875\")"]
[null,null,null,null,null,null,null,null,null,null,null,null,null,null,null,null,null,803,0.875,0.25,0.375,22.225000000000001,"22,225 mm (0,875\")"]
[null,null,null,null,null,null,null,null,null,null,null,null,null,null,null,null,null,804,0.875,0.25,0.375,22.225000000000001,"22,225 mm (0,875\")"]
[null,null,null,null,null,null,null,null,null,null,null,null,null,null,null,null,null,805,0.875,0.25,0.375,22.225000000000001,"22,225 mm (0,875\")"]
[null,null,null,null,null,null,null,null,null,null,null,null,null,null,null,null,null,806,0.875,0.25,0.375,22.225000000000001,"22,225 mm (0,875\")"]
[null,null,null,null,null,null,null,null,null,null,null,null,null,null,null,null,null,807,0.875,0.25,0.375,22.225000000000001,"22,225 mm (0,875\")"]
[null,null,null,null,null,null,null,null,null,null,null,null,null,null,null,null,null,808,0.875,0.25,0.375,22.225000000000001,"22,225 mm (0,875\")"]
[null,null,null,null,null,null,null,null,null,null,null,null,null,null,null,null,null,809,0.875,0.25,0.375,22.225000000000001,"22,225 mm (0,875\")"]
[null,null,null,null,null,null,null,null,null,null,null,null,null,null,null,null,null,810,0.875,0.25,0.375,22.225000000000001,"22,225 mm (0,875\")"]
[null,null,null,null,null,null,null,null,null,null,null,null,null,null,null,null,null,811,0.875,0.25,0.375,22.225000000000001,"22,225 mm (0,875\")"]
[null,null,null,null,null,null,null,null,null,null,null,null,null,null,null,null,null,812,0.875,0.25,0.375,22.225000000000001,"22,225 mm (0,875\")"]
[null,null,null,null,null,null,null,null,null,null,null,null,null,null,null,null,null,813,0.875,0.25,0.375,22.225000000000001,"22,225 mm (0,875\")"]
[null,null,null,null,null,null,null,null,null,null,null,null,null,null,null,null,null,814,0.875,0.25,0.375,22.225000000000001,"22,225 mm (0,875\")"]
[null,null,null,null,null,null,null,null,null,null,null,null,null,null,null,null,null,815,0.875,0.25,0.375,22.225000000000001,"22,225 mm (0,875\")"]
[null,null,null,null,null,null,null,null,null,null,null,null,null,null,null,null,null,816,0.875,0.25,0.375,22.225000000000001,"22,225 mm (0,875\")"]
[null,null,null,null,null,null,null,null,null,null,null,null,null,null,null,null,null,817,0.875,0.25,0.375,22.225000000000001,"22,225 mm (0,875\")"]
[null,null,null,null,null,null,null,null,null,null,null,null,null,null,null,null,null,818,0.875,0.25,0.375,22.225000000000001,"22,225 mm (0,875\")"]
[null,null,null,null,null,null,null,null,null,null,null,null,null,null,null,null,null,819,0.875,0.25,0.375,22.225000000000001,"22,225 mm (0,875\")"]
[null,null,null,null,null,null,null,null,null,null,null,null,null,null,null,null,null,820,0.875,0.25,0.375,22.225000000000001,"22,225 mm (0,875\")"]
[null,null,null,null,null,null,null,null,null,null,null,null,null,null,null,null,null,821,0.875,0.25,0.375,22.225000000000001,"22,225 mm (0,875\")"]
[null,null,null,null,null,null,null,null,null,null,null,null,null,null,null,null,null,822,0.875,0.25,0.375,22.225000000000001,"22,225 mm (0,875\")"]
[null,null,null,null,null,null,null,null,null,null,null,null,null,null,null,null,null,823,0.875,0.25,0.375,22.225000000000001,"22,225 mm (0,875\")"]
[null,null,null,null,null,null,null,null,null,null,null,null,null,null,null,null,null,824,0.875,0.25,0.375,22.225000000000001,"22,225 mm (0,875\")"]
[null,null,null,null,null,null,null,null,null,null,null,null,null,null,null,null,null,825,0.875,0.25,0.375,22.225000000000001,"22,225 mm (0,875\")"]
[null,null,null,null,null,null,null,null,null,null,null,null,null,null,null,null,null,826,0.875,0.25,0.375,22.225000000000001,"22,225 mm (0,875\")"]
[null,null,null,null,null,null,null,null,null,null,null,null,null,null,null,null,null,827,0.875,0.25,0.375,22.225000000000001,"22,225 mm (0,875\")"]
[null,null,null,null,null,null,null,null,null,null,null,null,null,null,null,null,null,828,0.875,0.25,0.375,22.225000000000001,"22,225 mm (0,875\")"]